Workbook

Sheet INFO INICIAL
A2: NOMBRE DEL PROYECTO: | C2: Macia Batle Winery
A4: MES DE INICIO PREVISTO DE ACTIVIDAD:
B6: FORMA JURÍDICA PREVISTA:
B8: TIPO DE IMPUESTO A APLICAR:
A10: FULLES DE DADES (completar totes les dades abans de veure els resultats) | C10: Introducir el importe de las inversiones iniciales y las necesarias durante cada año para el correcto funcionamiento de la empresa.
B11: PLAN DE INVERSIONES
C13: Introducir la financiación inicial (debe ser igual a las inversiones iniciales) y las necesarias para los ejercicios siguientes.
B14: FINANCIACIÓN | J14: 0.28 | K14: Impuesto de Sociedades Tipo General
J15: 0.25 | K15: Impuesto de Sociedades Microempresas
C16: Introducir el importe a financiar mediante recursos ajenos financieros, así como las condiciones de financiación. | J16: 0.15 | K16: Impuesto de Sociedades de Nueva Creación
B17: SIMULADOR DE PRÉSTAMOS | J17: 0.2 | K17: Impuesto de Sociedades Cooperativas fiscalmente protegidas
J18: 0.2 | K18: Pago a cuenta del IRPF (20%/BAT)
C19: Introducir el número de personas por categoría y salario a incorporar al equipo de recursos humanos de la empresa, incluyendo el/la emprendedor/a.
B20: RECURSOS HUMANOS
C22: Nos permite consultar el cuadro de amortización previsto de todas nuestras inversiones. | H22: Pagament a compte de l'IRPF (20% sobre beneficis)
B23: CUADRO DE AMORTIZACIÓN | H23: Impost de Societats
C25: Introducir las líneas de negocio previstas, así como los precios medios de venta y los costes directos de las mismas.
B26: LINEAS DE NEGOCIO
C28: Introducir las previsiones del número de unidades de productos o servicios a vender y comprar, con sus precios medios, para poder calcular las cifras de ventas y aprovisionamientos. | F28: Enero | H28: Empresario individual
B29: VENTAS Y COSTES VARIABLES | F29: Febrero | H29: Empresario Individual en recargo de equivalencia
F30: Marzo | H30: Comunidad de bienes
C31: Introducir los gastos corrientes mensuales y extraordinarios del ejercicio, así como los ingresos extraordinarios. Nos ayuda a calcular la situación de tesorería mensual y final de cada ejercicio. | F31: Abril | H31: Comunidad de bienes en recargo de equivalencia
B32: PLAN DE TESORERÍA | F32: Mayo | H32: Sociedad Civil
F33: Junio | H33: Sociedad Colectiva
A34: FULLES DE RESULTATS | C34: Genera la cuenta de resultados provisional. En esta hoja también s'introduexien los porcentajes de impuestos y beneficios a distribuir. | F34: Julio | H34: Emprendedor de Responsabilidad Limitada
B35: P y G PREVISIONAL | F35: Agosto | H35: Sociedades Profesionales
F36: Setiembre | H36: Sociead Limitada Nueva Empresa
C37: Calcula el punto de equilibrio de nuestra empresa. | F37: Octubre | H37: Sociedad Anónima
B38: PUNTO DE EQUILIBRIO | F38: Noviembre | H38: Sociedad Limitada de Formación Sucesiva
F39: Diciembre | H39: Sociedad Comanditaria Simple
C40: Información de los datos más relevantes de nuestro proyecto. | H40: Sociedad Comanditaria por acciones
B41: CUADRO RESUMEN | H41: Sociedad Cooperativa
H42: Sociedad Anónima Laboral
H43: Sociedad de Responsabilidad Limitada Laboral

Sheet CUADRO RESUMEN (0)
A1: RESUMEN DEL PROYECTO
A3: =+'INFO INICIAL'!C2 -> Macia Batle Winery
A4: Principales datos económicos
A6: Inversión | H6: Resultados Pérdidas y Ganancias
A8: Inversión en activo NO corriente | D8: =+'Plan de Inversión (1)'!B6 -> 5547150 | H8: Ingresos previstos primer año | J8: =+' P y G Previsional (9)'!$B$5 -> 2903150
A9: Inversión en Activo corriente | D9: =+'Plan de Inversión (1)'!B27 -> 0 | H9: Costes previstos primer año | J9: =+' P y G Previsional (9)'!$B$45 -> 1445776.876
A10: INVERSIÓN TOTAL SIN IVA | D10: =+D8+D9 -> 5547150 | H10: BDIT (Beneficio después de Impuestos) | J10: =+' P y G Previsional (9)'!$B$56 -> 1238767.155
A11: IVA | D11: =+'Plan de Inversión (1)'!C31 -> 1164901.5
A12: INVERSIÓN TOTAL | D12: =+D10+D11 -> 6712051.5 | H12: Punto de equilibrio 1º año en € | J12: =+'Punto de equilibrio (10)'!B12 -> 1125273.198
H14: Ingresos previstos segundo año | J14: =+' P y G Previsional (9)'!D5 -> 3916341.12
A15: Financiación | H15: Costes previstos segundo año | J15: =+' P y G Previsional (9)'!D45 -> 1573095.462
H16: BDIT (Beneficio después de Impuestos) | J16: =+' P y G Previsional (9)'!D56 -> 1991758.809
A17: FONDOS PROPIOS | D17: =+'Financiación (2)'!B6 -> 4474701 | E17: =+D17/D12 -> 0.6666666667
H18: Punto de equilibrio 2º año en € | J18: =+'Punto de equilibrio (10)'!D12 -> 1357993.731
A19: FONDOS AJENOS: | D19: =+'Financiación (2)'!B9 -> 2237350.5 | E19: =+D19/D12 -> 0.3333333333
A20: Préstamo del activo NO corriente (largo plazo) | D20: =+'Financiación (2)'!B10 -> 2237350.5 | E20: =+D20/D12 -> 0.3333333333 | H20: Ingresos previstos tercer año | J20: =+' P y G Previsional (9)'!F5 -> 4039582.318
A21: Préstamo del activo corriente (corto plazo) | D21: =+'Financiación (2)'!B11 -> 0 | E21: =+D21/D12 -> 0 | H21: Costes previstos tercer año | J21: =+' P y G Previsional (9)'!F45 -> 1576685.12
A22: Otra financiación | D22: =+'Financiación (2)'!B12 -> 0 | E22: =+D22/D12 -> 0 | H22: BDIT (Beneficio después de Impuestos) | J22: =+' P y G Previsional (9)'!F56 -> 2093462.618
A23: FINANCIACIÓN TOTAL: | D23: =+D19+D17 -> 6712051.5
H24: Punto de equilibrio tercer año en € | J24: =+'Punto de equilibrio (10)'!F12 -> 1367247.314
A26: Préstamo del activo NO corriente | H26: Préstamo del activo corriente
A28: Importe | D28: =+'Simulador préstamos (3) '!H4:H4 -> 2237350.5 | H28: Importe | J28: =+'Simulador préstamos (3) '!R4 -> 0
A29: Suma de las cuotas | D29: =+'Simulador préstamos (3) '!H18 -> 2728320.996 | H29: Suma de las cuotas | J29: =+'Simulador préstamos (3) '!R18 -> 0
A30: Suma de los intereses | D30: =+'Simulador préstamos (3) '!H19 -> 490970.4962 | H30: Suma de los intereses | J30: =+'Simulador préstamos (3) '!R19 -> 0
A31: Cuota mensual | D31: =+'Simulador préstamos (3) '!H12 -> 7324.503339 | H31: Cuota mensual | J31: =+'Simulador préstamos (3) '!R12 -> 0
A32: Tipo de interés anual fondos ajenos | D32: =+'Simulador préstamos (3) '!H6 -> 0.04 | H32: Tipo de interés anual fondos ajenos | J32: =+'Simulador préstamos (3) '!R6 -> 0.055
A33: Tipo de interés efectivo fondos ajenos | D33: =+'Simulador préstamos (3) '!H7 -> 0.003273739782 | H33: Tipo de interés efectivo fondos ajenos | J33: =+'Simulador préstamos (3) '!R7 -> 0.004471698917
A34: Nº de pagos | D34: =+'Simulador préstamos (3) '!H11 -> 120 | H34: Nº de pagos | J34: =+'Simulador préstamos (3) '!R11 -> 24
A35: Tipo de carencia | D35: =+'Simulador préstamos (3) '!H14 -> Carència Parcial | H35: Tipo de carencia | J35: =+'Simulador préstamos (3) '!R14 -> Carència Total
A36: Meses de carencia | D36: =+'Simulador préstamos (3) '!H15 -> 6 | H36: Meses de carencia | J36: =+'Simulador préstamos (3) '!R15 -> 6
A38: Sistema Tributario y Líneas de Negocio
A40: Líneas de negocio: | C40: ............ | D40: Tipo de IVA: | H40: Tipo de empresa | J40: =CHOOSE(K40,'INFO INICIAL'!H28,'INFO INICIAL'!H29,'INFO INICIAL'!H30,'INFO INICIAL'!H31,'INFO INICIAL'!H32,'INFO INICIAL'!H33,'INFO INICIAL'!H34,'INFO INICIAL'!H35,'INFO INICIAL'!H36,'INFO INICIAL'!H37,'INFO INICIAL'!H38,'INFO INICIAL'!H39,'INFO INICIAL'!H40,'INFO INICIAL'!H41,'INFO INICIAL'!H42,'INFO INICIAL'!H43) -> Emprendedor de Responsabilidad Limitada | K40: 7
A42: =+'Líneas de Negocio (6)'!A6 -> HABITACIÓN DBL AD | D42: =+'Líneas de Negocio (6)'!C6 -> 0.1 | H42: Tipo de Impuesto a aplicar | J42: =CHOOSE(K42,'INFO INICIAL'!K14,'INFO INICIAL'!K15,'INFO INICIAL'!K16,'INFO INICIAL'!K17,'INFO INICIAL'!K18) -> Impuesto de Sociedades de Nueva Creación | K42: 3
A43: =+'Líneas de Negocio (6)'!A7 -> JUNIOR SUITE AD | D43: =+'Líneas de Negocio (6)'!C7 -> 0.1
A44: =+'Líneas de Negocio (6)'!A8 -> SUITE AD | D44: =+'Líneas de Negocio (6)'!C8 -> 0.1 | H44: % de gravamen: | J44: =+' P y G Previsional (9)'!B54 -> 0.15
A45: =+'Líneas de Negocio (6)'!A9 -> HABITACIÓN DBL MP | D45: =+'Líneas de Negocio (6)'!C9 -> 0.1
A46: =+'Líneas de Negocio (6)'!A10 -> JUNIOR SUITE MP | D46: =+'Líneas de Negocio (6)'!C10 -> 0.1
A47: =+'Líneas de Negocio (6)'!#REF! ->  | D47: =+'Líneas de Negocio (6)'!#REF! -> 

Sheet Plan de Inversión (1)
A2: =+'INFO INICIAL'!C2 -> Macia Batle Winery | B2: PLAN DE INVERSIÓN
B4: AÑO 1 | F4: AÑO 2 | J4: AÑO 3
A5: Concepto | B5: Base Impon. | C5: IVA | D5: TOTAL | F5: Base Impon. | G5: IVA | H5: TOTAL | J5: Base Impon. | K5: IVA | L5: TOTAL
A6: ACTIVO NO CORRIENTE | B6: =(+B7+B15+B25) -> 5547150 | C6: =(+C7+C15+C25) -> 1164901.5 | D6: =SUM(B6:C6) -> 6712051.5 | F6: =(+F7+F15+F25) -> 0 | G6: =(+G7+G15+G25) -> 0 | H6: =+F6+G6 -> 0 | J6: =(+J7+J15+J25) -> 0 | K6: =(+K7+K15+K25) -> 0 | L6: =+J6+K6 -> 0
A7: Inmovilizado Intangible | B7: =SUM(B8:B14) -> 5000 | C7: =SUM(C8:C14) -> 1050 | D7: =SUM(B7:C7) -> 6050 | F7: =SUM(F8:F14) -> 0 | G7: =SUM(G8:G14) -> 0 | H7: =SUM(F7:G7) -> 0 | J7: =SUM(J8:J14) -> 0 | K7: =SUM(K8:K14) -> 0 | L7: =SUM(J7:K7) -> 0
A8: Gastos de constitución | B8: 1000 | C8: =B8*$B$33 -> 210 | D8: =SUM(B8:C8) -> 1210 | F8: 0 | G8: =F8*$B$33 -> 0 | H8: =SUM(F8:G8) -> 0 | J8: 0 | K8: =J8*$B$33 -> 0 | L8: =SUM(J8:K8) -> 0
A9: Gastos de Investigación y Desarrollo | B9: 0 | C9: 0 | D9: =SUM(B9:C9) -> 0 | F9: 0 | G9: 0 | H9: =SUM(F9:G9) -> 0 | J9: 0 | K9: 0 | L9: =SUM(J9:K9) -> 0
A10: Concesiones Administrativas | B10: 0 | C10: 0 | D10: 0 | F10: 0 | G10: 0 | H10: 0 | J10: 0 | K10: 0 | L10: 0
A11: Propiedad Industrial y Patentes | B11: 0 | C11: 0 | D11: 0 | F11: 0 | G11: 0 | H11: 0 | J11: 0 | K11: 0 | L11: 0
A12: Derechos de Traspaso | B12: 0 | C12: 0 | D12: 0 | F12: 0 | G12: 0 | H12: 0 | J12: 0 | K12: 0 | L12: 0
A13: Aplicaciones Informáticas (Software) | B13: 4000 | C13: 840 | D13: 4840 | F13: 0 | G13: 0 | H13: 0 | J13: 0 | K13: 0 | L13: 0
A14: otro Inmovilziado Intangible | B14: 0 | C14: 0 | D14: 0 | F14: 0 | G14: 0 | H14: 0 | J14: 0 | K14: 0 | L14: 0
A15: Inmovilizado Material | B15: =SUM(B16:B24) -> 5542150 | C15: =SUM(C16:C24) -> 1163851.5 | D15: =SUM(B15:C15) -> 6706001.5 | F15: =SUM(F16:F24) -> 0 | G15: =SUM(G16:G24) -> 0 | H15: =SUM(F15:G15) -> 0 | J15: =SUM(J16:J24) -> 0 | K15: =SUM(K16:K24) -> 0 | L15: =SUM(J15:K15) -> 0
A16: Terrenos | B16: 0 | C16: =B16*$B$33 -> 0 | D16: =SUM(B16:C16) -> 0 | F16: 0 | G16: =F16*$B$33 -> 0 | H16: =SUM(F16:G16) -> 0 | J16: 0 | K16: =J16*$B$33 -> 0 | L16: =SUM(J16:K16) -> 0
A17: Edificios y Construcciones | B17: 3742150 | C17: 785851.5 | D17: =SUM(B17:C17) -> 4528001.5 | F17: 0 | G17: 0 | H17: =SUM(F17:G17) -> 0 | J17: 0 | K17: 0 | L17: =SUM(J17:K17) -> 0
A18: Instalaciones Técnicas | B18: 1000000 | C18: 210000 | D18: 1210000 | F18: 0 | G18: 0 | H18: 0 | J18: 0 | K18: 0 | L18: 0
A19: Maquinaria | B19: 100000 | C19: 21000 | D19: 121000 | F19: 0 | G19: 0 | H19: 0 | J19: 0 | K19: 0 | L19: 0
A20: Utillaje y herramientas | B20: 200000 | C20: =B20*$B$33 -> 42000 | D20: =SUM(B20:C20) -> 242000 | F20: 0 | G20: =F20*$B$33 -> 0 | H20: =SUM(F20:G20) -> 0 | J20: 0 | K20: =J20*$B$33 -> 0 | L20: =SUM(J20:K20) -> 0
A21: Mobiliario | B21: 400000 | C21: 84000 | D21: 484000 | F21: 0 | G21: 0 | H21: 0 | J21: 0 | K21: 0 | L21: 0
A22: Equipos Informáticos (Hardware) | B22: 50000 | C22: 10500 | D22: 60500 | F22: 0 | G22: 0 | H22: 0 | J22: 0 | K22: 0 | L22: 0
A23: Elementos de Transporte | B23: 50000 | C23: 10500 | D23: 60500 | F23: 0 | G23: 0 | H23: 0 | J23: 0 | K23: 0 | L23: 0
A24: Otro Inmovilizado Material | B24: 0 | C24: 0 | D24: 0 | F24: 0 | G24: 0 | H24: 0 | J24: 0 | K24: 0 | L24: 0
A25: Fianzas y Depósitos a Largo Plazo | B25: =B26 -> 0 | C25: =C26 -> 0 | D25: =SUM(B25:C25) -> 0 | F25: =F26 -> 0 | G25: =G26 -> 0 | H25: =SUM(F25:G25) -> 0 | J25: =J26 -> 0 | K25: =K26 -> 0 | L25: =SUM(J25:K25) -> 0
A26: Fianzas y Depósitos a Largo Plazo | B26: 0 | C26: 0 | D26: 0 | F26: 0 | G26: 0 | H26: 0 | J26: 0 | K26: 0 | L26: 0
A27: ACTIVO CORRIENTE para los gastos iniciales | B27: =SUM(B28:B30) -> 0 | C27: =SUM(C28:C30) -> 0 | D27: 0 | F27: =SUM(F28:F30) -> 0 | G27: =SUM(G28:G30) -> 0 | H27: 0 | J27: =SUM(J28:J30) -> 0 | K27: =SUM(K28:K30) -> 0 | L27: 0
A28: Circulante | B28: 0 | C28: =B28*$B$33 -> 0 | D28: 0 | F28: 0 | G28: =F28*$B$33 -> 0 | H28: 0 | J28: 0 | K28: =J28*$B$33 -> 0 | L28: 0
A29: Existencias Iniciales | B29: 0 | C29: =B29*$B$33 -> 0 | D29: 0 | F29: 0 | G29: =F29*$B$33 -> 0 | H29: 0 | J29: 0 | K29: =J29*$B$33 -> 0 | L29: 0
A30: Otros | B30: 0 | C30: =B30*$B$33 -> 0 | D30: 0 | F30: 0 | G30: =F30*$B$33 -> 0 | H30: 0 | J30: 0 | K30: =J30*$B$33 -> 0 | L30: 0
A31: TOTAL | B31: =+B27+B6 -> 5547150 | C31: =+C27+C6 -> 1164901.5 | D31: =+D27+D6 -> 6712051.5 | F31: =+F27+F6 -> 0 | G31: =+G27+G6 -> 0 | H31: =+H27+H6 -> 0 | J31: =+J27+J6 -> 0 | K31: =+K27+K6 -> 0 | L31: =+L27+L6 -> 0
A33: Tipo de IVA: | B33: 0.21
A37: Observaciones:
A38: 1. Cuando se tenga que acceder a financiación ajena (préstamos con entidades financieras), también deberá aportar las facturas proforma de las inversiones previstas.
A39: 2. Para el cálculo de los gastos de constitución, mirad este cuadro informativo del Ministerio: http://www.ipyme.org/es-ES/DesarrolloProyecto/FormasJuridicas/Paginas/FormasJuridicas-Descripcion.aspx?cod=SCI&nombre=Sociedad Civil&idioma=es-ES#d2
A41: 3. No confundir la inversión necesaria para poner en marcha en proyecto, con los gastos de explotación.
A42: 4. Si necesita personalitzar algún concepto en el plan de inversión, debe hacerlo manualmente, pero teniendo en cuenta que también la puede añadir al cuadro de amortización y vincularlo al plan de financiación.

Sheet Financiación (2)
A2: =+'INFO INICIAL'!C2 -> Macia Batle Winery | B2: PLAN DE FINANCIACIÓN
B4: AÑO 1 | E4: AÑO 2 | H4: AÑO 3
A5: FUENTES DE FINANCIACIÓN | B5: Importe | C5: Ratios | E5: Importe | F5: Ratios | H5: Importe | I5: Ratios | K5: TOTAL
A6: FONDOS PROPIOS | B6: =SUM(B7:B8) -> 4474701 | C6: =+B6/$B$13 -> 0.6666666667 | E6: =SUM(E7:E8) -> 0 | F6: =+E6/$E$13 ->  | H6: =SUM(H7:H8) -> 0 | I6: =+H6/$H$13 ->  | K6: =SUM(H6+E6+B6) -> 4474701
A7: Capital y otras aportaciones de socios | B7: =(2/3)*'Plan de Inversión (1)'!D31 -> 4474701 | C7: =+B7/$B$13 -> 0.6666666667 | E7: 0 | F7: =+E7/$E$13 ->  | H7: 0 | I7: =+H7/$H$13 ->  | K7: =B7+E7+H7 -> 4474701
A8: Subvenciones, donaciones y legados | B8: 0 | C8: =+B8/$B$13 -> 0 | E8: 0 | F8: =+E8/$E$13 ->  | H8: 0 | I8: =+H8/$H$13 ->  | K8: =B8+E8+H8 -> 0
A9: FONDOS AJENOS | B9: =SUM(B10:B12) -> 2237350.5 | C9: =+B9/B13 -> 0.3333333333 | E9: =SUM(E10:E12) -> 0 | F9: =+E9/E13 ->  | H9: =SUM(H10:H12) -> 0 | I9: =+H9/H13 ->  | K9: =+B9+E9+H9 -> 2237350.5
A10: Préstamo del activo no corriente (largo plazo) | B10: =(1/3)*'Plan de Inversión (1)'!D31 -> 2237350.5 | C10: =+B10/B13 -> 0.3333333333 | E10: 0 | F10: =+E10/E13 ->  | H10: 0 | I10: =+H10/H13 ->  | K10: =+B10+E10+H10 -> 2237350.5
A11: Préstamo del activo corriente (corto plazo) | B11: 0 | C11: =+B11/B13 -> 0 | E11: 0 | F11: =+E11/E13 ->  | H11: 0 | I11: =+H11/H13 ->  | K11: =+B11+E11+H11 -> 0
A12: Otra financiación | B12: 0 | C12: =+B12/B13 -> 0 | E12: 0 | F12: =+E12/E13 ->  | H12: 0 | I12: =+H12/H13 ->  | K12: =B12+E12+H12 -> 0
A13: TOTAL FINANCIACIÓN | B13: =+B6+B9 -> 6712051.5 | E13: =E6+E9 -> 0 | H13: =H6+H9 -> 0 | K13: =+K6+K9 -> 6712051.5
A15: INVERSIÓN | B15: Import | E15: Import | H15: Import | K15: TOTAL
A16: Base imponible del total de inversión | B16: ='Plan de Inversión (1)'!B31 -> 5547150 | E16: ='Plan de Inversión (1)'!F31 -> 0 | H16: ='Plan de Inversión (1)'!J31 -> 0 | K16: =+B16+E16+H16 -> 5547150
A17: IVA | B17: ='Plan de Inversión (1)'!C31 -> 1164901.5 | E17: ='Plan de Inversión (1)'!G31 -> 0 | H17: ='Plan de Inversión (1)'!K31 -> 0 | K17: =SUM(B17:H17) -> 1164901.5
A18: TOTAL INVERSIÓN | B18: =SUM(B16:B17) -> 6712051.5 | E18: =SUM(E16:E17) -> 0 | H18: =SUM(H16:H17) -> 0 | K18: =SUM(K16:K17) -> 6712051.5
A20: DIFERENCIA FINANCIACIÓN-INVERSIÓN | B20: ANY 1 | E20: ANY 2 | H20: ANY 3 | K20: TOTAL
A21: Total Financiación | B21: =+B13 -> 6712051.5 | E21: =+E13 -> 0 | H21: =+H13 -> 0 | K21: =+B21+E21+H21 -> 6712051.5
A22: Total Inversión | B22: =+B18 -> 6712051.5 | E22: =+E18 -> 0 | H22: =+H18 -> 0 | K22: =+B22+E22+H22 -> 6712051.5
A23: Diferencia | B23: =+B21-B22 -> 0 | E23: =E21-E22 -> 0 | H23: =H21-H22 -> 0 | K23: =+K21-K22 -> 0
A25: DETALLE de la DEUDA adquirida, o por parte de los promotores/emprendedores a nivel personal, y/o detalle de los préstamos de la empresa en funcionamiento
A26: ENTIDAD | B26: IMPORTE | C26: IMPORTE PENDIENTE DE AMORTIZAR | E26: PERSONAL / HIPOTECARIO | F26: TIPO (%) | H26: Plazo de amortización | I26: CUOTA MENSUAL | K26: OBSERVACIONES:
A32: TOTAL | B32: =SUM(B27:B31) -> 0 | C32: =SUM(C27:C31) -> 0 | H32: =SUM(H27:H31) -> 0 | I32: =SUM(I27:I31) -> 0
A34: Observaciones:
A35: * En el caso de que la financiación todavía no haya sido solicitada se puede usar la hipótesis de que el plazo es de 15 años en operaciones hipotecarias, de 7 años en operaciones personales y de un año la financiación del IVA.
A37: * En el caso de que la financiación todavía no haya sido solicitada, se puede usar la hipótesis de que el tipo de interés es de EURIBOR + 2% en las operaciones hipotecarias, y del EURIBOR + 3% en las operaciones con garantía personal.
A39: * El total de la financiación debe ser igual al total de la inversión. Este punto es muy importante.
A41: * Se debe explicar muy bien cuál es la hipótesis de la financiación, así como la estrategia de financiación en el plan de empresa.
A43: * Las entidades bancarias siempre piden un % de recursos propios, aunque el % dependerá de cada institución bancaria, de la viabilidad del proyecto, del sector de actividad y del endeudamiento personal del /los promotor/es.
A45: * Para los préstamos del año 2 y 3 se debe introducir manualmente en el plan de Tesorería y P&G tanto la cuota de capital como los intereses de los nuevos préstamos.

Sheet Simulador préstamos (3)
E2: SIMULADOR DEL PRÉSTAMO ACTIVO NO CORRIENTE | O2: SIMULADOR DEL PRÉSTAMO ACTIVO CORRIENTE
E4: Capital del crédito | H4: =+'Financiación (2)'!B10 -> 2237350.5 | O4: Capital del crédito | R4: =+'Financiación (2)'!B11 -> 0
E6: Tipo de interés anual | H6: 0.04 | O6: Tipo de interés anual | R6: 0.055
E7: Tipo de interés efectivo | H7: =IF(G9="Mensual",((1+H6)^(1/12))-1,IF(G9="Bimensual",((1+H6)^(1/6))-1,IF(G9="Trimestral",((1+H6)^(1/4))-1,IF(G9="Cuatrimestral",((1+H6)^(1/3))-1,IF(G9="Semestral",((1+H6)^(1/2))-1,IF(G9="Anual",H6)))))) -> 0.003273739782 | O7: Tipo de interés efectivo | R7: =IF(Q9="Mensual",((1+R6)^(1/12))-1,IF(Q9="Bimensual",((1+R6)^(1/6))-1,IF(Q9="Trimestral",((1+R6)^(1/4))-1,IF(Q9="Cuatrimestral",((1+R6)^(1/3))-1,IF(Q9="Semestral",((1+R6)^(1/2))-1,IF(Q9="Anual",R6)))))) -> 0.004471698917
E8: Duración en años | G8: 10 | O8: Duración en años | Q8: 2
E9: Frecuencia de pago | G9: Mensual | O9: Frecuencia de pago | Q9: Mensual
E10: Entidad Financiera | O10: Entidad Financiera
E11: Número de pagos | H11: =G8*12 -> 120 | O11: Número de pagos | R11: =(Q8)*12 -> 24
E12: Cuota mensual | H12: =D27 -> 7324.503339 | O12: Cuota mensual | R12: =N27 -> 0
AJ13: Carència Total
E14: Tipo de carencia | H14: Carència Parcial | O14: Tipo de carencia | R14: Carència Total | AJ14: Carència Parcial
E15: Meses de carencia | H15: 6 | O15: Meses de carencia | R15: 6
AJ16: 0
E17: TOTALS | O17: TOTALS | AJ17: 1
E18: Suma de las cuotas | H18: =SUM(D23:D520) -> 2728320.996 | O18: Suma de las cuotas | R18: =SUM(N23:N520) -> 0 | AJ18: 2
E19: Suma de los intereses | H19: =SUM(E23:E520) -> 490970.4962 | O19: Suma de los intereses | R19: =SUM(O23:O520) -> 0 | AJ19: 3
AJ20: 4
C21: Período | D21: Mensualidad | E21: Intereses | F21: Cuota Amortización | G21: Capital Vivo | H21: Capital Amortizado | M21: Período | N21: Mensualidad | O21: Intereses | P21: Cuota Amortización | Q21: Capital Vivo | R21: Capital Amortizado | AJ21: 5
C22: 0 | G22: =H4 -> 2237350.5 | M22: 0 | Q22: =R4 -> 0 | AJ22: 6
C23: =IF(C22>=$H$11,"",C22+1) -> 1 | D23: =IF(C23<=$H$11,(IF(C23<=$H$15,IF($H$14="Carència total",0,$G$22*$H$7),(IF($H$14="Carència parcial",$G$22/PV($H$7,$H$11-$H$15,-1),$G$22*(1+$H$7)^$H$15/PV($H$7,$H$11-$H$7,-1))))),0) -> 7324.503339 | E23: =IF(C23<=$H$11,IF(C23<=$H$15,IF($H$14="CarÈncia total",0,G$22*$H$7),G22*$H$7),0) -> 7324.503339 | F23: =IF(C23<=$H$11,D23-E23,0) -> 0 | G23: =IF(C23<=$H$11,IF(C23<=$H$7,IF($H$14="Carencia total",$G$22*(1+$H$7)^C23,G22-F23),G22-F23),0) -> 2237350.5 | H23: =IF(C23<=$H$11,H22+F23,0) -> 0 | M23: =IF(M22>=$R$11,"",M22+1) -> 1 | N23: =IF(M23<=$R$11,(IF(M23<=$R$15,IF($R$14="Carència total",0,$Q$22*$R$7),(IF($R$14="Carència parcial",$Q$22/PV($R$7,$R$11-$R$15,-1),$Q$22*(1+$R$7)^$R$15/PV($R$7,$R$11-$R$7,-1))))),0) -> 0 | O23: =IF(M23<=$R$11,IF(M23<=$R$15,IF($R$14="CarÈncia total",0,Q$22*$R$7),Q22*$R$7),0) -> 0 | P23: =IF(M23<=$H$11,N23-O23,0) -> 0 | Q23: =IF(M23<=$R$11,IF(M23<=$R$7,IF($R$14="Carencia total",$Q$22*(1+$R$7)^M23,Q22-P23),Q22-P23),0) -> 0 | R23: =IF(M23<=$R$11,R22+P23,0) -> 0 | AJ23: 7
C24: =IF(C23>=$H$11,"",C23+1) -> 2 | D24: =IF(C24<=$H$11,(IF(C24<=$H$15,IF($H$14="Carència total",0,$G$22*$H$7),(IF($H$14="Carència parcial",$G$22/PV($H$7,$H$11-$H$15,-1),$G$22*(1+$H$7)^$H$15/PV($H$7,$H$11-$H$7,-1))))),0) -> 7324.503339 | E24: =IF(C24<=$H$11,IF(C24<=$H$15,IF($H$14="CarÈncia total",0,G$22*$H$7),G23*$H$7),0) -> 7324.503339 | F24: =IF(C24<=$H$11,D24-E24,0) -> 0 | G24: =IF(C24<=$H$11,IF(C24<=$H$7,IF($H$14="Carencia total",$G$22*(1+$H$7)^C24,G23-F24),G23-F24),0) -> 2237350.5 | H24: =IF(C24<=$H$11,H23+F24,0) -> 0 | M24: =IF(M23>=$R$11,"",M23+1) -> 2 | N24: =IF(M24<=$R$11,(IF(M24<=$R$15,IF($R$14="Carència total",0,$Q$22*$R$7),(IF($R$14="Carència parcial",$Q$22/PV($R$7,$R$11-$R$15,-1),$Q$22*(1+$R$7)^$R$15/PV($R$7,$R$11-$R$7,-1))))),0) -> 0 | O24: =IF(M24<=$R$11,IF(M24<=$R$15,IF($R$14="CarÈncia total",0,Q$22*$R$7),Q23*$R$7),0) -> 0 | P24: =IF(M24<=$H$11,N24-O24,0) -> 0 | Q24: =IF(M24<=$R$11,IF(M24<=$R$7,IF($R$14="Carencia total",$Q$22*(1+$R$7)^M24,Q23-P24),Q23-P24),0) -> 0 | R24: =IF(M24<=$R$11,R23+P24,0) -> 0 | AJ24: 8
C25: 3 | D25: 7324.503339 | E25: 7324.503339 | F25: 0 | G25: 2237350.5 | H25: 0 | M25: 3 | N25: 0 | O25: 0 | P25: 0 | Q25: 0 | R25: 0 | AJ25: 9
C26: 4 | D26: 7324.503339 | E26: 7324.503339 | F26: 0 | G26: 2237350.5 | H26: 0 | M26: 4 | N26: 0 | O26: 0 | P26: 0 | Q26: 0 | R26: 0 | AJ26: 10
C27: 5 | D27: 7324.503339 | E27: 7324.503339 | F27: 0 | G27: 2237350.5 | H27: 0 | M27: 5 | N27: 0 | O27: 0 | P27: 0 | Q27: 0 | R27: 0 | AJ27: 11
C28: 6 | D28: 7324.503339 | E28: 7324.503339 | F28: 0 | G28: 2237350.5 | H28: 0 | M28: 6 | N28: 0 | O28: 0 | P28: 0 | Q28: 0 | R28: 0 | AJ28: 12
C29: 7 | D29: 23547.14014 | E29: 7324.503339 | F29: 16222.6368 | G29: 2221127.863 | H29: 16222.6368 | M29: 7 | N29: 0 | O29: 0 | P29: 0 | Q29: 0 | R29: 0 | AJ29: 13
C30: 8 | D30: 23547.14014 | E30: 7271.394647 | F30: 16275.7455 | G30: 2204852.118 | H30: 32498.3823 | M30: 8 | N30: 0 | O30: 0 | P30: 0 | Q30: 0 | R30: 0 | AJ30: 14
C31: 9 | D31: 23547.14014 | E31: 7218.112092 | F31: 16329.02805 | G31: 2188523.09 | H31: 48827.41035 | M31: 9 | N31: 0 | O31: 0 | P31: 0 | Q31: 0 | R31: 0 | AJ31: 15
C32: 10 | D32: 23547.14014 | E32: 7164.655103 | F32: 16382.48504 | G32: 2172140.605 | H32: 65209.89539 | M32: 10 | N32: 0 | O32: 0 | P32: 0 | Q32: 0 | R32: 0 | AJ32: 16
C33: 11 | D33: 23547.14014 | E33: 7111.02311 | F33: 16436.11703 | G33: 2155704.488 | H33: 81646.01242 | M33: 11 | N33: 0 | O33: 0 | P33: 0 | Q33: 0 | R33: 0 | AJ33: 17
C34: 12 | D34: 23547.14014 | E34: 7057.21554 | F34: 16489.9246 | G34: 2139214.563 | H34: 98135.93702 | M34: 12 | N34: 0 | O34: 0 | P34: 0 | Q34: 0 | R34: 0 | AJ34: 18
C35: 13 | D35: 23547.14014 | E35: 7003.231817 | F35: 16543.90832 | G35: 2122670.655 | H35: 114679.8453 | M35: 13 | N35: 0 | O35: 0 | P35: 0 | Q35: 0 | R35: 0 | AJ35: 19
C36: 14 | D36: 23547.14014 | E36: 6949.071367 | F36: 16598.06878 | G36: 2106072.586 | H36: 131277.9141 | M36: 14 | N36: 0 | O36: 0 | P36: 0 | Q36: 0 | R36: 0 | AJ36: 20
C37: 15 | D37: 23547.14014 | E37: 6894.733609 | F37: 16652.40653 | G37: 2089420.179 | H37: 147930.3207 | M37: 15 | N37: 0 | O37: 0 | P37: 0 | Q37: 0 | R37: 0 | AJ37: 21
C38: 16 | D38: 23547.14014 | E38: 6840.217963 | F38: 16706.92218 | G38: 2072713.257 | H38: 164637.2428 | M38: 16 | N38: 0 | O38: 0 | P38: 0 | Q38: 0 | R38: 0 | AJ38: 22
C39: 17 | D39: 23547.14014 | E39: 6785.523847 | F39: 16761.6163 | G39: 2055951.641 | H39: 181398.8591 | M39: 17 | N39: 0 | O39: 0 | P39: 0 | Q39: 0 | R39: 0 | AJ39: 23
C40: 18 | D40: 23547.14014 | E40: 6730.650677 | F40: 16816.48947 | G40: 2039135.151 | H40: 198215.3486 | M40: 18 | N40: 0 | O40: 0 | P40: 0 | Q40: 0 | R40: 0 | AJ40: 24
C41: 19 | D41: 23547.14014 | E41: 6675.597866 | F41: 16871.54228 | G41: 2022263.609 | H41: 215086.8909 | M41: 19 | N41: 0 | O41: 0 | P41: 0 | Q41: 0 | R41: 0
C42: 20 | D42: 23547.14014 | E42: 6620.364827 | F42: 16926.77531 | G42: 2005336.834 | H42: 232013.6662 | M42: 20 | N42: 0 | O42: 0 | P42: 0 | Q42: 0 | R42: 0
C43: 21 | D43: 23547.14014 | E43: 6564.95097 | F43: 16982.18917 | G43: 1988354.645 | H43: 248995.8554 | M43: 21 | N43: 0 | O43: 0 | P43: 0 | Q43: 0 | R43: 0
C44: 22 | D44: 23547.14014 | E44: 6509.355701 | F44: 17037.78444 | G44: 1971316.86 | H44: 266033.6398 | M44: 22 | N44: 0 | O44: 0 | P44: 0 | Q44: 0 | R44: 0
C45: 23 | D45: 23547.14014 | E45: 6453.578429 | F45: 17093.56171 | G45: 1954223.298 | H45: 283127.2015 | M45: 23 | N45: 0 | O45: 0 | P45: 0 | Q45: 0 | R45: 0
C46: 24 | D46: 23547.14014 | E46: 6397.618556 | F46: 17149.52159 | G46: 1937073.777 | H46: 300276.7231 | M46: 24 | N46: 0 | O46: 0 | P46: 0 | Q46: 0 | R46: 0
C47: 25 | D47: 23547.14014 | E47: 6341.475484 | F47: 17205.66466 | G47: 1919868.112 | H47: 317482.3878 | N47: 0 | O47: 0 | P47: 0 | Q47: 0 | R47: 0
C48: 26 | D48: 23547.14014 | E48: 6285.148616 | F48: 17261.99153 | G48: 1902606.121 | H48: 334744.3793 | N48: 0 | O48: 0 | P48: 0 | Q48: 0 | R48: 0
C49: 27 | D49: 23547.14014 | E49: 6228.637347 | F49: 17318.50279 | G49: 1885287.618 | H49: 352062.8821 | N49: 0 | O49: 0 | P49: 0 | Q49: 0 | R49: 0
C50: 28 | D50: 23547.14014 | E50: 6171.941076 | F50: 17375.19907 | G50: 1867912.419 | H50: 369438.0811 | N50: 0 | O50: 0 | P50: 0 | Q50: 0 | R50: 0
C51: 29 | D51: 23547.14014 | E51: 6115.059195 | F51: 17432.08095 | G51: 1850480.338 | H51: 386870.1621 | N51: 0 | O51: 0 | P51: 0 | Q51: 0 | R51: 0
C52: 30 | D52: 23547.14014 | E52: 6057.991098 | F52: 17489.14904 | G52: 1832991.189 | H52: 404359.3111 | N52: 0 | O52: 0 | P52: 0 | Q52: 0 | R52: 0
C53: 31 | D53: 23547.14014 | E53: 6000.736175 | F53: 17546.40397 | G53: 1815444.785 | H53: 421905.7151 | N53: 0 | O53: 0 | P53: 0 | Q53: 0 | R53: 0
C54: 32 | D54: 23547.14014 | E54: 5943.293815 | F54: 17603.84633 | G54: 1797840.939 | H54: 439509.5614 | N54: 0 | O54: 0 | P54: 0 | Q54: 0 | R54: 0
C55: 33 | D55: 23547.14014 | E55: 5885.663403 | F55: 17661.47674 | G55: 1780179.462 | H55: 457171.0382 | N55: 0 | O55: 0 | P55: 0 | Q55: 0 | R55: 0
C56: 34 | D56: 23547.14014 | E56: 5827.844324 | F56: 17719.29582 | G56: 1762460.166 | H56: 474890.334 | N56: 0 | O56: 0 | P56: 0 | Q56: 0 | R56: 0
C57: 35 | D57: 23547.14014 | E57: 5769.83596 | F57: 17777.30418 | G57: 1744682.862 | H57: 492667.6382 | N57: 0 | O57: 0 | P57: 0 | Q57: 0 | R57: 0
C58: 36 | D58: 23547.14014 | E58: 5711.637692 | F58: 17835.50245 | G58: 1726847.359 | H58: 510503.1406 | N58: 0 | O58: 0 | P58: 0 | Q58: 0 | R58: 0
C59: 37 | D59: 23547.14014 | E59: 5653.248898 | F59: 17893.89124 | G59: 1708953.468 | H59: 528397.0319 | N59: 0 | O59: 0 | P59: 0 | Q59: 0 | R59: 0
C60: 38 | D60: 23547.14014 | E60: 5594.668955 | F60: 17952.47119 | G60: 1691000.997 | H60: 546349.5031 | N60: 0 | O60: 0 | P60: 0 | Q60: 0 | R60: 0
C61: 39 | D61: 23547.14014 | E61: 5535.897235 | F61: 18011.24291 | G61: 1672989.754 | H61: 564360.746 | N61: 0 | O61: 0 | P61: 0 | Q61: 0 | R61: 0
C62: 40 | D62: 23547.14014 | E62: 5476.933113 | F62: 18070.20703 | G62: 1654919.547 | H62: 582430.953 | N62: 0 | O62: 0 | P62: 0 | Q62: 0 | R62: 0
C63: 41 | D63: 23547.14014 | E63: 5417.775957 | F63: 18129.36418 | G63: 1636790.183 | H63: 600560.3172 | N63: 0 | O63: 0 | P63: 0 | Q63: 0 | R63: 0
C64: 42 | D64: 23547.14014 | E64: 5358.425137 | F64: 18188.71501 | G64: 1618601.468 | H64: 618749.0322 | N64: 0 | O64: 0 | P64: 0 | Q64: 0 | R64: 0
C65: 43 | D65: 23547.14014 | E65: 5298.880017 | F65: 18248.26013 | G65: 1600353.208 | H65: 636997.2923 | N65: 0 | O65: 0 | P65: 0 | Q65: 0 | R65: 0
C66: 44 | D66: 23547.14014 | E66: 5239.139962 | F66: 18308.00018 | G66: 1582045.208 | H66: 655305.2925 | N66: 0 | O66: 0 | P66: 0 | Q66: 0 | R66: 0
C67: 45 | D67: 23547.14014 | E67: 5179.204333 | F67: 18367.93581 | G67: 1563677.272 | H67: 673673.2283 | N67: 0 | O67: 0 | P67: 0 | Q67: 0 | R67: 0
C68: 46 | D68: 23547.14014 | E68: 5119.072491 | F68: 18428.06765 | G68: 1545249.204 | H68: 692101.2959 | N68: 0 | O68: 0 | P68: 0 | Q68: 0 | R68: 0
C69: 47 | D69: 23547.14014 | E69: 5058.743793 | F69: 18488.39635 | G69: 1526760.808 | H69: 710589.6923 | N69: 0 | O69: 0 | P69: 0 | Q69: 0 | R69: 0
C70: 48 | D70: 23547.14014 | E70: 4998.217594 | F70: 18548.92255 | G70: 1508211.885 | H70: 729138.6148 | N70: 0 | O70: 0 | P70: 0 | Q70: 0 | R70: 0
C71: 49 | D71: 23547.14014 | E71: 4937.493248 | F71: 18609.64689 | G71: 1489602.238 | H71: 747748.2617 | N71: 0 | O71: 0 | P71: 0 | Q71: 0 | R71: 0
C72: 50 | D72: 23547.14014 | E72: 4876.570107 | F72: 18670.57004 | G72: 1470931.668 | H72: 766418.8318 | N72: 0 | O72: 0 | P72: 0 | Q72: 0 | R72: 0
C73: 51 | D73: 23547.14014 | E73: 4815.447519 | F73: 18731.69262 | G73: 1452199.976 | H73: 785150.5244 | N73: 0 | O73: 0 | P73: 0 | Q73: 0 | R73: 0
C74: 52 | D74: 23547.14014 | E74: 4754.124832 | F74: 18793.01531 | G74: 1433406.96 | H74: 803943.5397 | N74: 0 | O74: 0 | P74: 0 | Q74: 0 | R74: 0
C75: 53 | D75: 23547.14014 | E75: 4692.60139 | F75: 18854.53875 | G75: 1414552.422 | H75: 822798.0785 | N75: 0 | O75: 0 | P75: 0 | Q75: 0 | R75: 0
C76: 54 | D76: 23547.14014 | E76: 4630.876536 | F76: 18916.26361 | G76: 1395636.158 | H76: 841714.3421 | N76: 0 | O76: 0 | P76: 0 | Q76: 0 | R76: 0
C77: 55 | D77: 23547.14014 | E77: 4568.949612 | F77: 18978.19053 | G77: 1376657.967 | H77: 860692.5326 | N77: 0 | O77: 0 | P77: 0 | Q77: 0 | R77: 0
C78: 56 | D78: 23547.14014 | E78: 4506.819954 | F78: 19040.32019 | G78: 1357617.647 | H78: 879732.8528 | N78: 0 | O78: 0 | P78: 0 | Q78: 0 | R78: 0
C79: 57 | D79: 23547.14014 | E79: 4444.486901 | F79: 19102.65324 | G79: 1338514.994 | H79: 898835.506 | N79: 0 | O79: 0 | P79: 0 | Q79: 0 | R79: 0
C80: 58 | D80: 23547.14014 | E80: 4381.949785 | F80: 19165.19036 | G80: 1319349.804 | H80: 918000.6964 | N80: 0 | O80: 0 | P80: 0 | Q80: 0 | R80: 0
C81: 59 | D81: 23547.14014 | E81: 4319.207939 | F81: 19227.9322 | G81: 1300121.871 | H81: 937228.6286 | N81: 0 | O81: 0 | P81: 0 | Q81: 0 | R81: 0
C82: 60 | D82: 23547.14014 | E82: 4256.260692 | F82: 19290.87945 | G82: 1280830.992 | H82: 956519.508 | N82: 0 | O82: 0 | P82: 0 | Q82: 0 | R82: 0
C83: 61 | D83: 23547.14014 | E83: 4193.107373 | F83: 19354.03277 | G83: 1261476.959 | H83: 975873.5408 | N83: 0 | O83: 0 | P83: 0 | Q83: 0 | R83: 0
C84: 62 | D84: 23547.14014 | E84: 4129.747306 | F84: 19417.39284 | G84: 1242059.566 | H84: 995290.9336 | N84: 0 | O84: 0 | P84: 0 | Q84: 0 | R84: 0
C85: 63 | D85: 23547.14014 | E85: 4066.179814 | F85: 19480.96033 | G85: 1222578.606 | H85: 1014771.894 | N85: 0 | O85: 0 | P85: 0 | Q85: 0 | R85: 0
C86: 64 | D86: 23547.14014 | E86: 4002.404219 | F86: 19544.73592 | G86: 1203033.87 | H86: 1034316.63 | N86: 0 | O86: 0 | P86: 0 | Q86: 0 | R86: 0
C87: 65 | D87: 23547.14014 | E87: 3938.41984 | F87: 19608.7203 | G87: 1183425.15 | H87: 1053925.35 | N87: 0 | O87: 0 | P87: 0 | Q87: 0 | R87: 0
C88: =IF(C87>=$H$11,"",C87+1) -> 66 | D88: =IF(C88<=$H$11,(IF(C88<=$H$15,IF($H$14="Carència total",0,$G$22*$H$7),(IF($H$14="Carència parcial",$G$22/PV($H$7,$H$11-$H$15,-1),$G$22*(1+$H$7)^$H$15/PV($H$7,$H$11-$H$7,-1))))),0) -> 23547.14014 | E88: =IF(C88<=$H$11,IF(C88<=$H$15,IF($H$14="CarÈncia total",0,G$22*$H$7),G87*$H$7),0) -> 3874.225992 | F88: =IF(C88<=$H$11,D88-E88,0) -> 19672.91415 | G88: =IF(C88<=$H$11,IF(C88<=$H$7,IF($H$14="Carencia total",$G$22*(1+$H$7)^C88,G87-F88),G87-F88),0) -> 1163752.236 | H88: =IF(C88<=$H$11,H87+F88,0) -> 1073598.264 | M88: =IF(M87>=$R$11,"",M87+1) ->  | N88: =IF(M88<=$R$11,(IF(M88<=$R$15,IF($R$14="Carència total",0,$Q$22*$R$7),(IF($R$14="Carència parcial",$Q$22/PV($R$7,$R$11-$R$15,-1),$Q$22*(1+$R$7)^$R$15/PV($R$7,$R$11-$R$7,-1))))),0) -> 0 | O88: =IF(M88<=$R$11,IF(M88<=$R$15,IF($R$14="CarÈncia total",0,Q$22*$R$7),Q87*$R$7),0) -> 0 | P88: =IF(M88<=$H$11,N88-O88,0) -> 0 | Q88: =IF(M88<=$R$11,IF(M88<=$R$7,IF($R$14="Carencia total",$Q$22*(1+$R$7)^M88,Q87-P88),Q87-P88),0) -> 0 | R88: =IF(M88<=$R$11,R87+P88,0) -> 0
C89: 67 | D89: 23547.14014 | E89: 3809.82199 | F89: 19737.31815 | G89: 1144014.918 | H89: 1093335.582 | N89: 0 | O89: 0 | P89: 0 | Q89: 0 | R89: 0
C90: 68 | D90: 23547.14014 | E90: 3745.207147 | F90: 19801.933 | G90: 1124212.985 | H90: 1113137.515 | N90: 0 | O90: 0 | P90: 0 | Q90: 0 | R90: 0
C91: 69 | D91: 23547.14014 | E91: 3680.380771 | F91: 19866.75937 | G91: 1104346.225 | H91: 1133004.275 | N91: 0 | O91: 0 | P91: 0 | Q91: 0 | R91: 0
C92: 70 | D92: 23547.14014 | E92: 3615.342171 | F92: 19931.79797 | G92: 1084414.427 | H92: 1152936.073 | N92: 0 | O92: 0 | P92: 0 | Q92: 0 | R92: 0
C93: 71 | D93: 23547.14014 | E93: 3550.090651 | F93: 19997.04949 | G93: 1064417.378 | H93: 1172933.122 | N93: 0 | O93: 0 | P93: 0 | Q93: 0 | R93: 0
C94: 72 | D94: 23547.14014 | E94: 3484.625514 | F94: 20062.51463 | G94: 1044354.863 | H94: 1192995.637 | N94: 0 | O94: 0 | P94: 0 | Q94: 0 | R94: 0
C95: 73 | D95: 23547.14014 | E95: 3418.946062 | F95: 20128.19408 | G95: 1024226.669 | H95: 1213123.831 | N95: 0 | O95: 0 | P95: 0 | Q95: 0 | R95: 0
C96: 74 | D96: 23547.14014 | E96: 3353.051592 | F96: 20194.08855 | G96: 1004032.58 | H96: 1233317.92 | N96: 0 | O96: 0 | P96: 0 | Q96: 0 | R96: 0
C97: 75 | D97: 23547.14014 | E97: 3286.941401 | F97: 20260.19874 | G97: 983772.3817 | H97: 1253578.118 | N97: 0 | O97: 0 | P97: 0 | Q97: 0 | R97: 0
C98: 76 | D98: 23547.14014 | E98: 3220.614783 | F98: 20326.52536 | G98: 963445.8563 | H98: 1273904.644 | N98: 0 | O98: 0 | P98: 0 | Q98: 0 | R98: 0
C99: 77 | D99: 23547.14014 | E99: 3154.071028 | F99: 20393.06911 | G99: 943052.7872 | H99: 1294297.713 | N99: 0 | O99: 0 | P99: 0 | Q99: 0 | R99: 0
C100: 78 | D100: 23547.14014 | E100: 3087.309426 | F100: 20459.83072 | G100: 922592.9565 | H100: 1314757.544 | N100: 0 | O100: 0 | P100: 0 | Q100: 0 | R100: 0
C101: 79 | D101: 23547.14014 | E101: 3020.329264 | F101: 20526.81088 | G101: 902066.1456 | H101: 1335284.354 | N101: 0 | O101: 0 | P101: 0 | Q101: 0 | R101: 0
C102: 80 | D102: 23547.14014 | E102: 2953.129827 | F102: 20594.01032 | G102: 881472.1353 | H102: 1355878.365 | N102: 0 | O102: 0 | P102: 0 | Q102: 0 | R102: 0
C103: 81 | D103: 23547.14014 | E103: 2885.710396 | F103: 20661.42975 | G103: 860810.7055 | H103: 1376539.794 | N103: 0 | O103: 0 | P103: 0 | Q103: 0 | R103: 0
C104: 82 | D104: 23547.14014 | E104: 2818.070252 | F104: 20729.06989 | G104: 840081.6357 | H104: 1397268.864 | N104: 0 | O104: 0 | P104: 0 | Q104: 0 | R104: 0
C105: 83 | D105: 23547.14014 | E105: 2750.208671 | F105: 20796.93147 | G105: 819284.7042 | H105: 1418065.796 | N105: 0 | O105: 0 | P105: 0 | Q105: 0 | R105: 0
C106: 84 | D106: 23547.14014 | E106: 2682.124929 | F106: 20865.01521 | G106: 798419.689 | H106: 1438930.811 | N106: 0 | O106: 0 | P106: 0 | Q106: 0 | R106: 0
C107: 85 | D107: 23547.14014 | E107: 2613.818299 | F107: 20933.32184 | G107: 777486.3671 | H107: 1459864.133 | N107: 0 | O107: 0 | P107: 0 | Q107: 0 | R107: 0
C108: 86 | D108: 23547.14014 | E108: 2545.28805 | F108: 21001.85209 | G108: 756484.515 | H108: 1480865.985 | N108: 0 | O108: 0 | P108: 0 | Q108: 0 | R108: 0
C109: 87 | D109: 23547.14014 | E109: 2476.533451 | F109: 21070.60669 | G109: 735413.9083 | H109: 1501936.592 | N109: 0 | O109: 0 | P109: 0 | Q109: 0 | R109: 0
C110: 88 | D110: 23547.14014 | E110: 2407.553768 | F110: 21139.58637 | G110: 714274.322 | H110: 1523076.178 | N110: 0 | O110: 0 | P110: 0 | Q110: 0 | R110: 0
C111: 89 | D111: 23547.14014 | E111: 2338.348263 | F111: 21208.79188 | G111: 693065.5301 | H111: 1544284.97 | N111: 0 | O111: 0 | P111: 0 | Q111: 0 | R111: 0
C112: 90 | D112: 23547.14014 | E112: 2268.916198 | F112: 21278.22394 | G112: 671787.3061 | H112: 1565563.194 | N112: 0 | O112: 0 | P112: 0 | Q112: 0 | R112: 0
C113: 91 | D113: 23547.14014 | E113: 2199.256829 | F113: 21347.88331 | G113: 650439.4228 | H113: 1586911.077 | N113: 0 | O113: 0 | P113: 0 | Q113: 0 | R113: 0
C114: 92 | D114: 23547.14014 | E114: 2129.369414 | F114: 21417.77073 | G114: 629021.6521 | H114: 1608328.848 | N114: 0 | O114: 0 | P114: 0 | Q114: 0 | R114: 0
C115: 93 | D115: 23547.14014 | E115: 2059.253206 | F115: 21487.88694 | G115: 607533.7652 | H115: 1629816.735 | N115: 0 | O115: 0 | P115: 0 | Q115: 0 | R115: 0
C116: 94 | D116: 23547.14014 | E116: 1988.907456 | F116: 21558.23269 | G116: 585975.5325 | H116: 1651374.968 | N116: 0 | O116: 0 | P116: 0 | Q116: 0 | R116: 0
C117: 95 | D117: 23547.14014 | E117: 1918.331412 | F117: 21628.80873 | G117: 564346.7238 | H117: 1673003.776 | N117: 0 | O117: 0 | P117: 0 | Q117: 0 | R117: 0
C118: 96 | D118: 23547.14014 | E118: 1847.524321 | F118: 21699.61582 | G118: 542647.1079 | H118: 1694703.392 | N118: 0 | O118: 0 | P118: 0 | Q118: 0 | R118: 0
C119: 97 | D119: 23547.14014 | E119: =IF(C119<=$H$11,IF(C119<=$H$15,IF($H$14="CarÈncia total",0,G$22*$H$7),G118*$H$7),0) -> 1776.485425 | F119: =IF(C119<=$H$11,D119-E119,0) -> 21770.65472 | G119: =IF(C119<=$H$11,IF(C119<=$H$7,IF($H$14="Carencia total",$G$22*(1+$H$7)^C119,G118-F119),G118-F119),0) -> 520876.4532 | H119: =IF(C119<=$H$11,H118+F119,0) -> 1716474.047 | N119: 0 | O119: =IF(M119<=$R$11,IF(M119<=$R$15,IF($R$14="CarÈncia total",0,Q$22*$R$7),Q118*$R$7),0) -> 0 | P119: =IF(M119<=$H$11,N119-O119,0) -> 0 | Q119: =IF(M119<=$R$11,IF(M119<=$R$7,IF($R$14="Carencia total",$Q$22*(1+$R$7)^M119,Q118-P119),Q118-P119),0) -> 0 | R119: =IF(M119<=$R$11,R118+P119,0) -> 0
C120: 98 | D120: =IF(C120<=$H$11,(IF(C120<=$H$15,IF($H$14="Carència total",0,$G$22*$H$7),(IF($H$14="Carència parcial",$G$22/PV($H$7,$H$11-$H$15,-1),$G$22*(1+$H$7)^$H$15/PV($H$7,$H$11-$H$7,-1))))),"") -> 23547.14014 | E120: =IF(C120<=$H$11,IF(C120<=$H$15,IF($H$14="CarÈncia total",0,G$22*$H$7),G119*$H$7),"") -> 1705.213966 | F120: =IF(C120<=$H$11,D120-E120,"") -> 21841.92618 | G120: =IF(C120<=$H$11,IF(C120<=$H$7,IF($H$14="Carencia total",$G$22*(1+$H$7)^C120,G119-F120),G119-F120),"") -> 499034.527 | H120: =IF(C120<=$H$11,H119+F120,"") -> 1738315.973 | N120: =IF(M120<=$R$11,(IF(M120<=$R$15,IF($R$14="Carència total",0,$Q$22*$R$7),(IF($R$14="Carència parcial",$Q$22/PV($R$7,$R$11-$R$15,-1),$Q$22*(1+$R$7)^$R$15/PV($R$7,$R$11-$R$7,-1))))),"") ->  | O120: =IF(M120<=$R$11,IF(M120<=$R$15,IF($R$14="CarÈncia total",0,Q$22*$R$7),Q119*$R$7),"") ->  | P120: =IF(M120<=$H$11,N120-O120,"") ->  | Q120: =IF(M120<=$R$11,IF(M120<=$R$7,IF($R$14="Carencia total",$Q$22*(1+$R$7)^M120,Q119-P120),Q119-P120),"") ->  | R120: =IF(M120<=$R$11,R119+P120,"") -> 
C121: 99 | D121: 23547.14014 | E121: 1633.709184 | F121: 21913.43096 | G121: 477121.0961 | H121: 1760229.404
C122: 100 | D122: 23547.14014 | E122: 1561.970313 | F122: 21985.16983 | G122: 455135.9263 | H122: 1782214.574
C123: 101 | D123: 23547.14014 | E123: 1489.996588 | F123: 22057.14355 | G123: 433078.7827 | H123: 1804271.717
C124: 102 | D124: 23547.14014 | E124: 1417.78724 | F124: 22129.3529 | G124: 410949.4298 | H124: 1826401.07
C125: 103 | D125: 23547.14014 | E125: 1345.341497 | F125: 22201.79865 | G125: 388747.6311 | H125: 1848602.869
C126: 104 | D126: 23547.14014 | E126: 1272.658585 | F126: 22274.48156 | G126: 366473.1496 | H126: 1870877.35
C127: 105 | D127: 23547.14014 | E127: 1199.737729 | F127: 22347.40241 | G127: 344125.7472 | H127: 1893224.753
C128: 106 | D128: 23547.14014 | E128: 1126.578149 | F128: 22420.56199 | G128: 321705.1852 | H128: 1915645.315
C129: 107 | D129: 23547.14014 | E129: 1053.179063 | F129: 22493.96108 | G129: 299211.2241 | H129: 1938139.276
C130: 108 | D130: 23547.14014 | E130: 979.5396876 | F130: 22567.60045 | G130: 276643.6237 | H130: 1960706.876
C131: 109 | D131: 23547.14014 | E131: 905.6592362 | F131: 22641.48091 | G131: 254002.1427 | H131: 1983348.357
C132: 110 | D132: 23547.14014 | E132: 831.5369195 | F132: 22715.60322 | G132: 231286.5395 | H132: 2006063.96
C133: 111 | D133: 23547.14014 | E133: 757.1719455 | F133: 22789.9682 | G133: 208496.5713 | H133: 2028853.929
C134: 112 | D134: 23547.14014 | E134: 682.56352 | F134: 22864.57662 | G134: 185631.9947 | H134: 2051718.505
C135: 113 | D135: 23547.14014 | E135: 607.7108459 | F135: 22939.4293 | G135: 162692.5654 | H135: 2074657.935
C136: 114 | D136: 23547.14014 | E136: 532.6131236 | F136: 23014.52702 | G136: 139678.0384 | H136: 2097672.462
C137: 115 | D137: 23547.14014 | E137: 457.269551 | F137: 23089.87059 | G137: 116588.1678 | H137: 2120762.332
C138: 116 | D138: 23547.14014 | E138: 381.6793231 | F138: 23165.46082 | G138: 93422.70698 | H138: 2143927.793
C139: 117 | D139: 23547.14014 | E139: 305.8416324 | F139: 23241.29851 | G139: 70181.40847 | H139: 2167169.092
C140: 118 | D140: 23547.14014 | E140: 229.7556689 | F140: 23317.38447 | G140: 46864.024 | H140: 2190486.476
C141: 119 | D141: 23547.14014 | E141: 153.4206197 | F141: 23393.71952 | G141: 23470.30447 | H141: 2213880.196
C142: 120 | D142: 23547.14014 | E142: 76.83566945 | F142: 23470.30447 | G142: -4.925823305e-09 | H142: 2237350.5
D151: =IF(C151<=$H$11,(IF(C151<=$H$15,IF($H$14="Carència total",0,$G$22*$H$7),(IF($H$14="Carència parcial",$G$22/PV($H$7,$H$11-$H$15,-1),$G$22*(1+$H$7)^$H$15/PV($H$7,$H$11-$H$7,-1))))),"") ->  | E151: =IF(C151<=$H$11,IF(C151<=$H$15,IF($H$14="CarÈncia total",0,G$22*$H$7),G150*$H$7),"") ->  | G151: =IF(C151<=$H$11,IF(C151<=$H$7,IF($H$14="Carencia total",$G$22*(1+$H$7)^C151,G150-F151),G150-F151),"") -> 
C152: =IF(C151>=$H$11,"",C151+1) ->  | F152: =IF(C152<=$H$11,D152-E152,"") ->  | H152: =IF(C152<=$H$11,H151+F152,"") ->  | M152: =IF(M151>=$R$11,"",M151+1) ->  | N152: =IF(M152<=$R$11,(IF(M152<=$R$15,IF($R$14="Carència total",0,$Q$22*$R$7),(IF($R$14="Carència parcial",$Q$22/PV($R$7,$R$11-$R$15,-1),$Q$22*(1+$R$7)^$R$15/PV($R$7,$R$11-$R$7,-1))))),"") ->  | O152: =IF(M152<=$R$11,IF(M152<=$R$15,IF($R$14="CarÈncia total",0,Q$22*$R$7),Q151*$R$7),"") ->  | P152: =IF(M152<=$H$11,N152-O152,"") ->  | Q152: =IF(M152<=$R$11,IF(M152<=$R$7,IF($R$14="Carencia total",$Q$22*(1+$R$7)^M152,Q151-P152),Q151-P152),"") ->  | R152: =IF(M152<=$R$11,R151+P152,"") -> 
D215: =IF(C215<=$H$11,(IF(C215<=$H$15,IF($H$14="Carència total",0,$G$22*$H$7),(IF($H$14="Carència parcial",$G$22/PV($H$7,$H$11-$H$15,-1),$G$22*(1+$H$7)^$H$15/PV($H$7,$H$11-$H$7,-1))))),"") ->  | E215: =IF(C215<=$H$11,IF(C215<=$H$15,IF($H$14="CarÈncia total",0,G$22*$H$7),G214*$H$7),"") ->  | G215: =IF(C215<=$H$11,IF(C215<=$H$7,IF($H$14="Carencia total",$G$22*(1+$H$7)^C215,G214-F215),G214-F215),"") -> 
C216: =IF(C215>=$H$11,"",C215+1) ->  | F216: =IF(C216<=$H$11,D216-E216,"") ->  | H216: =IF(C216<=$H$11,H215+F216,"") ->  | M216: =IF(M215>=$R$11,"",M215+1) ->  | N216: =IF(M216<=$R$11,(IF(M216<=$R$15,IF($R$14="Carència total",0,$Q$22*$R$7),(IF($R$14="Carència parcial",$Q$22/PV($R$7,$R$11-$R$15,-1),$Q$22*(1+$R$7)^$R$15/PV($R$7,$R$11-$R$7,-1))))),"") ->  | O216: =IF(M216<=$R$11,IF(M216<=$R$15,IF($R$14="CarÈncia total",0,Q$22*$R$7),Q215*$R$7),"") ->  | P216: =IF(M216<=$H$11,N216-O216,"") ->  | Q216: =IF(M216<=$R$11,IF(M216<=$R$7,IF($R$14="Carencia total",$Q$22*(1+$R$7)^M216,Q215-P216),Q215-P216),"") ->  | R216: =IF(M216<=$R$11,R215+P216,"") -> 
D279: =IF(C279<=$H$11,(IF(C279<=$H$15,IF($H$14="Carència total",0,$G$22*$H$7),(IF($H$14="Carència parcial",$G$22/PV($H$7,$H$11-$H$15,-1),$G$22*(1+$H$7)^$H$15/PV($H$7,$H$11-$H$7,-1))))),"") ->  | E279: =IF(C279<=$H$11,IF(C279<=$H$15,IF($H$14="CarÈncia total",0,G$22*$H$7),G278*$H$7),"") ->  | G279: =IF(C279<=$H$11,IF(C279<=$H$7,IF($H$14="Carencia total",$G$22*(1+$H$7)^C279,G278-F279),G278-F279),"") -> 
C280: =IF(C279>=$H$11,"",C279+1) ->  | F280: =IF(C280<=$H$11,D280-E280,"") ->  | H280: =IF(C280<=$H$11,H279+F280,"") ->  | M280: =IF(M279>=$R$11,"",M279+1) ->  | N280: =IF(M280<=$R$11,(IF(M280<=$R$15,IF($R$14="Carència total",0,$Q$22*$R$7),(IF($R$14="Carència parcial",$Q$22/PV($R$7,$R$11-$R$15,-1),$Q$22*(1+$R$7)^$R$15/PV($R$7,$R$11-$R$7,-1))))),"") ->  | O280: =IF(M280<=$R$11,IF(M280<=$R$15,IF($R$14="CarÈncia total",0,Q$22*$R$7),Q279*$R$7),"") ->  | P280: =IF(M280<=$H$11,N280-O280,"") ->  | Q280: =IF(M280<=$R$11,IF(M280<=$R$7,IF($R$14="Carencia total",$Q$22*(1+$R$7)^M280,Q279-P280),Q279-P280),"") ->  | R280: =IF(M280<=$R$11,R279+P280,"") -> 
D343: =IF(C343<=$H$11,(IF(C343<=$H$15,IF($H$14="Carència total",0,$G$22*$H$7),(IF($H$14="Carència parcial",$G$22/PV($H$7,$H$11-$H$15,-1),$G$22*(1+$H$7)^$H$15/PV($H$7,$H$11-$H$7,-1))))),"") ->  | E343: =IF(C343<=$H$11,IF(C343<=$H$15,IF($H$14="CarÈncia total",0,G$22*$H$7),G342*$H$7),"") ->  | G343: =IF(C343<=$H$11,IF(C343<=$H$7,IF($H$14="Carencia total",$G$22*(1+$H$7)^C343,G342-F343),G342-F343),"") -> 
C344: =IF(C343>=$H$11,"",C343+1) ->  | F344: =IF(C344<=$H$11,D344-E344,"") ->  | H344: =IF(C344<=$H$11,H343+F344,"") ->  | M344: =IF(M343>=$R$11,"",M343+1) ->  | N344: =IF(M344<=$R$11,(IF(M344<=$R$15,IF($R$14="Carència total",0,$Q$22*$R$7),(IF($R$14="Carència parcial",$Q$22/PV($R$7,$R$11-$R$15,-1),$Q$22*(1+$R$7)^$R$15/PV($R$7,$R$11-$R$7,-1))))),"") ->  | O344: =IF(M344<=$R$11,IF(M344<=$R$15,IF($R$14="CarÈncia total",0,Q$22*$R$7),Q343*$R$7),"") ->  | P344: =IF(M344<=$H$11,N344-O344,"") ->  | Q344: =IF(M344<=$R$11,IF(M344<=$R$7,IF($R$14="Carencia total",$Q$22*(1+$R$7)^M344,Q343-P344),Q343-P344),"") ->  | R344: =IF(M344<=$R$11,R343+P344,"") -> 
D407: =IF(C407<=$H$11,(IF(C407<=$H$15,IF($H$14="Carència total",0,$G$22*$H$7),(IF($H$14="Carència parcial",$G$22/PV($H$7,$H$11-$H$15,-1),$G$22*(1+$H$7)^$H$15/PV($H$7,$H$11-$H$7,-1))))),"") ->  | E407: =IF(C407<=$H$11,IF(C407<=$H$15,IF($H$14="CarÈncia total",0,G$22*$H$7),G406*$H$7),"") ->  | G407: =IF(C407<=$H$11,IF(C407<=$H$7,IF($H$14="Carencia total",$G$22*(1+$H$7)^C407,G406-F407),G406-F407),"") -> 
C408: =IF(C407>=$H$11,"",C407+1) ->  | F408: =IF(C408<=$H$11,D408-E408,"") ->  | H408: =IF(C408<=$H$11,H407+F408,"") ->  | M408: =IF(M407>=$R$11,"",M407+1) ->  | N408: =IF(M408<=$R$11,(IF(M408<=$R$15,IF($R$14="Carència total",0,$Q$22*$R$7),(IF($R$14="Carència parcial",$Q$22/PV($R$7,$R$11-$R$15,-1),$Q$22*(1+$R$7)^$R$15/PV($R$7,$R$11-$R$7,-1))))),"") ->  | O408: =IF(M408<=$R$11,IF(M408<=$R$15,IF($R$14="CarÈncia total",0,Q$22*$R$7),Q407*$R$7),"") ->  | P408: =IF(M408<=$H$11,N408-O408,"") ->  | Q408: =IF(M408<=$R$11,IF(M408<=$R$7,IF($R$14="Carencia total",$Q$22*(1+$R$7)^M408,Q407-P408),Q407-P408),"") ->  | R408: =IF(M408<=$R$11,R407+P408,"") -> 
D471: =IF(C471<=$H$11,(IF(C471<=$H$15,IF($H$14="Carència total",0,$G$22*$H$7),(IF($H$14="Carència parcial",$G$22/PV($H$7,$H$11-$H$15,-1),$G$22*(1+$H$7)^$H$15/PV($H$7,$H$11-$H$7,-1))))),"") ->  | E471: =IF(C471<=$H$11,IF(C471<=$H$15,IF($H$14="CarÈncia total",0,G$22*$H$7),G470*$H$7),"") ->  | G471: =IF(C471<=$H$11,IF(C471<=$H$7,IF($H$14="Carencia total",$G$22*(1+$H$7)^C471,G470-F471),G470-F471),"") -> 
C472: =IF(C471>=$H$11,"",C471+1) ->  | F472: =IF(C472<=$H$11,D472-E472,"") ->  | H472: =IF(C472<=$H$11,H471+F472,"") ->  | M472: =IF(M471>=$R$11,"",M471+1) ->  | N472: =IF(M472<=$R$11,(IF(M472<=$R$15,IF($R$14="Carència total",0,$Q$22*$R$7),(IF($R$14="Carència parcial",$Q$22/PV($R$7,$R$11-$R$15,-1),$Q$22*(1+$R$7)^$R$15/PV($R$7,$R$11-$R$7,-1))))),"") ->  | O472: =IF(M472<=$R$11,IF(M472<=$R$15,IF($R$14="CarÈncia total",0,Q$22*$R$7),Q471*$R$7),"") ->  | P472: =IF(M472<=$H$11,N472-O472,"") ->  | Q472: =IF(M472<=$R$11,IF(M472<=$R$7,IF($R$14="Carencia total",$Q$22*(1+$R$7)^M472,Q471-P472),Q471-P472),"") ->  | R472: =IF(M472<=$R$11,R471+P472,"") -> 
C495: =IF(C494>=$H$11,"",C494+1) ->  | E495: =IF(C495<=$H$11,IF(C495<=$H$15,IF($H$14="Carencia total",0,G$22*$H$7),G494*$H$7),"") ->  | F495: =IF(C495<=$H$11,D495-E495,"") ->  | H495: =IF(C495<=$H$11,H494+F495,"") -> 

Sheet Plan de RRHH (4)
A2: =+'INFO INICIAL'!C2 -> Macia Batle Winery | B2: PLAN DE RECURSOS HUMANOS
A5: CATEGORÍA PROFESIONAL trabajadores cuenta ajena | B5: Número de trabajadores | C5: Sueldo bruto anual | D5: Nº pagas | E5: Sueldo bruto mensual | F5: % Seguridad social | G5: Importe anual seguridad social | H5: Total Coste anual de la empresa
A6: RECEPCIONISTAS | B6: 5 | C6: 16800 | D6: 12 | E6: =+(B6*C6)/12 -> 7000 | F6: 0.3164 | G6: =C6*F6*B6 -> 26577.6 | H6: =+(B6*C6)+G6 -> 110577.6
A7: BOTONES / AYUDANTES RECEPCIÓN | B7: 3 | C7: 14400 | D7: 12 | E7: 3600 | F7: 0.3164 | G7: 13668.48 | H7: 56868.48
A8: JEFE DE RECEPCIÓN | B8: 1 | C8: 19200 | D8: 12 | E8: 1600 | F8: 0.3164 | G8: 6074.88 | H8: 25274.88
A9: DIRECTOR | B9: 1 | C9: 24000 | D9: 12 | E9: 2000 | F9: 0.3164 | G9: 7593.6 | H9: 31593.6
A10: GEX | B10: 1 | C10: 19200 | D10: 12 | E10: 1600 | F10: 0.3164 | G10: 6074.88 | H10: 25274.88
A11: COMMUNITY MANAGER | B11: 1 | C11: 19200 | D11: 12 | E11: 1600 | F11: 0.3164 | G11: 6074.88 | H11: 25274.88
A12: CHEF | B12: 1 | C12: 24000 | D12: 12 | E12: 2000 | F12: 0.3164 | G12: 7593.6 | H12: 31593.6
A13: COCINEROS | B13: 3 | C13: 18000 | D13: 12 | E13: 4500 | F13: 0.3164 | G13: 17085.6 | H13: 71085.6
A14: AYUDANTE COCINA | B14: 4 | C14: 16800 | D14: 12 | E14: 5600 | F14: 0.3164 | G14: 21262.08 | H14: 88462.08
A15: MAITRE | B15: 1 | C15: 18000 | D15: 12 | E15: 1500 | F15: 0.3164 | G15: 5695.2 | H15: =+(B15*C15)+G15 -> 23695.2
A16: CAMAREROS BAR Y COMEDOR | B16: 9 | C16: 16800 | D16: 12 | E16: 12600 | F16: 0.3164 | G16: =C16*F16*B16 -> 47839.68 | H16: 199039.68
A17: AYUDANTE CAMARERO | B17: 10 | C17: 14400 | D17: 12 | E17: =+(B17*C17)/12 -> 12000 | F17: 0.3164 | G17: 45561.6 | H17: 189561.6
A18: CAMARERA DE PISOS | B18: 10 | C18: 14400 | D18: 12 | E18: 12000 | F18: 0.3164 | G18: 45561.6 | H18: 189561.6
A19: JEFE BAR Y COMEDOR | B19: 1 | C19: 19200 | D19: 12 | E19: 1600 | F19: 0.3164 | G19: 6074.88 | H19: 25274.88
A20: GOBERNANTA | B20: 1 | C20: 19200 | D20: 12 | E20: 1600 | F20: 0.3164 | G20: 6074.88 | H20: 25274.88
A21: JEFE ACTIVIDADES | B21: 1 | C21: 18000 | D21: 12 | E21: 1500 | F21: 0.3164 | G21: 5695.2 | H21: 23695.2
A22: TECNICO MANTENIMIENTO | B22: 2 | C22: 18000 | D22: 12 | E22: 3000 | F22: 0.3164 | G22: 11390.4 | H22: 47390.4
A23: TOTALS | B23: =SUM(B6:B22) -> 55 | C23: =SUM(C6:C22) -> 309600 | E23: =SUM(E6:E22) -> 75300 | G23: =SUM(G6:G22) -> 285899.04 | H23: =SUM(H6:H22) -> 1189499.04
A26: RETRIBUCIÓN PROMOTORES | B26: Sueldo bruto mensual | C26: Sueldo bruto anual | D26: Nº Pagas | E26: Cuota Autónomo MES 1 | F26: Cuota Autónomo MES 2 | G26: Cuota Autónomo MES 3 | H26: Cuota Autónomo MES 4 | I26: Cuota Autónomo MES 5 | J26: Cuota Autónomo MES 6 | K26: Cuota Autónomo MES 7 | L26: Cuota Autónomo MES 8 | M26: Cuota Autónomo MES 9 | N26: Cuota Autónomo MES 10 | O26: Cuota Autónomo MES 11 | P26: Cuota Autónomo MES 12 | Q26: Pago autónomo año 1 | R26: Pago autónomo año 2 | S26: Pago autónomo año 3
A27: MASAJISTA SPA 1 | B27: 1400 | C27: =+B27*D27 -> 16800 | D27: 12 | E27: 53.07 | F27: 53.07 | G27: 53.07 | H27: 53.07 | I27: 53.07 | J27: 53.07 | K27: 131.36 | L27: 131.36 | M27: 131.36 | N27: 131.36 | O27: 131.36 | P27: 131.36 | Q27: =SUM(E27:P27) -> 1106.58 | R27: 2199.36 | S27: 2199.36
A28: MASAJISTA SPA 2 | B28: 1400 | C28: =+B28*D28 -> 16800 | D28: 12 | E28: 53.07 | F28: 53.07 | G28: 53.07 | H28: 53.07 | I28: 53.07 | J28: 53.07 | K28: 131.36 | L28: 131.36 | M28: 131.36 | N28: 131.36 | O28: 131.36 | P28: 131.36 | Q28: =SUM(E28:P28) -> 1106.58 | R28: 2199.36 | S28: 2199.36
A29: MASAJISTA SPA3 | B29: 1400 | C29: =+B29*D29 -> 16800 | D29: 12 | E29: 53.07 | F29: 53.07 | G29: 53.07 | H29: 53.07 | I29: 53.07 | J29: 53.07 | K29: 131.36 | L29: 131.36 | M29: 131.36 | N29: 131.36 | O29: 131.36 | P29: 131.36 | Q29: 1106.58 | R29: 2199.36 | S29: 2199.36
B30: 0 | C30: =+B30*D30 -> 0 | D30: 0 | Q30: 0 | R30: 0 | S30: 0
B31: 0 | C31: =+B31*D31 -> 0 | D31: 0 | Q31: 0 | R31: 0 | S31: 0
A32: TOTALES | B32: =SUM(B27:B31) -> 4200 | C32: =SUM(C27:C31) -> 50400 | E32: =SUM(E27:E31) -> 159.21 | F32: =SUM(F27:F31) -> 159.21 | G32: 159.21 | H32: 159.21 | I32: 159.21 | J32: 159.21 | K32: 394.08 | L32: 394.08 | M32: 394.08 | N32: 394.08 | O32: 394.08 | P32: 394.08 | Q32: =SUM(Q27:Q31) -> 3319.74 | R32: =SUM(R27:R31) -> 6598.08 | S32: =SUM(S27:S31) -> 6598.08
E34: AÑO 1 | F34: AÑO 2 | G34: AÑO 3
B35: Media mensual de pago de los autónomos | E35: =+Q32/12 -> 276.645 | F35: =+R32/12 -> 549.84 | G35: =+S32/12 -> 549.84
A39: Observaciones:
A40: * Para el cálculo de las cuotas de autónomos con la nueva Ley 14/2013 de fomento de emprendedores e internacionalización, se establecen unas bonificaciones, que sobre las bases de cotización mínimas tienen el siguiente coste de forma resumida para el 2014:
A42: Criterios | C42: 1 a 6 meses | D42: 7 a 12 meses | E42: 13 a 18 meses | F42: 19 a 30 meses | G42: 20 a 48 meses | H42: 48 a 54 meses
A43: Autónomo de 30 años o más que se den de alta inicial en el RETA o no hayan estado de alta en los 5 años anteriores a la nueva alta, siempre que no tengan contratados a trabajadores por cuenta ajena. Aplicable también a los socios trabajadores de cooperativas de trabajo asociado. | C43: 0% de bonificación --> tarifa plana de 53,07 € | D43: 30% de bonificación con un coste estimado de 131,36 € | E43: 30% de bonificación con un coste estimado de 183,55 €
A48: Hombres menores de 30 y mujeres menores de 35 | F48: 183.28
A49: Autónomos con discapacidad igual o superior al 33% que causen alta inicial en el RETA. Aplicable también a los socios trabajadores de cooperativas de trabajo asociado. | C49: 80% de bonificación | D49: Bonificación del 50%
A51: Autónomos con discapacidad igual o superior al 33% menor de 35 años que causen alta inicial en el RETA o no alta los 5 años anteriores a la nueva alta, siempre que no tengan contratados a trabajadores por cuenta ajena. Aplicable también a los socios trabajadores de cooperativas de trabajo asociado. | C51: 80% de bonificación | E51: Bonificaciones equivalentes al 50% de la cuota de autónomos durante los 4 años siguientes.
A55: * Para ver toda la información sobre las bonificaciones y el cálculo de la cuota de autónomos pueden visitar el siguiente enlace: http://www.seg-social.es/Internet_1/Trabajadores/CotizacionRecaudaci10777/Basesytiposdecotiza36537/index.htm
A57: * Se debe añadir manualmente el pago de autónomos en el plan de tesorería, en función del inicio de la actividad.

Sheet Cuadro de Amortización (5)
A2: =+'INFO INICIAL'!C2 -> Macia Batle Winery | B2: CUADRO DE AMORTIZACIÓN
B5: AÑO 1 | D5: AÑO 2 | F5: AÑO 3 | H5: AÑO 1 | J5: AÑO 2 | L5: AÑO 3
A6: Inmovilizado Intangible | B6: Inversión | D6: Inversión | F6: Inversión | H6: Dotación | J6: Dotación | L6: Dotación | M6: % Dotac. | N6: Años
A7: Gastos de constitución | B7: =+'Plan de Inversión (1)'!B8 -> 1000 | D7: =+'Plan de Inversión (1)'!F8 -> 0 | F7: =+'Plan de Inversión (1)'!J8 -> 0 | H7: =+B7*M7 -> 200 | J7: =+H7+(D7*M7) -> 200 | L7: =+J7+(F7*M7) -> 200 | M7: 0.2 | N7: =100/M7/100 -> 5
A8: Gastos de investigación y desarrollo | B8: =+'Plan de Inversión (1)'!B9 -> 0 | D8: =+'Plan de Inversión (1)'!F9 -> 0 | F8: =+'Plan de Inversión (1)'!J9 -> 0 | H8: =+B8*M8 -> 0 | J8: =+H8+(D8*M8) -> 0 | L8: =+J8+(F8*M8) -> 0 | M8: 0.2 | N8: 5
A9: Concesiones Administrativas | B9: =+'Plan de Inversión (1)'!B10 -> 0 | D9: =+'Plan de Inversión (1)'!F10 -> 0 | F9: =+'Plan de Inversión (1)'!J10 -> 0 | H9: 0 | J9: 0 | L9: 0 | M9: 0.1 | N9: 10
A10: Propiedad Industrial y Patentes | B10: =+'Plan de Inversión (1)'!B11 -> 0 | D10: =+'Plan de Inversión (1)'!F11 -> 0 | F10: =+'Plan de Inversión (1)'!J11 -> 0 | H10: 0 | J10: 0 | L10: 0 | M10: 0.1 | N10: 10
A11: Derechos de Traspaso | B11: =+'Plan de Inversión (1)'!B12 -> 0 | D11: =+'Plan de Inversión (1)'!F12 -> 0 | F11: =+'Plan de Inversión (1)'!J12 -> 0 | H11: 0 | J11: 0 | L11: 0 | M11: 0.1 | N11: 10
A12: Aplicaciones informáticas (software) | B12: =+'Plan de Inversión (1)'!B13 -> 4000 | D12: =+'Plan de Inversión (1)'!F13 -> 0 | F12: =+'Plan de Inversión (1)'!J13 -> 0 | H12: 800 | J12: 800 | L12: 800 | M12: 0.2 | N12: 5
A13: Otro inmovilizado intangible | B13: ='Plan de Inversión (1)'!B14 -> 0 | D13: =+'Plan de Inversión (1)'!F14 -> 0 | F13: =+'Plan de Inversión (1)'!J14 -> 0 | H13: 0 | J13: 0 | L13: 0 | M13: 0.2 | N13: 5
A14: Total Inmovilizado Intangible | B14: =SUM(B7:B13) -> 5000 | D14: =SUM(D7:D13) -> 0 | F14: =SUM(F7:F13) -> 0 | H14: =SUM(H7:H13) -> 1000 | J14: =SUM(J7:J13) -> 1000 | L14: =SUM(L7:L13) -> 1000
A16: Inmovilizado Material | B16: Inversión | D16: Inversión | F16: Inversión | H16: Dotación | J16: Dotación | L16: Dotación | M16: % Dotac. | N16: Años
A17: Terrenos | B17: =+'Plan de Inversión (1)'!B16 -> 0 | D17: =+'Plan de Inversión (1)'!F16 -> 0 | F17: =+'Plan de Inversión (1)'!J16 -> 0 | H17: =+B17*M17 -> 0 | J17: =+H17+(D17*M17) -> 0 | L17: =+J17+(F17*M17) -> 0 | M17: 0 | N17: 0
A18: Edificios y construcciones | B18: =+'Plan de Inversión (1)'!B17 -> 3742150 | D18: =+'Plan de Inversión (1)'!F17 -> 0 | F18: =+'Plan de Inversión (1)'!J17 -> 0 | H18: =+B18*M18 -> 74843 | J18: 74843 | L18: 74843 | M18: 0.02 | N18: =100/M18/100 -> 50
A19: Instalaciones Técnicas | B19: =+'Plan de Inversión (1)'!B18 -> 1000000 | D19: =+'Plan de Inversión (1)'!F18 -> 0 | F19: =+'Plan de Inversión (1)'!J18 -> 0 | H19: 70000 | J19: 70000 | L19: 70000 | M19: 0.07 | N19: =100/M19/100 -> 14.28571429
A20: Maquinaria y utillaje | B20: =+'Plan de Inversión (1)'!B19 -> 100000 | D20: =+'Plan de Inversión (1)'!F19 -> 0 | F20: =+'Plan de Inversión (1)'!J19 -> 0 | H20: =+B20*M20 -> 10000 | J20: =+H20+(D20*M20) -> 10000 | L20: =+J20+(F20*M20) -> 10000 | M20: 0.1 | N20: =100/M20/100 -> 10
A21: Mobiliario | B21: =+'Plan de Inversión (1)'!B20 -> 200000 | D21: =+'Plan de Inversión (1)'!F20 -> 0 | F21: =+'Plan de Inversión (1)'!J20 -> 0 | H21: =+B21*M21 -> 20000 | J21: =+H21+(D21*M21) -> 20000 | L21: =+J21+(F21*M21) -> 20000 | M21: 0.1 | N21: =100/M21/100 -> 10
A22: Equipo informático (hardware) | B22: =+'Plan de Inversión (1)'!B21 -> 400000 | D22: =+'Plan de Inversión (1)'!F21 -> 0 | F22: =+'Plan de Inversión (1)'!J21 -> 0 | H22: 52000 | J22: 52000 | L22: 52000 | M22: 0.13 | N22: 7.692307692
A23: Elementos de Transporte | B23: =+'Plan de Inversión (1)'!B22 -> 50000 | D23: =+'Plan de Inversión (1)'!F22 -> 0 | F23: =+'Plan de Inversión (1)'!J22 -> 0 | H23: 5000 | J23: 5000 | L23: 5000 | M23: 0.1 | N23: 10
A24: Otro inmovilizado material | B24: =+'Plan de Inversión (1)'!B23 -> 50000 | D24: =+'Plan de Inversión (1)'!F23 -> 0 | F24: =+'Plan de Inversión (1)'!J23 -> 0 | H24: 5000 | J24: 5000 | L24: 5000 | M24: 0.1 | N24: 10
A25: Total Inmovilizado Tangible | B25: =+'Plan de Inversión (1)'!B24 -> 0 | D25: ='Plan de Inversión (1)'!F24 -> 0 | F25: =+'Plan de Inversión (1)'!J24 -> 0 | H25: 0 | J25: 0 | L25: 0 | M25: 0.1 | N25: 10
A26: Total Inmovilizado Material | B26: =SUM(B17:B25) -> 5542150 | D26: =SUM(D17:D25) -> 0 | F26: =SUM(F17:F25) -> 0 | H26: =SUM(H17:H25) -> 236843 | J26: =SUM(J17:J25) -> 236843 | L26: =SUM(L17:L25) -> 236843
A28: TOTAL INMOVILIZADO | B28: =+B26+B14 -> 5547150 | D28: =+D26+D14 -> 0 | F28: =+F14+F26 -> 0 | H28: =+H14+H26 -> 237843 | J28: =+J14+J26 -> 237843 | L28: =+L14+L26 -> 237843
A31: De acuerdo con la reforma fiscal del Impuesto sobre Sociedades para 2015, se simplifican las tablas de amortización, estableciendo en una sola tabla el coeficiente lineal máximo y el período máximo de amortización de los elementos del inmovilizado material, intangible y de las inversiones inmobiliarias, sin especificación de los distintos tipos de actividades de las empresas.

Sheet Líneas de Negocio (6)
A2: =+'INFO INICIAL'!C2 -> Macia Batle Winery | B2: LINEAS DE NEGOCIO / PRODUCTOS
A5: NOMBRE DE LAS LÍNEAS DE NEGOCIO | B5: PRODUCTO/SERVICIO | C5: Tipo de IVA Repercutido | D5: PRECIO VENTA sin IVA | E5: PRECIO VENTA CON IVA | F5: Costes directos sin IVA | G5: IVA Soportado | H5: Costes directos con IVA | I5: Margen = Pv - Pc | AG5: Producte
A6: HABITACIÓN DBL AD | B6: Servei | C6: 0.1 | D6: 160 | E6: =+(D6*C6)+D6 -> 176 | F6: 10 | G6: 0.1 | H6: =+(F6*G6)+F6 -> 11 | I6: =+(D6-F6)/D6 -> 0.9375 | AG6: Servei
A7: JUNIOR SUITE AD | B7: Servei | C7: 0.1 | D7: 250 | E7: 275 | F7: 12 | G7: 0.1 | H7: 13.2 | I7: 0.952 | AG7: 0.21
A8: SUITE AD | B8: Servei | C8: 0.1 | D8: 350 | E8: 385 | F8: 15 | G8: 0.1 | H8: 16.5 | I8: 0.9571428571 | AG8: 0.1
A9: HABITACIÓN DBL MP | B9: Servei | C9: 0.1 | D9: 210 | E9: 231 | F9: 20 | G9: 0.1 | H9: 22 | I9: 0.9047619048 | AG9: 0.04
A10: JUNIOR SUITE MP | B10: Servei | C10: 0.1 | D10: 300 | E10: 330 | F10: 22 | G10: 0.1 | H10: 24.2 | I10: 0.9266666667 | AG10: 0.262
A11: SUITE MP | B11: Servei | C11: 0.1 | D11: 400 | E11: =+(D11*C11)+D11 -> 440 | F11: 25 | G11: 0.1 | H11: =+(F11*G11)+F11 -> 27.5 | I11: =+(D11-F11)/D11 -> 0.9375 | AG11: 0.114
A12: RUTA BODEGAS CON CATAS DE VINO | B12: Servei | C12: 0.1 | D12: 50 | E12: 55 | F12: 10 | G12: 0.1 | H12: 11 | I12: 0.8
A13: RUTA ENOGASTRONOMICA EN TREN | B13: Servei | C13: 0.1 | D13: 100 | E13: 110 | F13: 15 | G13: 0.1 | H13: 16.5 | I13: 0.85
A14: TALLERES MARIDAJE O COCINA TRADICIONAL | B14: Servei | C14: 0.1 | D14: 40 | E14: 44 | F14: 6 | G14: 0.1 | H14: 6.6 | I14: 0.85
A15: PAQUETES SPA RELAX / DETOX / SHINE | B15: Servei | C15: 0.1 | D15: 100 | E15: 110 | F15: 10 | G15: 0.1 | H15: 11 | I15: 0.9
A16: TALLER ELABORACIÓN DE VINOS | B16: Servei | C16: 0.1 | D16: 60 | E16: 66 | F16: 6 | G16: 0.1 | H16: 6.6 | I16: 0.9
A17: PAQUETE SAN VALENTIN | B17: Servei | C17: 0.1 | D17: 200 | E17: 220 | F17: 40 | G17: 0.1 | H17: 44 | I17: 0.8
AG18: 0.045
AG19: 0.0075
A21: Tasa crecimiento ventas previstas para Año 2: | C21: 0 | E21: Inflación precios prevista año 1: | H21: 0.012
A22: Tasa crecimiento ventas previstas para Año 3: | C22: 0 | E22: Inflación precios prevista año 2: | H22: 0.034
A25: Tasa crecimiento costes previstos para Año 2: | C25: 0
A26: Tasa crecimiento costes previstos para Año 3: | C26: 0
A31: Observaciones:
A32: * Las cantidades vendidas de cada línea de negocio se debe poner manualmente en la hoja de ventas y costes variables.
A34: * Es muy importante explicar cómo se han calculado los ingresos y compararlos con la competencia.
A36: Para más información sobre los tipos impositivos de IVA mirar el siguiente enlace: http://www.agenciatributaria.es/static_files/AEAT/Contenidos_Comunes/La_Agencia_Tributaria/Segmentos_Usuarios/Empresas_y_profesionales/Novedades_IVA_2012/Nuevos_tipos_IVA_es_es.pdf

Sheet Ventas y Costes Variables (7)
A2: =+'INFO INICIAL'!C2 -> Macia Batle Winery | B2: PRESUPUESTO DE VENTAS
Q4: 1 | R4: Enero
A5: VENDES | C5: =LOOKUP(IF(($Q$19+1)<13,$Q$19+1,$Q$19+1-12),$Q$4:$R$16) -> Enero | D5: Febrero | E5: =LOOKUP(IF(($Q$19+3)<13,$Q$19+3,$Q$19+3-12),$Q$4:$R$16) -> Marzo | F5: =LOOKUP(IF(($Q$19+4)<13,$Q$19+4,$Q$19+4-12),$Q$4:$R$16) -> Abril | G5: =LOOKUP(IF(($Q$19+5)<13,$Q$19+5,$Q$19+5-12),$Q$4:$R$16) -> Mayo | H5: =LOOKUP(IF(($Q$19+6)<13,$Q$19+6,$Q$19+6-12),$Q$4:$R$16) -> Junio | I5: =LOOKUP(IF(($Q$19+7)<13,$Q$19+7,$Q$19+7-12),$Q$4:$R$16) -> Julio | J5: =LOOKUP(IF(($Q$19+8)<13,$Q$19+8,$Q$19+8-12),$Q$4:$R$16) -> Agosto | K5: =LOOKUP(IF(($Q$19+9)<13,$Q$19+9,$Q$19+9-12),$Q$4:$R$16) -> Septiembre | L5: =LOOKUP(IF(($Q$19+10)<13,$Q$19+10,$Q$19+10-12),$Q$4:$R$16) -> Octubre | M5: =LOOKUP(IF(($Q$19+11)<13,$Q$19+11,$Q$19+11-12),$Q$4:$R$16) -> Noviembre | N5: =LOOKUP(IF(($Q$19+12)<13,$Q$19+12,$Q$19+12-12),$Q$4:$R$16) -> Diciembre | O5: AÑO 1 | P5: AÑO 2 | Q5: 3 | R5: Marzo | S5: AÑO 3
A6: =+'Líneas de Negocio (6)'!A6 -> HABITACIÓN DBL AD | B6: Nº unidades producto o servicio (A) | C6: 600 | D6: 560 | E6: 620 | F6: 600 | G6: 620 | H6: 600 | I6: 620 | J6: 620 | K6: 600 | L6: 620 | M6: 600 | N6: 620 | O6: =SUM(C6:N6) -> 7280 | P6: =O6+(O6*$C$60) -> 7280 | Q6: 4 | R6: Abril | S6: =O6+(O6*$C$61) -> 7280
B7: Precio Venta Unitario | C7: =+'Líneas de Negocio (6)'!D6 -> 160 | D7: =+'Líneas de Negocio (6)'!D6 -> 160 | E7: =+'Líneas de Negocio (6)'!D6 -> 160 | F7: =+'Líneas de Negocio (6)'!D6 -> 160 | G7: =+'Líneas de Negocio (6)'!D6 -> 160 | H7: =+'Líneas de Negocio (6)'!D6 -> 160 | I7: =+'Líneas de Negocio (6)'!D6 -> 160 | J7: =+'Líneas de Negocio (6)'!D6 -> 160 | K7: =+'Líneas de Negocio (6)'!D6 -> 160 | L7: =+'Líneas de Negocio (6)'!D6 -> 160 | M7: =+'Líneas de Negocio (6)'!D6 -> 160 | N7: =+'Líneas de Negocio (6)'!D6 -> 160 | O7: =C7 -> 160 | P7: =O7+(O7*$H$60) -> 161.92 | Q7: 5 | R7: Mayo | S7: =P7+(P7*$H$61) -> 167.42528
B8: Ingresos producto o servicio (A) | C8: =+C6*C7 -> 96000 | D8: =+D6*D7 -> 89600 | E8: 99200 | F8: 96000 | G8: 99200 | H8: 96000 | I8: 99200 | J8: 99200 | K8: 96000 | L8: 99200 | M8: 96000 | N8: 99200 | O8: =SUM(C8:N8) -> 1164800 | P8: =+P6*P7 -> 1178777.6 | Q8: 6 | R8: Junio | S8: =+S6*S7 -> 1218856.038
B9: IVA repercutido producto (A) | C9: =+C8*'Líneas de Negocio (6)'!C6 -> 9600 | D9: =+D8*'Líneas de Negocio (6)'!C6 -> 8960 | E9: =+E8*'Líneas de Negocio (6)'!C6 -> 9920 | F9: =+F8*'Líneas de Negocio (6)'!C6 -> 9600 | G9: =+G8*'Líneas de Negocio (6)'!C6 -> 9920 | H9: =+H8*'Líneas de Negocio (6)'!C6 -> 9600 | I9: =+I8*'Líneas de Negocio (6)'!C6 -> 9920 | J9: =+J8*'Líneas de Negocio (6)'!C6 -> 9920 | K9: =+K8*'Líneas de Negocio (6)'!C6 -> 9600 | L9: =+L8*'Líneas de Negocio (6)'!C6 -> 9920 | M9: =+M8*'Líneas de Negocio (6)'!C6 -> 9600 | N9: =+N8*'Líneas de Negocio (6)'!C6 -> 9920 | O9: =SUM(C9:N9) -> 116480 | P9: =+P8*'Líneas de Negocio (6)'!C6 -> 117877.76 | Q9: =+Q8*'Líneas de Negocio (6)'!D6 -> 960 | R9: =+R8*'Líneas de Negocio (6)'!E6 ->  | S9: =+S8*'Líneas de Negocio (6)'!C6 -> 121885.6038
A10: =+'Líneas de Negocio (6)'!A7 -> JUNIOR SUITE AD | B10: Nº unidades producto o servicio (B) | C10: 90 | D10: 84 | E10: 93 | F10: 90 | G10: 93 | H10: 90 | I10: 93 | J10: 93 | K10: 90 | L10: 93 | M10: 90 | N10: 93 | O10: =SUM(C10:N10) -> 1092 | P10: =O10+(O10*$C$60) -> 1092 | Q10: 7 | R10: Julio | S10: =O10+(O10*$C$61) -> 1092
B11: Precio Venta Unitario | C11: =+'Líneas de Negocio (6)'!$D7 -> 250 | D11: =+'Líneas de Negocio (6)'!$D7 -> 250 | E11: =+'Líneas de Negocio (6)'!$D7 -> 250 | F11: =+'Líneas de Negocio (6)'!$D7 -> 250 | G11: =+'Líneas de Negocio (6)'!$D7 -> 250 | H11: =+'Líneas de Negocio (6)'!$D7 -> 250 | I11: =+'Líneas de Negocio (6)'!$D7 -> 250 | J11: =+'Líneas de Negocio (6)'!$D7 -> 250 | K11: =+'Líneas de Negocio (6)'!$D7 -> 250 | L11: =+'Líneas de Negocio (6)'!$D7 -> 250 | M11: =+'Líneas de Negocio (6)'!$D7 -> 250 | N11: =+'Líneas de Negocio (6)'!$D7 -> 250 | O11: =C11 -> 250 | P11: =O11+(O11*$H$60) -> 253 | Q11: 8 | R11: Agosto | S11: =P11+(P11*$H$61) -> 261.602
B12: Ingresos producto o servicio (B) | C12: =+C10*C11 -> 22500 | D12: 21000 | E12: 23250 | F12: 22500 | G12: 23250 | H12: 22500 | I12: 23250 | J12: 23250 | K12: 22500 | L12: 23250 | M12: 22500 | N12: 23250 | O12: =SUM(C12:N12) -> 273000 | P12: =+P10*P11 -> 276276 | Q12: 9 | R12: Septiembre | S12: =+S10*S11 -> 285669.384
B13: IVA repercutido producto (B) | C13: =+C12*'Líneas de Negocio (6)'!C7 -> 2250 | D13: =+D12*'Líneas de Negocio (6)'!C7 -> 2100 | E13: =+E12*'Líneas de Negocio (6)'!C7 -> 2325 | F13: =+F12*'Líneas de Negocio (6)'!C7 -> 2250 | G13: =+G12*'Líneas de Negocio (6)'!C7 -> 2325 | H13: =+H12*'Líneas de Negocio (6)'!C7 -> 2250 | I13: =+I12*'Líneas de Negocio (6)'!C7 -> 2325 | J13: =+J12*'Líneas de Negocio (6)'!C7 -> 2325 | K13: =+K12*'Líneas de Negocio (6)'!C7 -> 2250 | L13: =+L12*'Líneas de Negocio (6)'!C7 -> 2325 | M13: =+M12*'Líneas de Negocio (6)'!C7 -> 2250 | N13: =+N12*'Líneas de Negocio (6)'!C7 -> 2325 | O13: =SUM(C13:N13) -> 27300 | P13: =+P12*'Líneas de Negocio (6)'!C7 -> 27627.6 | S13: =+S12*'Líneas de Negocio (6)'!C7 -> 28566.9384
A14: =+'Líneas de Negocio (6)'!A8 -> SUITE AD | B14: Nº unidades producto o servicio (C ) | C14: 60 | D14: 56 | E14: 62 | F14: 60 | G14: 62 | H14: 60 | I14: 62 | J14: 62 | K14: 60 | L14: 62 | M14: 60 | N14: 62 | O14: =SUM(C14:N14) -> 728 | P14: =O14+(O14*$C$60) -> 728 | Q14: 10 | R14: Octubre | S14: =O14+(O14*$C$61) -> 728
B15: Precio Venta Unitario | C15: =+'Líneas de Negocio (6)'!$D8 -> 350 | D15: =+'Líneas de Negocio (6)'!$D8 -> 350 | E15: =+'Líneas de Negocio (6)'!$D8 -> 350 | F15: =+'Líneas de Negocio (6)'!$D8 -> 350 | G15: =+'Líneas de Negocio (6)'!$D8 -> 350 | H15: =+'Líneas de Negocio (6)'!$D8 -> 350 | I15: =+'Líneas de Negocio (6)'!$D8 -> 350 | J15: =+'Líneas de Negocio (6)'!$D8 -> 350 | K15: =+'Líneas de Negocio (6)'!$D8 -> 350 | L15: =+'Líneas de Negocio (6)'!$D8 -> 350 | M15: =+'Líneas de Negocio (6)'!$D8 -> 350 | N15: =+'Líneas de Negocio (6)'!$D8 -> 350 | O15: =C15 -> 350 | P15: =O15+(O15*$H$60) -> 354.2 | Q15: 11 | R15: Noviembre | S15: =P15+(P15*$H$61) -> 366.2428
B16: Ingresos producto o servicio (C) | C16: =+C14*C15 -> 21000 | D16: =+D14*D15 -> 19600 | E16: 21700 | F16: 21000 | G16: 21700 | H16: 21000 | I16: 21700 | J16: 21700 | K16: 21000 | L16: 21700 | M16: 21000 | N16: 21700 | O16: =SUM(C16:N16) -> 254800 | P16: =+P14*P15 -> 257857.6 | Q16: 12 | R16: Diciembre | S16: =+S14*S15 -> 266624.7584
B17: IVA repercutido producto (C) | C17: =+C16*'Líneas de Negocio (6)'!C8 -> 2100 | D17: =+D16*'Líneas de Negocio (6)'!C8 -> 1960 | E17: =+E16*'Líneas de Negocio (6)'!C8 -> 2170 | F17: =+F16*'Líneas de Negocio (6)'!C8 -> 2100 | G17: =+G16*'Líneas de Negocio (6)'!C8 -> 2170 | H17: =+H16*'Líneas de Negocio (6)'!C8 -> 2100 | I17: =+I16*'Líneas de Negocio (6)'!C8 -> 2170 | J17: =+J16*'Líneas de Negocio (6)'!C8 -> 2170 | K17: =+K16*'Líneas de Negocio (6)'!C8 -> 2100 | L17: =+L16*'Líneas de Negocio (6)'!C8 -> 2170 | M17: =+M16*'Líneas de Negocio (6)'!C8 -> 2100 | N17: =+N16*'Líneas de Negocio (6)'!C8 -> 2170 | O17: =SUM(C17:N17) -> 25480 | P17: =+P16*'Líneas de Negocio (6)'!C8 -> 25785.76 | S17: =+S16*'Líneas de Negocio (6)'!C8 -> 26662.47584
A18: =+'Líneas de Negocio (6)'!A9 -> HABITACIÓN DBL MP | B18: Nº unidades producto o servicio (D) | C18: 600 | D18: 560 | E18: 620 | F18: 600 | G18: 620 | H18: 600 | I18: 620 | J18: 620 | K18: 600 | L18: 620 | M18: 600 | N18: 620 | O18: =SUM(C18:N18) -> 7280 | P18: =O18+(O18*$C$60) -> 7280 | Q18: 1 | S18: =O18+(O18*$C$61) -> 7280
B19: Precio Venta Unitario | C19: =+'Líneas de Negocio (6)'!$D9 -> 210 | D19: =+'Líneas de Negocio (6)'!$D9 -> 210 | E19: =+'Líneas de Negocio (6)'!$D9 -> 210 | F19: =+'Líneas de Negocio (6)'!$D9 -> 210 | G19: =+'Líneas de Negocio (6)'!$D9 -> 210 | H19: =+'Líneas de Negocio (6)'!$D9 -> 210 | I19: =+'Líneas de Negocio (6)'!$D9 -> 210 | J19: =+'Líneas de Negocio (6)'!$D9 -> 210 | K19: =+'Líneas de Negocio (6)'!$D9 -> 210 | L19: =+'Líneas de Negocio (6)'!$D9 -> 210 | M19: =+'Líneas de Negocio (6)'!$D9 -> 210 | N19: =+'Líneas de Negocio (6)'!$D9 -> 210 | O19: =C19 -> 210 | P19: =O19+(O19*$H$60) -> 212.52 | S19: =P19+(P19*$H$61) -> 219.74568
B20: Ingresos producto o servicio (D) | C20: =+C19*C18 -> 126000 | D20: =+D19*D18 -> 117600 | E20: 130200 | F20: 126000 | G20: 130200 | H20: 126000 | I20: 130200 | J20: 130200 | K20: 126000 | L20: 130200 | M20: 126000 | N20: 130200 | O20: =SUM(C20:N20) -> 1528800 | P20: =+P18*P19 -> 1547145.6 | S20: =+S18*S19 -> 1599748.55
B21: IVA repercutido producto (D) | C21: =+C20*'Líneas de Negocio (6)'!C9 -> 12600 | D21: =+D20*'Líneas de Negocio (6)'!C9 -> 11760 | E21: =+E20*'Líneas de Negocio (6)'!C9 -> 13020 | F21: =+F20*'Líneas de Negocio (6)'!C9 -> 12600 | G21: =+G20*'Líneas de Negocio (6)'!C9 -> 13020 | H21: =+H20*'Líneas de Negocio (6)'!C9 -> 12600 | I21: =+I20*'Líneas de Negocio (6)'!C9 -> 13020 | J21: =+J20*'Líneas de Negocio (6)'!C9 -> 13020 | K21: =+K20*'Líneas de Negocio (6)'!C9 -> 12600 | L21: =+L20*'Líneas de Negocio (6)'!C9 -> 13020 | M21: =+M20*'Líneas de Negocio (6)'!C9 -> 12600 | N21: =+N20*'Líneas de Negocio (6)'!C9 -> 13020 | O21: =SUM(C21:N21) -> 152880 | P21: =+P20*'Líneas de Negocio (6)'!C9 -> 154714.56 | S21: =+S20*'Líneas de Negocio (6)'!C9 -> 159974.855
A22: =+'Líneas de Negocio (6)'!A10 -> JUNIOR SUITE MP | B22: Nº unidades producto o servicio (E) | C22: 90 | D22: 84 | E22: 93 | F22: 90 | G22: 93 | H22: 90 | I22: 93 | J22: 93 | K22: 90 | L22: 93 | M22: 90 | N22: 93 | O22: =SUM(C22:N22) -> 1092 | P22: =O22+(O22*$C$60) -> 1092 | Q22: 1 | S22: =O22+(O22*$C$61) -> 1092
B23: Precio Venta Unitario | C23: =+'Líneas de Negocio (6)'!$D10 -> 300 | D23: =+'Líneas de Negocio (6)'!$D10 -> 300 | E23: =+'Líneas de Negocio (6)'!$D10 -> 300 | F23: =+'Líneas de Negocio (6)'!$D10 -> 300 | G23: =+'Líneas de Negocio (6)'!$D10 -> 300 | H23: =+'Líneas de Negocio (6)'!$D10 -> 300 | I23: =+'Líneas de Negocio (6)'!$D10 -> 300 | J23: =+'Líneas de Negocio (6)'!$D10 -> 300 | K23: =+'Líneas de Negocio (6)'!$D10 -> 300 | L23: =+'Líneas de Negocio (6)'!$D10 -> 300 | M23: =+'Líneas de Negocio (6)'!$D10 -> 300 | N23: =+'Líneas de Negocio (6)'!$D10 -> 300 | O23: =C23 -> 300 | P23: =O23+(O23*$H$60) -> 303.6 | S23: =P23+(P23*$H$61) -> 313.9224
B24: Ingresos producto o servicio (E) | C24: =+C23*C22 -> 27000 | D24: =+D23*D22 -> 25200 | E24: 27900 | F24: 27000 | G24: 27900 | H24: 27000 | I24: 27900 | J24: 27900 | K24: 27000 | L24: 27900 | M24: 27000 | N24: 27900 | O24: =SUM(C24:N24) -> 327600 | P24: =+P22*P23 -> 331531.2 | S24: =+S22*S23 -> 342803.2608
B25: IVA repercutido producto o servicio (E) | C25: =+C24*'Líneas de Negocio (6)'!C10 -> 2700 | D25: =+D24*'Líneas de Negocio (6)'!C10 -> 2520 | E25: =+E24*'Líneas de Negocio (6)'!C10 -> 2790 | F25: =+F24*'Líneas de Negocio (6)'!C10 -> 2700 | G25: =+G24*'Líneas de Negocio (6)'!C10 -> 2790 | H25: =+H24*'Líneas de Negocio (6)'!C10 -> 2700 | I25: =+I24*'Líneas de Negocio (6)'!C10 -> 2790 | J25: =+J24*'Líneas de Negocio (6)'!C10 -> 2790 | K25: =+K24*'Líneas de Negocio (6)'!C10 -> 2700 | L25: =+L24*'Líneas de Negocio (6)'!C10 -> 2790 | M25: =+M24*'Líneas de Negocio (6)'!C10 -> 2700 | N25: =+N24*'Líneas de Negocio (6)'!C10 -> 2790 | O25: =SUM(C25:N25) -> 32760 | P25: =+P24*'Líneas de Negocio (6)'!C10 -> 33153.12 | S25: =+S24*'Líneas de Negocio (6)'!C10 -> 34280.32608
A26: =+'Líneas de Negocio (6)'!A11 -> SUITE MP | B26: Nº unidades producto o servicio (F) | C26: 60 | D26: 56 | E26: 62 | F26: 60 | G26: 62 | H26: 60 | I26: 62 | J26: 62 | K26: 60 | L26: 62 | M26: 60 | N26: 62 | O26: =SUM(C26:N26) -> 728 | P26: =O26+(O26*$C$60) -> 728 | Q26: 1 | S26: =O26+(O26*$C$61) -> 728
B27: Precio Venta Unitario | C27: ='Líneas de Negocio (6)'!$D$11 -> 400 | D27: ='Líneas de Negocio (6)'!$D$11 -> 400 | E27: ='Líneas de Negocio (6)'!$D$11 -> 400 | F27: ='Líneas de Negocio (6)'!$D$11 -> 400 | G27: ='Líneas de Negocio (6)'!$D$11 -> 400 | H27: ='Líneas de Negocio (6)'!$D$11 -> 400 | I27: ='Líneas de Negocio (6)'!$D$11 -> 400 | J27: ='Líneas de Negocio (6)'!$D$11 -> 400 | K27: ='Líneas de Negocio (6)'!$D$11 -> 400 | L27: ='Líneas de Negocio (6)'!$D$11 -> 400 | M27: ='Líneas de Negocio (6)'!$D$11 -> 400 | N27: ='Líneas de Negocio (6)'!$D$11 -> 400 | O27: ='Líneas de Negocio (6)'!$D$11 -> 400 | P27: ='Líneas de Negocio (6)'!$D$11 -> 400 | Q27: ='Líneas de Negocio (6)'!$D$11 -> 400 | R27: ='Líneas de Negocio (6)'!$D$11 -> 400 | S27: ='Líneas de Negocio (6)'!$D$11 -> 400
B28: Ingresos producto o servicio (F) | C28: =+C27*C26 -> 24000 | D28: =+D27*D26 -> 22400 | E28: 24800 | F28: 24000 | G28: 24800 | H28: 24000 | I28: 24800 | J28: 24800 | K28: 24000 | L28: 24800 | M28: 24000 | N28: 24800 | O28: =SUM(C28:N28) -> 291200 | P28: =+P26*P27 -> 291200 | S28: =+S26*S27 -> 291200
B29: IVA repercutido producto (F) | C29: =+C28*'Líneas de Negocio (6)'!$C$11 -> 2400 | D29: =+D28*'Líneas de Negocio (6)'!$C$11 -> 2240 | E29: =+E28*'Líneas de Negocio (6)'!$C$11 -> 2480 | F29: =+F28*'Líneas de Negocio (6)'!$C$11 -> 2400 | G29: =+G28*'Líneas de Negocio (6)'!$C$11 -> 2480 | H29: =+H28*'Líneas de Negocio (6)'!$C$11 -> 2400 | I29: =+I28*'Líneas de Negocio (6)'!$C$11 -> 2480 | J29: =+J28*'Líneas de Negocio (6)'!$C$11 -> 2480 | K29: =+K28*'Líneas de Negocio (6)'!$C$11 -> 2400 | L29: =+L28*'Líneas de Negocio (6)'!$C$11 -> 2480 | M29: =+M28*'Líneas de Negocio (6)'!$C$11 -> 2400 | N29: =+N28*'Líneas de Negocio (6)'!$C$11 -> 2480 | O29: =+O28*'Líneas de Negocio (6)'!$C$11 -> 29120 | P29: =+P28*'Líneas de Negocio (6)'!$C$11 -> 29120 | Q29: =+Q28*'Líneas de Negocio (6)'!$C$11 -> 0 | R29: =+R28*'Líneas de Negocio (6)'!$C$11 -> 0 | S29: =+S28*'Líneas de Negocio (6)'!$C$11 -> 29120
A30: =+'Líneas de Negocio (6)'!A12 -> RUTA BODEGAS CON CATAS DE VINO | B30: Nº unidades producto o servicio (F) | C30: 300 | D30: 300 | E30: 300 | F30: 400 | G30: 400 | H30: 300 | I30: 300 | J30: 200 | K30: 200 | L30: 300 | M30: 300 | N30: 300 | O30: =SUM(C30:N30) -> 3600 | P30: =O30+(O30*$C$60) -> 3600 | Q30: 1 | S30: =O30+(O30*$C$61) -> 3600
B31: Precio Venta Unitario | C31: ='Líneas de Negocio (6)'!$D$12 -> 50 | D31: ='Líneas de Negocio (6)'!$D$12 -> 50 | E31: ='Líneas de Negocio (6)'!$D$12 -> 50 | F31: ='Líneas de Negocio (6)'!$D$12 -> 50 | G31: ='Líneas de Negocio (6)'!$D$12 -> 50 | H31: ='Líneas de Negocio (6)'!$D$12 -> 50 | I31: ='Líneas de Negocio (6)'!$D$12 -> 50 | J31: ='Líneas de Negocio (6)'!$D$12 -> 50 | K31: ='Líneas de Negocio (6)'!$D$12 -> 50 | L31: ='Líneas de Negocio (6)'!$D$12 -> 50 | M31: ='Líneas de Negocio (6)'!$D$12 -> 50 | N31: ='Líneas de Negocio (6)'!$D$12 -> 50 | O31: ='Líneas de Negocio (6)'!$D$12 -> 50 | P31: ='Líneas de Negocio (6)'!$D$12 -> 50 | Q31: ='Líneas de Negocio (6)'!$D$12 -> 50 | R31: ='Líneas de Negocio (6)'!$D$12 -> 50 | S31: ='Líneas de Negocio (6)'!$D$12 -> 50
B32: Ingresos producto o servicio (F) | C32: =+C31*C30 -> 15000 | D32: =+D31*D30 -> 15000 | E32: 15000 | F32: 20000 | G32: 20000 | H32: 15000 | I32: 15000 | J32: 10000 | K32: 10000 | L32: 15000 | M32: 15000 | N32: 15000 | O32: =SUM(C32:N32) -> 180000 | P32: =+P30*P31 -> 180000 | S32: =+S30*S31 -> 180000
B33: IVA repercutido producto (F) | C33: =+C32*'Líneas de Negocio (6)'!$C$11 -> 1500 | D33: =+D32*'Líneas de Negocio (6)'!$C$11 -> 1500 | E33: =+E32*'Líneas de Negocio (6)'!$C$11 -> 1500 | F33: =+F32*'Líneas de Negocio (6)'!$C$11 -> 2000 | G33: =+G32*'Líneas de Negocio (6)'!$C$11 -> 2000 | H33: =+H32*'Líneas de Negocio (6)'!$C$11 -> 1500 | I33: =+I32*'Líneas de Negocio (6)'!$C$11 -> 1500 | J33: =+J32*'Líneas de Negocio (6)'!$C$11 -> 1000 | K33: =+K32*'Líneas de Negocio (6)'!$C$11 -> 1000 | L33: =+L32*'Líneas de Negocio (6)'!$C$11 -> 1500 | M33: =+M32*'Líneas de Negocio (6)'!$C$11 -> 1500 | N33: =+N32*'Líneas de Negocio (6)'!$C$11 -> 1500 | O33: =+O32*'Líneas de Negocio (6)'!$C$11 -> 18000 | P33: =+P32*'Líneas de Negocio (6)'!$C$11 -> 18000 | Q33: =+Q32*'Líneas de Negocio (6)'!$C$11 -> 0 | R33: =+R32*'Líneas de Negocio (6)'!$C$11 -> 0 | S33: =+S32*'Líneas de Negocio (6)'!$C$11 -> 18000
A34: =+'Líneas de Negocio (6)'!A13 -> RUTA ENOGASTRONOMICA EN TREN | B34: Nº unidades producto o servicio (F) | C34: 100 | D34: 100 | E34: 150 | F34: 150 | G34: 150 | H34: 150 | I34: 150 | J34: 100 | K34: 100 | L34: 150 | M34: 100 | N34: 100 | O34: =SUM(C34:N34) -> 1500 | P34: =O34+(O34*$C$60) -> 1500 | Q34: 1 | S34: =O34+(O34*$C$61) -> 1500
B35: Precio Venta Unitario | C35: ='Líneas de Negocio (6)'!$D$13 -> 100 | D35: ='Líneas de Negocio (6)'!$D$13 -> 100 | E35: ='Líneas de Negocio (6)'!$D$13 -> 100 | F35: ='Líneas de Negocio (6)'!$D$13 -> 100 | G35: ='Líneas de Negocio (6)'!$D$13 -> 100 | H35: ='Líneas de Negocio (6)'!$D$13 -> 100 | I35: ='Líneas de Negocio (6)'!$D$13 -> 100 | J35: ='Líneas de Negocio (6)'!$D$13 -> 100 | K35: ='Líneas de Negocio (6)'!$D$13 -> 100 | L35: ='Líneas de Negocio (6)'!$D$13 -> 100 | M35: ='Líneas de Negocio (6)'!$D$13 -> 100 | N35: ='Líneas de Negocio (6)'!$D$13 -> 100 | O35: ='Líneas de Negocio (6)'!$D$13 -> 100 | P35: ='Líneas de Negocio (6)'!$D$13 -> 100 | Q35: ='Líneas de Negocio (6)'!$D$13 -> 100 | R35: ='Líneas de Negocio (6)'!$D$13 -> 100 | S35: ='Líneas de Negocio (6)'!$D$13 -> 100
B36: Ingresos producto o servicio (F) | C36: =+C35*C34 -> 10000 | D36: =+D35*D34 -> 10000 | E36: 15000 | F36: 15000 | G36: 15000 | H36: 15000 | I36: 15000 | J36: 10000 | K36: 10000 | L36: 15000 | M36: 10000 | N36: 10000 | O36: =SUM(C36:N36) -> 150000 | P36: =+P34*P35 -> 150000 | S36: =+S34*S35 -> 150000
B37: IVA repercutido producto (F) | C37: =+C36*'Líneas de Negocio (6)'!$C$11 -> 1000 | D37: =+D36*'Líneas de Negocio (6)'!$C$11 -> 1000 | E37: =+E36*'Líneas de Negocio (6)'!$C$11 -> 1500 | F37: =+F36*'Líneas de Negocio (6)'!$C$11 -> 1500 | G37: =+G36*'Líneas de Negocio (6)'!$C$11 -> 1500 | H37: =+H36*'Líneas de Negocio (6)'!$C$11 -> 1500 | I37: =+I36*'Líneas de Negocio (6)'!$C$11 -> 1500 | J37: =+J36*'Líneas de Negocio (6)'!$C$11 -> 1000 | K37: =+K36*'Líneas de Negocio (6)'!$C$11 -> 1000 | L37: =+L36*'Líneas de Negocio (6)'!$C$11 -> 1500 | M37: =+M36*'Líneas de Negocio (6)'!$C$11 -> 1000 | N37: =+N36*'Líneas de Negocio (6)'!$C$11 -> 1000 | O37: =+O36*'Líneas de Negocio (6)'!$C$11 -> 15000 | P37: =+P36*'Líneas de Negocio (6)'!$C$11 -> 15000 | Q37: =+Q36*'Líneas de Negocio (6)'!$C$11 -> 0 | R37: =+R36*'Líneas de Negocio (6)'!$C$11 -> 0 | S37: =+S36*'Líneas de Negocio (6)'!$C$11 -> 15000
A38: =+'Líneas de Negocio (6)'!A14 -> TALLERES MARIDAJE O COCINA TRADICIONAL | B38: Nº unidades producto o servicio (F) | C38: 120 | D38: 120 | E38: 120 | F38: 160 | G38: 160 | H38: 160 | I38: 160 | J38: 160 | K38: 130 | L38: 130 | M38: 130 | N38: 130 | O38: =SUM(C38:N38) -> 1680 | P38: =O38+(O38*$C$60) -> 1680 | Q38: 1 | S38: =O38+(O38*$C$61) -> 1680
B39: Precio Venta Unitario | C39: ='Líneas de Negocio (6)'!$D$14 -> 40 | D39: ='Líneas de Negocio (6)'!$D$14 -> 40 | E39: ='Líneas de Negocio (6)'!$D$14 -> 40 | F39: ='Líneas de Negocio (6)'!$D$14 -> 40 | G39: ='Líneas de Negocio (6)'!$D$14 -> 40 | H39: ='Líneas de Negocio (6)'!$D$14 -> 40 | I39: ='Líneas de Negocio (6)'!$D$14 -> 40 | J39: ='Líneas de Negocio (6)'!$D$14 -> 40 | K39: ='Líneas de Negocio (6)'!$D$14 -> 40 | L39: ='Líneas de Negocio (6)'!$D$14 -> 40 | M39: ='Líneas de Negocio (6)'!$D$14 -> 40 | N39: ='Líneas de Negocio (6)'!$D$14 -> 40 | O39: ='Líneas de Negocio (6)'!$D$14 -> 40 | P39: ='Líneas de Negocio (6)'!$D$14 -> 40 | Q39: ='Líneas de Negocio (6)'!$D$14 -> 40 | R39: ='Líneas de Negocio (6)'!$D$14 -> 40 | S39: ='Líneas de Negocio (6)'!$D$14 -> 40
B40: Ingresos producto o servicio (F) | C40: =+C39*C38 -> 4800 | D40: =+D39*D38 -> 4800 | E40: 4800 | F40: 6400 | G40: 6400 | H40: 6400 | I40: 6400 | J40: 6400 | K40: 5200 | L40: 5200 | M40: 5200 | N40: 5200 | O40: =SUM(C40:N40) -> 67200 | P40: =+P38*P39 -> 67200 | S40: =+S38*S39 -> 67200
B41: IVA repercutido producto (F) | C41: =+C40*'Líneas de Negocio (6)'!$C$11 -> 480 | D41: =+D40*'Líneas de Negocio (6)'!$C$11 -> 480 | E41: =+E40*'Líneas de Negocio (6)'!$C$11 -> 480 | F41: =+F40*'Líneas de Negocio (6)'!$C$11 -> 640 | G41: =+G40*'Líneas de Negocio (6)'!$C$11 -> 640 | H41: =+H40*'Líneas de Negocio (6)'!$C$11 -> 640 | I41: =+I40*'Líneas de Negocio (6)'!$C$11 -> 640 | J41: =+J40*'Líneas de Negocio (6)'!$C$11 -> 640 | K41: =+K40*'Líneas de Negocio (6)'!$C$11 -> 520 | L41: =+L40*'Líneas de Negocio (6)'!$C$11 -> 520 | M41: =+M40*'Líneas de Negocio (6)'!$C$11 -> 520 | N41: =+N40*'Líneas de Negocio (6)'!$C$11 -> 520 | O41: =+O40*'Líneas de Negocio (6)'!$C$11 -> 6720 | P41: =+P40*'Líneas de Negocio (6)'!$C$11 -> 6720 | Q41: =+Q40*'Líneas de Negocio (6)'!$C$11 -> 0 | R41: =+R40*'Líneas de Negocio (6)'!$C$11 -> 0 | S41: =+S40*'Líneas de Negocio (6)'!$C$11 -> 6720
A42: =+'Líneas de Negocio (6)'!A15 -> PAQUETES SPA RELAX / DETOX / SHINE | B42: Nº unidades producto o servicio (F) | C42: 90 | D42: 90 | E42: 90 | F42: 100 | G42: 100 | H42: 120 | I42: 120 | J42: 120 | K42: 100 | L42: 90 | M42: 90 | N42: 90 | O42: =SUM(C42:N42) -> 1200 | P42: =O42+(O42*$C$60) -> 1200 | Q42: 1 | S42: =O42+(O42*$C$61) -> 1200
B43: Precio Venta Unitario | C43: ='Líneas de Negocio (6)'!$D$15 -> 100 | D43: ='Líneas de Negocio (6)'!$D$15 -> 100 | E43: ='Líneas de Negocio (6)'!$D$15 -> 100 | F43: ='Líneas de Negocio (6)'!$D$15 -> 100 | G43: ='Líneas de Negocio (6)'!$D$15 -> 100 | H43: ='Líneas de Negocio (6)'!$D$15 -> 100 | I43: ='Líneas de Negocio (6)'!$D$15 -> 100 | J43: ='Líneas de Negocio (6)'!$D$15 -> 100 | K43: ='Líneas de Negocio (6)'!$D$15 -> 100 | L43: ='Líneas de Negocio (6)'!$D$15 -> 100 | M43: ='Líneas de Negocio (6)'!$D$15 -> 100 | N43: ='Líneas de Negocio (6)'!$D$15 -> 100 | O43: ='Líneas de Negocio (6)'!$D$15 -> 100 | P43: ='Líneas de Negocio (6)'!$D$15 -> 100 | Q43: ='Líneas de Negocio (6)'!$D$15 -> 100 | R43: ='Líneas de Negocio (6)'!$D$15 -> 100 | S43: ='Líneas de Negocio (6)'!$D$15 -> 100
B44: Ingresos producto o servicio (F) | C44: =+C43*C42 -> 9000 | D44: =+D43*D42 -> 9000 | E44: 9000 | F44: 10000 | G44: 10000 | H44: 12000 | I44: 12000 | J44: 12000 | K44: 10000 | L44: 9000 | M44: 9000 | N44: 9000 | O44: =SUM(C44:N44) -> 120000 | P44: =+P42*P43 -> 120000 | S44: =+S42*S43 -> 120000
B45: IVA repercutido producto (F) | C45: =+C44*'Líneas de Negocio (6)'!$C$11 -> 900 | D45: =+D44*'Líneas de Negocio (6)'!$C$11 -> 900 | E45: =+E44*'Líneas de Negocio (6)'!$C$11 -> 900 | F45: =+F44*'Líneas de Negocio (6)'!$C$11 -> 1000 | G45: =+G44*'Líneas de Negocio (6)'!$C$11 -> 1000 | H45: =+H44*'Líneas de Negocio (6)'!$C$11 -> 1200 | I45: =+I44*'Líneas de Negocio (6)'!$C$11 -> 1200 | J45: =+J44*'Líneas de Negocio (6)'!$C$11 -> 1200 | K45: =+K44*'Líneas de Negocio (6)'!$C$11 -> 1000 | L45: =+L44*'Líneas de Negocio (6)'!$C$11 -> 900 | M45: =+M44*'Líneas de Negocio (6)'!$C$11 -> 900 | N45: =+N44*'Líneas de Negocio (6)'!$C$11 -> 900 | O45: =+O44*'Líneas de Negocio (6)'!$C$11 -> 12000 | P45: =+P44*'Líneas de Negocio (6)'!$C$11 -> 12000 | Q45: =+Q44*'Líneas de Negocio (6)'!$C$11 -> 0 | R45: =+R44*'Líneas de Negocio (6)'!$C$11 -> 0 | S45: =+S44*'Líneas de Negocio (6)'!$C$11 -> 12000
A46: =+'Líneas de Negocio (6)'!A16 -> TALLER ELABORACIÓN DE VINOS | B46: Nº unidades producto o servicio (F) | C46: 90 | D46: 90 | E46: 90 | F46: 90 | G46: 60 | H46: 60 | I46: 60 | J46: 60 | K46: 90 | L46: 90 | M46: 90 | N46: 90 | O46: =SUM(C46:N46) -> 960 | P46: =O46+(O46*$C$60) -> 960 | Q46: 1 | S46: =O46+(O46*$C$61) -> 960
B47: Precio Venta Unitario | C47: ='Líneas de Negocio (6)'!$D$16 -> 60 | D47: ='Líneas de Negocio (6)'!$D$16 -> 60 | E47: ='Líneas de Negocio (6)'!$D$16 -> 60 | F47: ='Líneas de Negocio (6)'!$D$16 -> 60 | G47: ='Líneas de Negocio (6)'!$D$16 -> 60 | H47: ='Líneas de Negocio (6)'!$D$16 -> 60 | I47: ='Líneas de Negocio (6)'!$D$16 -> 60 | J47: ='Líneas de Negocio (6)'!$D$16 -> 60 | K47: ='Líneas de Negocio (6)'!$D$16 -> 60 | L47: ='Líneas de Negocio (6)'!$D$16 -> 60 | M47: ='Líneas de Negocio (6)'!$D$16 -> 60 | N47: ='Líneas de Negocio (6)'!$D$16 -> 60 | O47: ='Líneas de Negocio (6)'!$D$16 -> 60 | P47: ='Líneas de Negocio (6)'!$D$16 -> 60 | Q47: ='Líneas de Negocio (6)'!$D$16 -> 60 | R47: ='Líneas de Negocio (6)'!$D$16 -> 60 | S47: ='Líneas de Negocio (6)'!$D$16 -> 60
B48: Ingresos producto o servicio (F) | C48: =+C47*C46 -> 5400 | D48: =+D47*D46 -> 5400 | E48: 5400 | F48: 5400 | G48: 3600 | H48: 3600 | I48: 3600 | J48: 3600 | K48: 5400 | L48: 5400 | M48: 5400 | N48: 5400 | O48: =SUM(C48:N48) -> 57600 | P48: =+P46*P47 -> 57600 | S48: =+S46*S47 -> 57600
B49: IVA repercutido producto (F) | C49: =+C48*'Líneas de Negocio (6)'!$C$11 -> 540 | D49: =+D48*'Líneas de Negocio (6)'!$C$11 -> 540 | E49: =+E48*'Líneas de Negocio (6)'!$C$11 -> 540 | F49: =+F48*'Líneas de Negocio (6)'!$C$11 -> 540 | G49: =+G48*'Líneas de Negocio (6)'!$C$11 -> 360 | H49: =+H48*'Líneas de Negocio (6)'!$C$11 -> 360 | I49: =+I48*'Líneas de Negocio (6)'!$C$11 -> 360 | J49: =+J48*'Líneas de Negocio (6)'!$C$11 -> 360 | K49: =+K48*'Líneas de Negocio (6)'!$C$11 -> 540 | L49: =+L48*'Líneas de Negocio (6)'!$C$11 -> 540 | M49: =+M48*'Líneas de Negocio (6)'!$C$11 -> 540 | N49: =+N48*'Líneas de Negocio (6)'!$C$11 -> 540 | O49: =+O48*'Líneas de Negocio (6)'!$C$11 -> 5760 | P49: =+P48*'Líneas de Negocio (6)'!$C$11 -> 5760 | Q49: =+Q48*'Líneas de Negocio (6)'!$C$11 -> 0 | R49: =+R48*'Líneas de Negocio (6)'!$C$11 -> 0 | S49: =+S48*'Líneas de Negocio (6)'!$C$11 -> 5760
A50: =+'Líneas de Negocio (6)'!A17 -> PAQUETE SAN VALENTIN | B50: Nº unidades producto o servicio (F) | C50: 10 | D50: 40 | E50: 10 | F50: 10 | G50: 10 | H50: 10 | I50: 10 | J50: 10 | K50: 10 | L50: 10 | M50: 10 | N50: 10 | O50: =SUM(C50:N50) -> 150 | P50: =O50+(O50*$C$60) -> 150 | Q50: 1 | S50: =O50+(O50*$C$61) -> 150
B51: Precio Venta Unitario | C51: ='Líneas de Negocio (6)'!$D$17 -> 200 | D51: ='Líneas de Negocio (6)'!$D$17 -> 200 | E51: ='Líneas de Negocio (6)'!$D$17 -> 200 | F51: ='Líneas de Negocio (6)'!$D$17 -> 200 | G51: ='Líneas de Negocio (6)'!$D$17 -> 200 | H51: ='Líneas de Negocio (6)'!$D$17 -> 200 | I51: ='Líneas de Negocio (6)'!$D$17 -> 200 | J51: ='Líneas de Negocio (6)'!$D$17 -> 200 | K51: ='Líneas de Negocio (6)'!$D$17 -> 200 | L51: ='Líneas de Negocio (6)'!$D$17 -> 200 | M51: ='Líneas de Negocio (6)'!$D$17 -> 200 | N51: ='Líneas de Negocio (6)'!$D$17 -> 200 | O51: ='Líneas de Negocio (6)'!$D$17 -> 200 | P51: ='Líneas de Negocio (6)'!$D$17 -> 200 | Q51: ='Líneas de Negocio (6)'!$D$17 -> 200 | R51: ='Líneas de Negocio (6)'!$D$17 -> 200 | S51: ='Líneas de Negocio (6)'!$D$17 -> 200
B52: Ingresos producto o servicio (F) | C52: =+C51*C50 -> 2000 | D52: =+D51*D50 -> 8000 | E52: 2000 | F52: 2000 | G52: 2000 | H52: 2000 | I52: 2000 | J52: 2000 | K52: 2000 | L52: 2000 | M52: 2000 | N52: 2000 | O52: =SUM(C52:N52) -> 30000 | P52: =+P50*P51 -> 30000 | S52: =+S50*S51 -> 30000
B53: IVA repercutido producto (F) | C53: =+C52*'Líneas de Negocio (6)'!$C$11 -> 200 | D53: =+D52*'Líneas de Negocio (6)'!$C$11 -> 800 | E53: =+E52*'Líneas de Negocio (6)'!$C$11 -> 200 | F53: =+F52*'Líneas de Negocio (6)'!$C$11 -> 200 | G53: =+G52*'Líneas de Negocio (6)'!$C$11 -> 200 | H53: =+H52*'Líneas de Negocio (6)'!$C$11 -> 200 | I53: =+I52*'Líneas de Negocio (6)'!$C$11 -> 200 | J53: =+J52*'Líneas de Negocio (6)'!$C$11 -> 200 | K53: =+K52*'Líneas de Negocio (6)'!$C$11 -> 200 | L53: =+L52*'Líneas de Negocio (6)'!$C$11 -> 200 | M53: =+M52*'Líneas de Negocio (6)'!$C$11 -> 200 | N53: =+N52*'Líneas de Negocio (6)'!$C$11 -> 200 | O53: =+O52*'Líneas de Negocio (6)'!$C$11 -> 3000 | P53: =+P52*'Líneas de Negocio (6)'!$C$11 -> 3000 | Q53: =+Q52*'Líneas de Negocio (6)'!$C$11 -> 0 | R53: =+R52*'Líneas de Negocio (6)'!$C$11 -> 0 | S53: =+S52*'Líneas de Negocio (6)'!$C$11 -> 3000
A55: Total Ventas | C55: =+C8+C12+C16+C20+C24+C28 -> 316500 | D55: =+D8+D12+D16+D20+D24+D28 -> 295400 | E55: 327050 | F55: 316500 | G55: 327050 | H55: 316500 | I55: 327050 | J55: 327050 | K55: 316500 | L55: 327050 | M55: 316500 | N55: 327050 | O55: =+O20+O16+O12+O8+O24+O28 -> 3840200 | P55: =+P20+P16+P12+P8+P24+P28 -> 3882788 | Q55: =+Q20+Q16+Q12+Q8+Q24+Q28 -> 27 | R55: =+R20+R16+R12+R8+R24+R28 ->  | S55: =+S20+S16+S12+S8+S24+S28 -> 4004901.992
A57: Total IVA Repercutido por Ventas | C57: =C9+C13+C17+C21+C25+C29 -> 31650 | D57: =D9+D13+D17+D21+D25+D29 -> 29540 | E57: 32705 | F57: 31650 | G57: 32705 | H57: 31650 | I57: 32705 | J57: 32705 | K57: 31650 | L57: 32705 | M57: 31650 | N57: 32705 | O57: =SUM(C57:N57) -> 384020 | P57: =+P9+P13+P17+P21+P25+P29 -> 388278.8 | Q57: =+Q9+Q13+Q17+Q21+Q25+Q29 -> 960 | R57: =+R9+R13+R17+R21+R25+R29 ->  | S57: =+S9+S13+S17+S21+S25+S29 -> 400490.1992
A60: Tasa crecimiento ventas previstas para Año 2: | C60: =+'Líneas de Negocio (6)'!C21 -> 0 | E60: Inflación precios prevista año 1: | H60: =+'Líneas de Negocio (6)'!H21 -> 0.012
A61: Tasa crecimiento ventas previstas para Año 3: | C61: =+'Líneas de Negocio (6)'!C22 -> 0 | E61: Inflación precios prevista año 2: | H61: =+'Líneas de Negocio (6)'!H22 -> 0.034
B63: PRESUPUESTO DE COSTES VARIABLES
A65: COSTES DIRECTOS VARIABLES (a) | C65: =C5 -> Enero | D65: Febrero | E65: Marzo | F65: Abril | G65: Mayo | H65: Junio | I65: Julio | J65: Agosto | K65: Septiembre | L65: Octubre | M65: Noviembre | N65: =+N5 -> Diciembre | O65: AÑO 1 | P65: AÑO 2 | S65: AÑO 3
A66: =+'Líneas de Negocio (6)'!A6 -> HABITACIÓN DBL AD | B66: Precio Coste Directo V. Unitario (A) | C66: =+'Líneas de Negocio (6)'!F6 -> 10 | D66: =+'Líneas de Negocio (6)'!F6 -> 10 | E66: =+'Líneas de Negocio (6)'!F6 -> 10 | F66: =+'Líneas de Negocio (6)'!F6 -> 10 | G66: =+'Líneas de Negocio (6)'!F6 -> 10 | H66: =+'Líneas de Negocio (6)'!F6 -> 10 | I66: =+'Líneas de Negocio (6)'!F6 -> 10 | J66: =+'Líneas de Negocio (6)'!F6 -> 10 | K66: =+'Líneas de Negocio (6)'!F6 -> 10 | L66: =+'Líneas de Negocio (6)'!F6 -> 10 | M66: =+'Líneas de Negocio (6)'!F6 -> 10 | N66: =+'Líneas de Negocio (6)'!F6 -> 10 | O66: =+C66 -> 10 | P66: =+(O66*H108)+O66 -> 10.12 | S66: =+P66+(P66*H109) -> 10.46408
B67: Importe del C. Variable (A) | C67: =C6*C66 -> 6000 | D67: 5600 | E67: 6200 | F67: 6000 | G67: 6200 | H67: 6000 | I67: 6200 | J67: 6200 | K67: 6000 | L67: 6200 | M67: 6000 | N67: 6200 | O67: =SUM(C67:N67) -> 72800 | P67: =+O67+(O67*C$108) -> 72800 | S67: =+O67+(O67*$C$109) -> 72800
B68: IVA soportado producto (A) | C68: =+C67*'Líneas de Negocio (6)'!G6 -> 600 | D68: =+D67*'Líneas de Negocio (6)'!G6 -> 560 | E68: =+E67*'Líneas de Negocio (6)'!G6 -> 620 | F68: =+F67*'Líneas de Negocio (6)'!G6 -> 600 | G68: =+G67*'Líneas de Negocio (6)'!G6 -> 620 | H68: =+H67*'Líneas de Negocio (6)'!G6 -> 600 | I68: =+I67*'Líneas de Negocio (6)'!G6 -> 620 | J68: =+J67*'Líneas de Negocio (6)'!G6 -> 620 | K68: =+K67*'Líneas de Negocio (6)'!G6 -> 600 | L68: =+L67*'Líneas de Negocio (6)'!G6 -> 620 | M68: =+M67*'Líneas de Negocio (6)'!G6 -> 600 | N68: =+N67*'Líneas de Negocio (6)'!G6 -> 620 | O68: =SUM(C68:N68) -> 7280 | P68: =+P67*'Líneas de Negocio (6)'!G6 -> 7280 | S68: =+S67*'Líneas de Negocio (6)'!G6 -> 7280
A69: =+'Líneas de Negocio (6)'!A7 -> JUNIOR SUITE AD | B69: Precio Coste Directo V. Unitario (B) | C69: =+'Líneas de Negocio (6)'!F7 -> 12 | D69: =+'Líneas de Negocio (6)'!F7 -> 12 | E69: =+'Líneas de Negocio (6)'!F7 -> 12 | F69: =+'Líneas de Negocio (6)'!F7 -> 12 | G69: =+'Líneas de Negocio (6)'!F7 -> 12 | H69: =+'Líneas de Negocio (6)'!F7 -> 12 | I69: =+'Líneas de Negocio (6)'!F7 -> 12 | J69: =+'Líneas de Negocio (6)'!F7 -> 12 | K69: =+'Líneas de Negocio (6)'!F7 -> 12 | L69: =+'Líneas de Negocio (6)'!F7 -> 12 | M69: =+'Líneas de Negocio (6)'!F7 -> 12 | N69: =+'Líneas de Negocio (6)'!F7 -> 12 | O69: =+N69 -> 12 | P69: =+O69+(O69*H108) -> 12.144 | S69: =+P69+(P69*H109) -> 12.556896
B70: Importe del C. Variable (B) | C70: =+C69*C10 -> 1080 | D70: 1008 | E70: 1116 | F70: 1080 | G70: 1116 | H70: 1080 | I70: 1116 | J70: 1116 | K70: 1080 | L70: 1116 | M70: 1080 | N70: 1116 | O70: =SUM(C70:N70) -> 13104 | P70: =+(O70*C108)+O70 -> 13104 | S70: =+O70+(O70*C109) -> 13104
B71: IVA soportado producto (B) | C71: =+C70*'Líneas de Negocio (6)'!G7 -> 108 | D71: =+D70*'Líneas de Negocio (6)'!G7 -> 100.8 | E71: =+E70*'Líneas de Negocio (6)'!G7 -> 111.6 | F71: =+F70*'Líneas de Negocio (6)'!G7 -> 108 | G71: =+G70*'Líneas de Negocio (6)'!G7 -> 111.6 | H71: =+H70*'Líneas de Negocio (6)'!G7 -> 108 | I71: =+I70*'Líneas de Negocio (6)'!G7 -> 111.6 | J71: =+J70*'Líneas de Negocio (6)'!G7 -> 111.6 | K71: =+K70*'Líneas de Negocio (6)'!G7 -> 108 | L71: =+L70*'Líneas de Negocio (6)'!G7 -> 111.6 | M71: =+M70*'Líneas de Negocio (6)'!G7 -> 108 | N71: =+N70*'Líneas de Negocio (6)'!G7 -> 111.6 | O71: =SUM(C71:N71) -> 1310.4 | P71: =+P70*'Líneas de Negocio (6)'!G7 -> 1310.4 | S71: =+S70*'Líneas de Negocio (6)'!G7 -> 1310.4
A72: =+'Líneas de Negocio (6)'!A8 -> SUITE AD | B72: Precio Coste Directo V.Unitario (C) | C72: =+'Líneas de Negocio (6)'!F8 -> 15 | D72: =+'Líneas de Negocio (6)'!F8 -> 15 | E72: =+'Líneas de Negocio (6)'!F8 -> 15 | F72: =+'Líneas de Negocio (6)'!F8 -> 15 | G72: =+'Líneas de Negocio (6)'!F8 -> 15 | H72: =+'Líneas de Negocio (6)'!F8 -> 15 | I72: =+'Líneas de Negocio (6)'!F8 -> 15 | J72: =+'Líneas de Negocio (6)'!F8 -> 15 | K72: =+'Líneas de Negocio (6)'!F8 -> 15 | L72: =+'Líneas de Negocio (6)'!F8 -> 15 | M72: =+'Líneas de Negocio (6)'!F8 -> 15 | N72: =+'Líneas de Negocio (6)'!F8 -> 15 | O72: =+N72 -> 15 | P72: =+O72+(O72*H108) -> 15.18 | S72: =+P72+(P72*H109) -> 15.69612
B73: Importe del C. Variable (C) | C73: =+C72*C14 -> 900 | D73: 840 | E73: 930 | F73: 900 | G73: 930 | H73: 900 | I73: 930 | J73: 930 | K73: 900 | L73: 930 | M73: 900 | N73: 930 | O73: =SUM(C73:N73) -> 10920 | P73: =+O73+(O73*C108) -> 10920 | S73: =+O73+(O73*C109) -> 10920
B74: IVA soportado producto (C) | C74: =+C73*'Líneas de Negocio (6)'!G8 -> 90 | D74: =+D73*'Líneas de Negocio (6)'!G8 -> 84 | E74: =+E73*'Líneas de Negocio (6)'!G8 -> 93 | F74: =+F73*'Líneas de Negocio (6)'!G8 -> 90 | G74: =+G73*'Líneas de Negocio (6)'!G8 -> 93 | H74: =+H73*'Líneas de Negocio (6)'!G8 -> 90 | I74: =+I73*'Líneas de Negocio (6)'!G8 -> 93 | J74: =+J73*'Líneas de Negocio (6)'!G8 -> 93 | K74: =+K73*'Líneas de Negocio (6)'!G8 -> 90 | L74: =+L73*'Líneas de Negocio (6)'!G8 -> 93 | M74: =+M73*'Líneas de Negocio (6)'!G8 -> 90 | N74: =+N73*'Líneas de Negocio (6)'!G8 -> 93 | O74: =SUM(C74:N74) -> 1092 | P74: =+P73*'Líneas de Negocio (6)'!G8 -> 1092 | S74: =+S73*'Líneas de Negocio (6)'!G8 -> 1092
A75: =+'Líneas de Negocio (6)'!A9 -> HABITACIÓN DBL MP | B75: Precio Coste Directo V. Unitario (D) | C75: =+'Líneas de Negocio (6)'!F9 -> 20 | D75: =C75 -> 20 | E75: =D75 -> 20 | F75: 20 | G75: 20 | H75: 20 | I75: 20 | J75: 20 | K75: 20 | L75: =K75 -> 20 | M75: 20 | N75: 20 | O75: =+N75 -> 20 | P75: =+O75+(O75*H108) -> 20.24 | S75: =+P75+(P75*H109) -> 20.92816
B76: Importe del C. Variable (D) | C76: =+C75*C18 -> 12000 | D76: 11200 | E76: 12400 | F76: 12000 | G76: 12400 | H76: 12000 | I76: 12400 | J76: 12400 | K76: 12000 | L76: 12400 | M76: 12000 | N76: 12400 | O76: =SUM(C76:N76) -> 145600 | P76: =+O76+(O76*C$108) -> 145600 | S76: =+O76+(O76*$C$109) -> 145600
B77: IVA soportado producto (D) | C77: =+C76*'Líneas de Negocio (6)'!G9 -> 1200 | D77: =+D76*'Líneas de Negocio (6)'!G9 -> 1120 | E77: =+E76*'Líneas de Negocio (6)'!G9 -> 1240 | F77: =+F76*'Líneas de Negocio (6)'!G9 -> 1200 | G77: =+G76*'Líneas de Negocio (6)'!G9 -> 1240 | H77: =+H76*'Líneas de Negocio (6)'!G9 -> 1200 | I77: =+I76*'Líneas de Negocio (6)'!G9 -> 1240 | J77: =+J76*'Líneas de Negocio (6)'!G9 -> 1240 | K77: =+K76*'Líneas de Negocio (6)'!G9 -> 1200 | L77: =+L76*'Líneas de Negocio (6)'!G9 -> 1240 | M77: =+M76*'Líneas de Negocio (6)'!G9 -> 1200 | N77: =+N76*'Líneas de Negocio (6)'!G9 -> 1240 | O77: =SUM(C77:N77) -> 14560 | P77: =+P76*'Líneas de Negocio (6)'!G9 -> 14560 | S77: =+S76*'Líneas de Negocio (6)'!G9 -> 14560
A78: =+'Líneas de Negocio (6)'!A10 -> JUNIOR SUITE MP | B78: Precio Coste Directo V. Unitario € | C78: =+'Líneas de Negocio (6)'!F10 -> 22 | D78: =C78 -> 22 | E78: =D78 -> 22 | F78: 22 | G78: 22 | H78: 22 | I78: 22 | J78: 22 | K78: 22 | L78: =K78 -> 22 | M78: 22 | N78: =M78 -> 22 | O78: =+N78 -> 22 | P78: =+O78+(O78*H108) -> 22.264 | S78: =+P78+(P78*H109) -> 23.020976
B79: Importe del C. Variable (E) | C79: =+C78*C22 -> 1980 | D79: 1848 | E79: 2046 | F79: 1980 | G79: 2046 | H79: 1980 | I79: 2046 | J79: 2046 | K79: 1980 | L79: 2046 | M79: 1980 | N79: 2046 | O79: =SUM(C79:N79) -> 24024 | P79: =+O79+(O79*C$108) -> 24024 | S79: =+O79+(O79*$C$109) -> 24024
B80: IVA soportado producto (E) | C80: =+C79*'Líneas de Negocio (6)'!G10 -> 198 | D80: =+D79*'Líneas de Negocio (6)'!G10 -> 184.8 | E80: =+E79*'Líneas de Negocio (6)'!G10 -> 204.6 | F80: =+F79*'Líneas de Negocio (6)'!G10 -> 198 | G80: =+G79*'Líneas de Negocio (6)'!G10 -> 204.6 | H80: =+H79*'Líneas de Negocio (6)'!G10 -> 198 | I80: =+I79*'Líneas de Negocio (6)'!G10 -> 204.6 | J80: =+J79*'Líneas de Negocio (6)'!G10 -> 204.6 | K80: =+K79*'Líneas de Negocio (6)'!G10 -> 198 | L80: =+L79*'Líneas de Negocio (6)'!G10 -> 204.6 | M80: =+M79*'Líneas de Negocio (6)'!G10 -> 198 | N80: =+N79*'Líneas de Negocio (6)'!G10 -> 204.6 | O80: =SUM(C80:N80) -> 2402.4 | P80: =+P79*'Líneas de Negocio (6)'!G10 -> 2402.4 | S80: =+S79*'Líneas de Negocio (6)'!G10 -> 2402.4
A81: =+'Líneas de Negocio (6)'!A11 -> SUITE MP | B81: Precio Coste Directo V. Unitario (F) | C81: =+'Líneas de Negocio (6)'!F11 -> 25 | D81: =+C81 -> 25 | E81: =+D81 -> 25 | F81: 25 | G81: 25 | H81: 25 | I81: 25 | J81: 25 | K81: 25 | L81: 25 | M81: 25 | N81: 25 | O81: =+N81 -> 25 | P81: =+O81+(O81*H108) -> 25.3 | S81: =+P81+(P81*H109) -> 26.1602
B82: Importe del C. Variable (F) | C82: =+C81*C26 -> 1500 | D82: =C82 -> 1500 | E82: =D82 -> 1500 | F82: 1500 | G82: 1500 | H82: 1500 | I82: 1500 | J82: 1500 | K82: 1500 | L82: =K82 -> 1500 | M82: 1500 | N82: 1500 | O82: =SUM(C82:N82) -> 18000 | P82: =+O82+(O82*C108) -> 18000 | S82: =+O82+(O82*C109) -> 18000
B83: IVA soportado producto (F) | C83: =C82*'Líneas de Negocio (6)'!$G11 -> 150 | D83: =D82*'Líneas de Negocio (6)'!$G11 -> 150 | E83: =E82*'Líneas de Negocio (6)'!$G11 -> 150 | F83: =F82*'Líneas de Negocio (6)'!$G11 -> 150 | G83: =G82*'Líneas de Negocio (6)'!$G11 -> 150 | H83: =H82*'Líneas de Negocio (6)'!$G11 -> 150 | I83: =I82*'Líneas de Negocio (6)'!$G11 -> 150 | J83: =J82*'Líneas de Negocio (6)'!$G11 -> 150 | K83: =K82*'Líneas de Negocio (6)'!$G11 -> 150 | L83: =L82*'Líneas de Negocio (6)'!$G11 -> 150 | M83: =M82*'Líneas de Negocio (6)'!$G11 -> 150 | N83: =N82*'Líneas de Negocio (6)'!$G11 -> 150 | O83: =SUM(C83:N83) -> 1800 | P83: =+P82*'Líneas de Negocio (6)'!#REF! ->  | S83: =+S82*'Líneas de Negocio (6)'!#REF! -> 
A84: =+'Líneas de Negocio (6)'!A12 -> RUTA BODEGAS CON CATAS DE VINO | B84: Precio Coste Directo V. Unitario (F) | C84: =+'Líneas de Negocio (6)'!F12 -> 10 | D84: =+C84 -> 10 | E84: =+D84 -> 10 | F84: =+E84 -> 10 | G84: =+F84 -> 10 | H84: =+G84 -> 10 | I84: =+H84 -> 10 | J84: =+I84 -> 10 | K84: =+J84 -> 10 | L84: =+K84 -> 10 | M84: =+L84 -> 10 | N84: =+M84 -> 10 | O84: =+N84 -> 10 | P84: =+O84+(O84*H111) ->  | S84: =+P84+(P84*H112) -> 
B85: Importe del C. Variable (F) | C85: =+C84*C29 -> 24000 | D85: =C85 -> 24000 | E85: =D85 -> 24000 | F85: =E85 -> 24000 | G85: =F85 -> 24000 | H85: =G85 -> 24000 | I85: =H85 -> 24000 | J85: =I85 -> 24000 | K85: =J85 -> 24000 | L85: =K85 -> 24000 | M85: =L85 -> 24000 | N85: =M85 -> 24000 | O85: =SUM(C85:N85) -> 288000 | P85: =+O85+(O85*C111) ->  | S85: =+O85+(O85*C112) -> 288000
B86: IVA soportado producto (F) | C86: =C85*'Líneas de Negocio (6)'!$G12 -> 2400 | D86: =D85*'Líneas de Negocio (6)'!$G12 -> 2400 | E86: =E85*'Líneas de Negocio (6)'!$G12 -> 2400 | F86: =F85*'Líneas de Negocio (6)'!$G12 -> 2400 | G86: =G85*'Líneas de Negocio (6)'!$G12 -> 2400 | H86: =H85*'Líneas de Negocio (6)'!$G12 -> 2400 | I86: =I85*'Líneas de Negocio (6)'!$G12 -> 2400 | J86: =J85*'Líneas de Negocio (6)'!$G12 -> 2400 | K86: =K85*'Líneas de Negocio (6)'!$G12 -> 2400 | L86: =L85*'Líneas de Negocio (6)'!$G12 -> 2400 | M86: =M85*'Líneas de Negocio (6)'!$G12 -> 2400 | N86: =N85*'Líneas de Negocio (6)'!$G12 -> 2400 | O86: =SUM(C86:N86) -> 28800 | P86: =+P85*'Líneas de Negocio (6)'!#REF! ->  | S86: =+S85*'Líneas de Negocio (6)'!#REF! -> 
A87: =+'Líneas de Negocio (6)'!A13 -> RUTA ENOGASTRONOMICA EN TREN | B87: Precio Coste Directo V. Unitario (F) | C87: =+'Líneas de Negocio (6)'!F13 -> 15 | D87: =+C87 -> 15 | E87: =+D87 -> 15 | F87: =+E87 -> 15 | G87: =+F87 -> 15 | H87: =+G87 -> 15 | I87: =+H87 -> 15 | J87: =+I87 -> 15 | K87: =+J87 -> 15 | L87: =+K87 -> 15 | M87: =+L87 -> 15 | N87: =+M87 -> 15 | O87: =+N87 -> 15 | P87: =+O87+(O87*H114) -> 15 | S87: =+P87+(P87*H115) -> 15
B88: Importe del C. Variable (F) | C88: =+C87*C32 -> 225000 | D88: =C88 -> 225000 | E88: =D88 -> 225000 | F88: =E88 -> 225000 | G88: =F88 -> 225000 | H88: =G88 -> 225000 | I88: =H88 -> 225000 | J88: =I88 -> 225000 | K88: =J88 -> 225000 | L88: =K88 -> 225000 | M88: =L88 -> 225000 | N88: =M88 -> 225000 | O88: =SUM(C88:N88) -> 2700000 | P88: =+O88+(O88*C114) -> 2700000 | S88: =+O88+(O88*C115) -> 2700000
B89: IVA soportado producto (F) | C89: =C88*'Líneas de Negocio (6)'!$G$13 -> 22500 | D89: =D88*'Líneas de Negocio (6)'!$G$13 -> 22500 | E89: =E88*'Líneas de Negocio (6)'!$G$13 -> 22500 | F89: =F88*'Líneas de Negocio (6)'!$G$13 -> 22500 | G89: =G88*'Líneas de Negocio (6)'!$G$13 -> 22500 | H89: =H88*'Líneas de Negocio (6)'!$G$13 -> 22500 | I89: =I88*'Líneas de Negocio (6)'!$G$13 -> 22500 | J89: =J88*'Líneas de Negocio (6)'!$G$13 -> 22500 | K89: =K88*'Líneas de Negocio (6)'!$G$13 -> 22500 | L89: =L88*'Líneas de Negocio (6)'!$G$13 -> 22500 | M89: =M88*'Líneas de Negocio (6)'!$G$13 -> 22500 | N89: =N88*'Líneas de Negocio (6)'!$G$13 -> 22500 | O89: =SUM(C89:N89) -> 270000 | P89: =+P88*'Líneas de Negocio (6)'!#REF! ->  | S89: =+S88*'Líneas de Negocio (6)'!#REF! -> 
A90: =+'Líneas de Negocio (6)'!A14 -> TALLERES MARIDAJE O COCINA TRADICIONAL | B90: Precio Coste Directo V. Unitario (F) | C90: =+'Líneas de Negocio (6)'!F14 -> 6 | D90: =+C90 -> 6 | E90: =+D90 -> 6 | F90: =+E90 -> 6 | G90: =+F90 -> 6 | H90: =+G90 -> 6 | I90: =+H90 -> 6 | J90: =+I90 -> 6 | K90: =+J90 -> 6 | L90: =+K90 -> 6 | M90: =+L90 -> 6 | N90: =+M90 -> 6 | O90: =+N90 -> 6 | P90: =+O90+(O90*H117) -> 6 | S90: =+P90+(P90*H118) -> 6
B91: Importe del C. Variable (F) | C91: =+C90*C35 -> 600 | D91: =C91 -> 600 | E91: =D91 -> 600 | F91: =E91 -> 600 | G91: =F91 -> 600 | H91: =G91 -> 600 | I91: =H91 -> 600 | J91: =I91 -> 600 | K91: =J91 -> 600 | L91: =K91 -> 600 | M91: =L91 -> 600 | N91: =M91 -> 600 | O91: =SUM(C91:N91) -> 7200 | P91: =+O91+(O91*C117) -> 7200 | S91: =+O91+(O91*C118) -> 7200
B92: IVA soportado producto (F) | C92: =C91*'Líneas de Negocio (6)'!$G14 -> 60 | D92: =D91*'Líneas de Negocio (6)'!$G14 -> 60 | E92: =E91*'Líneas de Negocio (6)'!$G14 -> 60 | F92: =F91*'Líneas de Negocio (6)'!$G14 -> 60 | G92: =G91*'Líneas de Negocio (6)'!$G14 -> 60 | H92: =H91*'Líneas de Negocio (6)'!$G14 -> 60 | I92: =I91*'Líneas de Negocio (6)'!$G14 -> 60 | J92: =J91*'Líneas de Negocio (6)'!$G14 -> 60 | K92: =K91*'Líneas de Negocio (6)'!$G14 -> 60 | L92: =L91*'Líneas de Negocio (6)'!$G14 -> 60 | M92: =M91*'Líneas de Negocio (6)'!$G14 -> 60 | N92: =N91*'Líneas de Negocio (6)'!$G14 -> 60 | O92: =SUM(C92:N92) -> 720 | P92: =+P91*'Líneas de Negocio (6)'!#REF! ->  | S92: =+S91*'Líneas de Negocio (6)'!#REF! -> 
A93: =+'Líneas de Negocio (6)'!A15 -> PAQUETES SPA RELAX / DETOX / SHINE | B93: Precio Coste Directo V. Unitario (F) | C93: =+'Líneas de Negocio (6)'!F15 -> 10 | D93: =+C93 -> 10 | E93: =+D93 -> 10 | F93: =+E93 -> 10 | G93: =+F93 -> 10 | H93: =+G93 -> 10 | I93: =+H93 -> 10 | J93: =+I93 -> 10 | K93: =+J93 -> 10 | L93: =+K93 -> 10 | M93: =+L93 -> 10 | N93: =+M93 -> 10 | O93: =+N93 -> 10 | P93: =+O93+(O93*H120) -> 234610 | S93: =+P93+(P93*H121) -> 234610
B94: Importe del C. Variable (F) | C94: =+C93*C38 -> 1200 | D94: =C94 -> 1200 | E94: =D94 -> 1200 | F94: =E94 -> 1200 | G94: =F94 -> 1200 | H94: =G94 -> 1200 | I94: =H94 -> 1200 | J94: =I94 -> 1200 | K94: =J94 -> 1200 | L94: =K94 -> 1200 | M94: =L94 -> 1200 | N94: =M94 -> 1200 | O94: =SUM(C94:N94) -> 14400 | P94: =+O94+(O94*C120) -> 337838400 | S94: =+O94+(O94*C121) -> 14400
B95: IVA soportado producto (F) | C95: =C94*'Líneas de Negocio (6)'!$G15 -> 120 | D95: =D94*'Líneas de Negocio (6)'!$G15 -> 120 | E95: =E94*'Líneas de Negocio (6)'!$G15 -> 120 | F95: =F94*'Líneas de Negocio (6)'!$G15 -> 120 | G95: =G94*'Líneas de Negocio (6)'!$G15 -> 120 | H95: =H94*'Líneas de Negocio (6)'!$G15 -> 120 | I95: =I94*'Líneas de Negocio (6)'!$G15 -> 120 | J95: =J94*'Líneas de Negocio (6)'!$G15 -> 120 | K95: =K94*'Líneas de Negocio (6)'!$G15 -> 120 | L95: =L94*'Líneas de Negocio (6)'!$G15 -> 120 | M95: =M94*'Líneas de Negocio (6)'!$G15 -> 120 | N95: =N94*'Líneas de Negocio (6)'!$G15 -> 120 | O95: =SUM(C95:N95) -> 1440 | P95: =+P94*'Líneas de Negocio (6)'!#REF! ->  | S95: =+S94*'Líneas de Negocio (6)'!#REF! -> 
A96: =+'Líneas de Negocio (6)'!A16 -> TALLER ELABORACIÓN DE VINOS | B96: Precio Coste Directo V. Unitario (F) | C96: =+'Líneas de Negocio (6)'!F16 -> 6 | D96: =+C96 -> 6 | E96: =+D96 -> 6 | F96: =+E96 -> 6 | G96: =+F96 -> 6 | H96: =+G96 -> 6 | I96: =+H96 -> 6 | J96: =+I96 -> 6 | K96: =+J96 -> 6 | L96: =+K96 -> 6 | M96: =+L96 -> 6 | N96: =+M96 -> 6 | O96: =+N96 -> 6 | P96: =+O96+(O96*H123) -> 6 | S96: =+P96+(P96*H124) -> 6
B97: Importe del C. Variable (F) | C97: =+C96*C41 -> 2880 | D97: =C97 -> 2880 | E97: =D97 -> 2880 | F97: =E97 -> 2880 | G97: =F97 -> 2880 | H97: =G97 -> 2880 | I97: =H97 -> 2880 | J97: =I97 -> 2880 | K97: =J97 -> 2880 | L97: =K97 -> 2880 | M97: =L97 -> 2880 | N97: =M97 -> 2880 | O97: =SUM(C97:N97) -> 34560 | P97: =+O97+(O97*C123) -> 34560 | S97: =+O97+(O97*C124) -> 34560
B98: IVA soportado producto (F) | C98: =C97*'Líneas de Negocio (6)'!$G16 -> 288 | D98: =D97*'Líneas de Negocio (6)'!$G16 -> 288 | E98: =E97*'Líneas de Negocio (6)'!$G16 -> 288 | F98: =F97*'Líneas de Negocio (6)'!$G16 -> 288 | G98: =G97*'Líneas de Negocio (6)'!$G16 -> 288 | H98: =H97*'Líneas de Negocio (6)'!$G16 -> 288 | I98: =I97*'Líneas de Negocio (6)'!$G16 -> 288 | J98: =J97*'Líneas de Negocio (6)'!$G16 -> 288 | K98: =K97*'Líneas de Negocio (6)'!$G16 -> 288 | L98: =L97*'Líneas de Negocio (6)'!$G16 -> 288 | M98: =M97*'Líneas de Negocio (6)'!$G16 -> 288 | N98: =N97*'Líneas de Negocio (6)'!$G16 -> 288 | O98: =SUM(C98:N98) -> 3456 | P98: =+P97*'Líneas de Negocio (6)'!#REF! ->  | S98: =+S97*'Líneas de Negocio (6)'!#REF! -> 
A99: =+'Líneas de Negocio (6)'!A17 -> PAQUETE SAN VALENTIN | B99: Precio Coste Directo V. Unitario (F) | C99: =+'Líneas de Negocio (6)'!F17 -> 40 | D99: =+C99 -> 40 | E99: =+D99 -> 40 | F99: =+E99 -> 40 | G99: =+F99 -> 40 | H99: =+G99 -> 40 | I99: =+H99 -> 40 | J99: =+I99 -> 40 | K99: =+J99 -> 40 | L99: =+K99 -> 40 | M99: =+L99 -> 40 | N99: =+M99 -> 40 | O99: =+N99 -> 40 | P99: =+O99+(O99*H126) -> 40 | S99: =+P99+(P99*H127) -> 40
B100: Importe del C. Variable (F) | C100: =+C99*C44 -> 360000 | D100: =C100 -> 360000 | E100: =D100 -> 360000 | F100: =E100 -> 360000 | G100: =F100 -> 360000 | H100: =G100 -> 360000 | I100: =H100 -> 360000 | J100: =I100 -> 360000 | K100: =J100 -> 360000 | L100: =K100 -> 360000 | M100: =L100 -> 360000 | N100: =M100 -> 360000 | O100: =SUM(C100:N100) -> 4320000 | P100: =+O100+(O100*C126) -> 4320000 | S100: =+O100+(O100*C127) -> 4320000
B101: IVA soportado producto (F) | C101: =C100*'Líneas de Negocio (6)'!$G17 -> 36000 | D101: =D100*'Líneas de Negocio (6)'!$G17 -> 36000 | E101: =E100*'Líneas de Negocio (6)'!$G17 -> 36000 | F101: =F100*'Líneas de Negocio (6)'!$G17 -> 36000 | G101: =G100*'Líneas de Negocio (6)'!$G17 -> 36000 | H101: =H100*'Líneas de Negocio (6)'!$G17 -> 36000 | I101: =I100*'Líneas de Negocio (6)'!$G17 -> 36000 | J101: =J100*'Líneas de Negocio (6)'!$G17 -> 36000 | K101: =K100*'Líneas de Negocio (6)'!$G17 -> 36000 | L101: =L100*'Líneas de Negocio (6)'!$G17 -> 36000 | M101: =M100*'Líneas de Negocio (6)'!$G17 -> 36000 | N101: =N100*'Líneas de Negocio (6)'!$G17 -> 36000 | O101: =SUM(C101:N101) -> 432000 | P101: =+P100*'Líneas de Negocio (6)'!#REF! ->  | S101: =+S100*'Líneas de Negocio (6)'!#REF! -> 
A103: Costes Directos Variables | C103: =+C67+C70+C73+C76+C79+C82 -> 23460 | D103: =+D67+D70+D73+D76+D79+D82 -> 21996 | E103: 24192 | F103: 23460 | G103: 24192 | H103: 23460 | I103: 24192 | J103: 24192 | K103: 23460 | L103: 24192 | M103: 23460 | N103: 24192 | O103: =SUM(C103:N103) -> 284448 | P103: =+P67+P70+P73+P76+P79+P82 -> 284448 | S103: =+S67+S70+S73+S76+S79+S82 -> 284448
A104: Total IVA Suportat per Compres | C104: =+C103*$C$106 -> 0 | D104: =+D103*$C$106 -> 0 | E104: 0 | F104: 0 | G104: 0 | H104: 0 | I104: 0 | J104: 0 | K104: 0 | L104: 0 | M104: 0 | N104: 0 | O104: =SUM(C104:N104) -> 0 | P104: =+P103*C106 -> 0 | Q104: =SUM(E104:P104) -> 0 | R104: =SUM(F104:Q104) -> 0 | S104: =+S103*C106 -> 0
A105: Total IVA Soportado costes directos variables | C105: =+C68+C71+C74+C77+C80+C83 -> 2346 | D105: =+D68+D71+D74+D77+D80+D83 -> 2199.6 | E105: 2419.2 | F105: 2346 | G105: 2419.2 | H105: 2346 | I105: 2419.2 | J105: 2419.2 | K105: 2346 | L105: 2419.2 | M105: 2346 | N105: 2419.2 | O105: =SUM(C105:N105) -> 28444.8 | P105: =+P68+P71+P74+P77+P80+P83 ->  | Q105: =+Q68+Q71+Q74+Q77+Q80+Q83 -> 0 | R105: =+R68+R71+R74+R77+R80+R83 -> 0 | S105: =+S68+S71+S74+S77+S80+S83 -> 
A108: Tasa crecimiento costes prevista para Año 2: | C108: =+'Líneas de Negocio (6)'!C25 -> 0 | E108: Inflación precios prevista año 1: | H108: =+H60 -> 0.012
A109: Tasa crecimiento costes prevista para Año 3: | C109: =+'Líneas de Negocio (6)'!C26 -> 0 | E109: Inflación precios prevista año 2: | H109: =+H61 -> 0.034
A111: OTROS COSTES VARIABLES (b) | C111: =Enero -> Enero | D111: =D5 -> Febrero | E111: Marzo | F111: Abril | G111: Mayo | H111: Junio | I111: Julio | J111: Agosto | K111: Septiembre | L111: Octubre | M111: Noviembre | N111: Diciembre | O111: AÑO 1 | P111: AÑO 2 | S111: AÑO 3
A112: Transporte s/ Ventas | B112: 0 | C112: =+C55*$B$112 -> 0 | D112: =+D55*$B$112 -> 0 | E112: 0 | F112: 0 | G112: 0 | H112: 0 | I112: 0 | J112: 0 | K112: 0 | L112: 0 | M112: 0 | N112: =+N55*$B$112 -> 0 | O112: =SUM(C112:N112) -> 0 | P112: =+O112+(O112*$C$108) -> 0 | S112: =+P112+(P112*$C$109) -> 0
A113: Comisiones s/ Ventas | B113: 0 | C113: =+C55*$B$113 -> 0 | D113: =+D55*$B$113 -> 0 | E113: 0 | F113: 0 | G113: 0 | H113: 0 | I113: 0 | J113: 0 | K113: 0 | L113: 0 | M113: 0 | N113: =+N55*$B$113 -> 0 | O113: =SUM(C113:N113) -> 0 | P113: =+O113+(O113*$C$108) -> 0 | S113: =+P113+(P113*$C$109) -> 0
A114: Otros Costes s/ Ventas | B114: 0 | C114: =+C55*$B$114 -> 0 | D114: =+D55*$B$114 -> 0 | E114: 0 | F114: 0 | G114: 0 | H114: 0 | I114: 0 | J114: 0 | K114: 0 | L114: 0 | M114: 0 | N114: =+N55*$B$114 -> 0 | O114: =SUM(C114:N114) -> 0 | P114: =+O114+(O114*$C$108) -> 0 | S114: =+P114+(P114*$C$109) -> 0
A117: Otros Costes Variables | C117: =+C112+C113+C114 -> 0 | D117: =+D112+D113+D114 -> 0 | E117: =+E112+E113+E114 -> 0 | F117: 0 | G117: 0 | H117: 0 | I117: 0 | J117: 0 | K117: 0 | L117: 0 | M117: 0 | N117: 0 | O117: =SUM(C117:N117) -> 0 | P117: =SUM(P112:P114) -> 0 | S117: =SUM(S112:S114) -> 0
A118: IVA Soportado por otros C. Variables | C118: =+C117*$C$122 -> 0 | D118: =+D117*$C$122 -> 0 | E118: 0 | F118: 0 | G118: 0 | H118: 0 | I118: 0 | J118: 0 | K118: 0 | L118: 0 | M118: 0 | N118: 0 | O118: =+O117*C122 -> 0 | P118: =+P117*C122 -> 0 | Q118: =SUM(E118:P118) -> 0 | R118: =SUM(F118:Q118) -> 0 | S118: =+S117*C122 -> 0
A120: Total Costes Variables (a + b) | C120: =C103+C117 -> 23460 | D120: 21996 | E120: 24192 | F120: 23460 | G120: 24192 | H120: 23460 | I120: 24192 | J120: 24192 | K120: 23460 | L120: 24192 | M120: 23460 | N120: 24192 | O120: =SUM(C120:N120) -> 284448 | P120: =+P117+P103 -> 284448 | Q120: =+Q117+Q103 -> 0 | R120: =+R117+R103 -> 0 | S120: =+S117+S103 -> 284448
A122: Tipo de IVA: | C122: 0.21
A124: Observaciones a la hora de realizar el cálculo de las ventas y costes variables:
A125: * Las tasas de crecimiento para el año 2 y 3, estan calculadas sobre el año 1.
A127: * Se debe explicar muy bien cómo se han calculado los ingresos, de dónde salen las cantidades estimadas a vender, la comparación de los ingresos frente a la competencia, etc.
A129: * Si existen más costes variables se pueden introducir manualmente. Esta hoja de Excel está preparada para los costes variables más comunes en empresas que venden productos.

Sheet Plan de Tesorería (8)
A2: =+'INFO INICIAL'!C2 -> Macia Batle Winery | B2: PLAN DE TESORERÍA - Año 1
A3: Mes previsto de inicio de las actividades: | B3: =CHOOSE(D3,'INFO INICIAL'!$F$28,'INFO INICIAL'!$F$29,'INFO INICIAL'!$F$30,'INFO INICIAL'!$F$31,'INFO INICIAL'!$F$32,'INFO INICIAL'!$F$33,'INFO INICIAL'!$F$34,'INFO INICIAL'!$F$35,'INFO INICIAL'!$F$36,'INFO INICIAL'!$F$37,'INFO INICIAL'!$F$38,'INFO INICIAL'!$F$39) -> Abril | D3: 4 | AA3: =IF(T('CUADRO RESUMEN (0)'!J40)='INFO INICIAL'!H29,0,1) -> 1 | AB3: =IF(T('CUADRO RESUMEN (0)'!J40)='INFO INICIAL'!H29,1,0) -> 0
AA4: =IF(T('CUADRO RESUMEN (0)'!J40)='INFO INICIAL'!H31,0,1) -> 1 | AB4: =IF(T('CUADRO RESUMEN (0)'!J40)='INFO INICIAL'!H31,1,0) -> 0
A5: COBROS | B5: Enero | C5: Febrero | D5: Marzo | E5: Abril | F5: Mayo | G5: Junio | H5: Julio | I5: Agosto | J5: Septiembre | K5: Octubre | L5: Noviembre | M5: Diciembre | N5: AÑO 1 | P5: AÑO 2 | R5: AÑO 3 | AA5: =AA3*AA4 -> 1 | AB5: =AB3+AB4 -> 0 | AE5: 1 | AF5: 2 | AG5: 3 | AH5: 4 | AI5: 5 | AJ5: 6 | AK5: 7 | AL5: 8 | AM5: 9 | AN5: 10 | AO5: 11 | AP5: 12 | AQ5: 13 | AR5: 14 | AS5: 15 | AT5: 16 | AU5: 17 | AV5: 18 | AW5: 19 | AX5: 20 | AY5: 21 | AZ5: 22 | BA5: 23 | BB5: 24 | BC5: 25 | BD5: 26 | BE5: 27 | BF5: 28 | BG5: 29 | BH5: 30 | BI5: 31 | BJ5: 32 | BK5: 33 | BL5: 34 | BM5: 35 | BN5: 36
A6: =+'Líneas de Negocio (6)'!A6 -> HABITACIÓN DBL AD | B6: =IF($AA$21<AE$5,+'Ventas y Costes Variables (7)'!C8,0) -> 0 | C6: =IF($AA$21<AF$5,+'Ventas y Costes Variables (7)'!D8,0) -> 0 | D6: =IF($AA$21<AG$5,+'Ventas y Costes Variables (7)'!E8,0) -> 0 | E6: =IF($AA$21<AH$5,+'Ventas y Costes Variables (7)'!F8,0) -> 96000 | F6: =IF($AA$21<AI$5,+'Ventas y Costes Variables (7)'!G8,0) -> 99200 | G6: =IF($AA$21<AJ$5,+'Ventas y Costes Variables (7)'!H8,0) -> 96000 | H6: =IF($AA$21<AK$5,+'Ventas y Costes Variables (7)'!I8,0) -> 99200 | I6: =IF($AA$21<AL$5,+'Ventas y Costes Variables (7)'!J8,0) -> 99200 | J6: =IF($AA$21<AM$5,+'Ventas y Costes Variables (7)'!K8,0) -> 96000 | K6: =IF($AA$21<AN$5,+'Ventas y Costes Variables (7)'!L8,0) -> 99200 | L6: =IF($AA$21<AO$5,+'Ventas y Costes Variables (7)'!M8,0) -> 96000 | M6: =IF($AA$21<AP$5,+'Ventas y Costes Variables (7)'!N8,0) -> 99200 | N6: =SUM(B6:M6) -> 880000 | P6: =+'Ventas y Costes Variables (7)'!P8 -> 1178777.6 | R6: =+'Ventas y Costes Variables (7)'!S8 -> 1218856.038 | Y6: 0 | Z6: Enero | AA6: =IF(B$3=Z6,Y6,0) -> 0 | AD6: 1 | AE6: ='Simulador préstamos (3) '!$E23+'Simulador préstamos (3) '!$O23 -> 7324.503339 | AF6: 0 | AG6: 0 | AH6: 0 | AI6: 0 | AJ6: 0 | AK6: 0 | AL6: 0 | AM6: 0 | AN6: 0 | AO6: 0 | AP6: 0 | AQ6: 0 | AR6: 0 | AS6: 0 | AT6: 0 | AU6: 0 | AV6: 0 | AW6: 0 | AX6: 0 | AY6: 0 | AZ6: 0 | BA6: 0 | BB6: 0 | BC6: 0 | BD6: 0 | BE6: 0 | BF6: 0 | BG6: 0 | BH6: 0 | BI6: 0 | BJ6: 0 | BK6: 0 | BL6: 0 | BM6: 0 | BN6: 0
A7: =+'Líneas de Negocio (6)'!A7 -> JUNIOR SUITE AD | B7: =IF($AA$21<AE$5,+'Ventas y Costes Variables (7)'!C12,0) -> 0 | C7: =IF($AA$21<AF$5,+'Ventas y Costes Variables (7)'!D12,0) -> 0 | D7: =IF($AA$21<AG$5,+'Ventas y Costes Variables (7)'!E12,0) -> 0 | E7: =IF($AA$21<AH$5,+'Ventas y Costes Variables (7)'!F12,0) -> 22500 | F7: =IF($AA$21<AI$5,+'Ventas y Costes Variables (7)'!G12,0) -> 23250 | G7: =IF($AA$21<AJ$5,+'Ventas y Costes Variables (7)'!H12,0) -> 22500 | H7: =IF($AA$21<AK$5,+'Ventas y Costes Variables (7)'!I12,0) -> 23250 | I7: =IF($AA$21<AL$5,+'Ventas y Costes Variables (7)'!J12,0) -> 23250 | J7: =IF($AA$21<AM$5,+'Ventas y Costes Variables (7)'!K12,0) -> 22500 | K7: =IF($AA$21<AN$5,+'Ventas y Costes Variables (7)'!L12,0) -> 23250 | L7: =IF($AA$21<AO$5,+'Ventas y Costes Variables (7)'!M12,0) -> 22500 | M7: =IF($AA$21<AP$5,+'Ventas y Costes Variables (7)'!N12,0) -> 23250 | N7: =SUM(B7:M7) -> 206250 | P7: =+'Ventas y Costes Variables (7)'!P12 -> 276276 | R7: =+'Ventas y Costes Variables (7)'!S12 -> 285669.384 | Y7: 1 | Z7: Febrero | AA7: =IF(B$3=Z7,Y7,0) -> 0 | AD7: 2 | AE7: ='Simulador préstamos (3) '!$E24+'Simulador préstamos (3) '!$O24 -> 7324.503339 | AF7: =AE6 -> 7324.503339 | AG7: 0 | AH7: 0 | AI7: 0 | AJ7: 0 | AK7: 0 | AL7: 0 | AM7: 0 | AN7: 0 | AO7: 0 | AP7: 0 | AQ7: 0 | AR7: 0 | AS7: 0 | AT7: 0 | AU7: 0 | AV7: 0 | AW7: 0 | AX7: 0 | AY7: 0 | AZ7: 0 | BA7: 0 | BB7: 0 | BC7: 0 | BD7: 0 | BE7: 0 | BF7: 0 | BG7: 0 | BH7: 0 | BI7: 0 | BJ7: 0 | BK7: 0 | BL7: 0 | BM7: 0 | BN7: 0
A8: =+'Líneas de Negocio (6)'!A8 -> SUITE AD | B8: =IF($AA$21<AE$5,+'Ventas y Costes Variables (7)'!C16,0) -> 0 | C8: =IF($AA$21<AF$5,+'Ventas y Costes Variables (7)'!D16,0) -> 0 | D8: =IF($AA$21<AG$5,+'Ventas y Costes Variables (7)'!E16,0) -> 0 | E8: =IF($AA$21<AH$5,+'Ventas y Costes Variables (7)'!F16,0) -> 21000 | F8: =IF($AA$21<AI$5,+'Ventas y Costes Variables (7)'!G16,0) -> 21700 | G8: =IF($AA$21<AJ$5,+'Ventas y Costes Variables (7)'!H16,0) -> 21000 | H8: =IF($AA$21<AK$5,+'Ventas y Costes Variables (7)'!I16,0) -> 21700 | I8: =IF($AA$21<AL$5,+'Ventas y Costes Variables (7)'!J16,0) -> 21700 | J8: =IF($AA$21<AM$5,+'Ventas y Costes Variables (7)'!K16,0) -> 21000 | K8: =IF($AA$21<AN$5,+'Ventas y Costes Variables (7)'!L16,0) -> 21700 | L8: =IF($AA$21<AO$5,+'Ventas y Costes Variables (7)'!M16,0) -> 21000 | M8: =IF($AA$21<AP$5,+'Ventas y Costes Variables (7)'!N16,0) -> 21700 | N8: 192500 | P8: =+'Ventas y Costes Variables (7)'!P16 -> 257857.6 | R8: =+'Ventas y Costes Variables (7)'!S16 -> 266624.7584 | Y8: 2 | Z8: Marzo | AA8: 0 | AD8: 3 | AE8: ='Simulador préstamos (3) '!$E25+'Simulador préstamos (3) '!$O25 -> 7324.503339 | AF8: =AE7 -> 7324.503339 | AG8: =AE6 -> 7324.503339 | AH8: 0 | AI8: 0 | AJ8: 0 | AK8: 0 | AL8: 0 | AM8: 0 | AN8: 0 | AO8: 0 | AP8: 0 | AQ8: 0 | AR8: 0 | AS8: 0 | AT8: 0 | AU8: 0 | AV8: 0 | AW8: 0 | AX8: 0 | AY8: 0 | AZ8: 0 | BA8: 0 | BB8: 0 | BC8: 0 | BD8: 0 | BE8: 0 | BF8: 0 | BG8: 0 | BH8: 0 | BI8: 0 | BJ8: 0 | BK8: 0 | BL8: 0 | BM8: 0 | BN8: 0
A9: =+'Líneas de Negocio (6)'!A9 -> HABITACIÓN DBL MP | B9: =IF($AA$21<AE$5,+'Ventas y Costes Variables (7)'!C20,0) -> 0 | C9: =IF($AA$21<AF$5,+'Ventas y Costes Variables (7)'!D20,0) -> 0 | D9: =IF($AA$21<AG$5,+'Ventas y Costes Variables (7)'!E20,0) -> 0 | E9: =IF($AA$21<AH$5,+'Ventas y Costes Variables (7)'!F20,0) -> 126000 | F9: =IF($AA$21<AI$5,+'Ventas y Costes Variables (7)'!G20,0) -> 130200 | G9: =IF($AA$21<AJ$5,+'Ventas y Costes Variables (7)'!H20,0) -> 126000 | H9: =IF($AA$21<AK$5,+'Ventas y Costes Variables (7)'!I20,0) -> 130200 | I9: =IF($AA$21<AL$5,+'Ventas y Costes Variables (7)'!J20,0) -> 130200 | J9: =IF($AA$21<AM$5,+'Ventas y Costes Variables (7)'!K20,0) -> 126000 | K9: =IF($AA$21<AN$5,+'Ventas y Costes Variables (7)'!L20,0) -> 130200 | L9: =IF($AA$21<AO$5,+'Ventas y Costes Variables (7)'!M20,0) -> 126000 | M9: =IF($AA$21<AP$5,+'Ventas y Costes Variables (7)'!N20,0) -> 130200 | N9: 1155000 | P9: =+'Ventas y Costes Variables (7)'!P20 -> 1547145.6 | R9: =+'Ventas y Costes Variables (7)'!S20 -> 1599748.55 | Y9: 3 | Z9: Abril | AA9: 3 | AD9: 4 | AE9: ='Simulador préstamos (3) '!$E26+'Simulador préstamos (3) '!$O26 -> 7324.503339 | AF9: 7324.503339 | AG9: =AE7 -> 7324.503339 | AH9: =AE6 -> 7324.503339 | AI9: 0 | AJ9: 0 | AK9: 0 | AL9: 0 | AM9: 0 | AN9: 0 | AO9: 0 | AP9: 0 | AQ9: 0 | AR9: 0 | AS9: 0 | AT9: 0 | AU9: 0 | AV9: 0 | AW9: 0 | AX9: 0 | AY9: 0 | AZ9: 0 | BA9: 0 | BB9: 0 | BC9: 0 | BD9: 0 | BE9: 0 | BF9: 0 | BG9: 0 | BH9: 0 | BI9: 0 | BJ9: 0 | BK9: 0 | BL9: 0 | BM9: 0 | BN9: 0
A10: =+'Líneas de Negocio (6)'!A10 -> JUNIOR SUITE MP | B10: =IF($AA$21<AE$5,+'Ventas y Costes Variables (7)'!C24,0) -> 0 | C10: =IF($AA$21<AF$5,+'Ventas y Costes Variables (7)'!D24,0) -> 0 | D10: =IF($AA$21<AG$5,+'Ventas y Costes Variables (7)'!E24,0) -> 0 | E10: =IF($AA$21<AH$5,+'Ventas y Costes Variables (7)'!F24,0) -> 27000 | F10: =IF($AA$21<AI$5,+'Ventas y Costes Variables (7)'!G24,0) -> 27900 | G10: =IF($AA$21<AJ$5,+'Ventas y Costes Variables (7)'!H24,0) -> 27000 | H10: =IF($AA$21<AK$5,+'Ventas y Costes Variables (7)'!I24,0) -> 27900 | I10: =IF($AA$21<AL$5,+'Ventas y Costes Variables (7)'!J24,0) -> 27900 | J10: =IF($AA$21<AM$5,+'Ventas y Costes Variables (7)'!K24,0) -> 27000 | K10: =IF($AA$21<AN$5,+'Ventas y Costes Variables (7)'!L24,0) -> 27900 | L10: =IF($AA$21<AO$5,+'Ventas y Costes Variables (7)'!M24,0) -> 27000 | M10: =IF($AA$21<AP$5,+'Ventas y Costes Variables (7)'!N24,0) -> 27900 | N10: 247500 | P10: =+'Ventas y Costes Variables (7)'!P24 -> 331531.2 | R10: =+'Ventas y Costes Variables (7)'!S24 -> 342803.2608 | Y10: 4 | Z10: Mayo | AA10: 0 | AD10: 5 | AE10: ='Simulador préstamos (3) '!$E27+'Simulador préstamos (3) '!$O27 -> 7324.503339 | AF10: 7324.503339 | AG10: 7324.503339 | AH10: =AE7 -> 7324.503339 | AI10: =AE6 -> 7324.503339 | AJ10: 0 | AK10: 0 | AL10: 0 | AM10: 0 | AN10: 0 | AO10: 0 | AP10: 0 | AQ10: 0 | AR10: 0 | AS10: 0 | AT10: 0 | AU10: 0 | AV10: 0 | AW10: 0 | AX10: 0 | AY10: 0 | AZ10: 0 | BA10: 0 | BB10: 0 | BC10: 0 | BD10: 0 | BE10: 0 | BF10: 0 | BG10: 0 | BH10: 0 | BI10: 0 | BJ10: 0 | BK10: 0 | BL10: 0 | BM10: 0 | BN10: 0
A11: =+'Líneas de Negocio (6)'!A11 -> SUITE MP | B11: =IF($AA$21<AE$5,+'Ventas y Costes Variables (7)'!C28,0) -> 0 | C11: =IF($AA$21<AF$5,+'Ventas y Costes Variables (7)'!D28,0) -> 0 | D11: =IF($AA$21<AG$5,+'Ventas y Costes Variables (7)'!E28,0) -> 0 | E11: =IF($AA$21<AH$5,+'Ventas y Costes Variables (7)'!F28,0) -> 24000 | F11: =IF($AA$21<AI$5,+'Ventas y Costes Variables (7)'!G28,0) -> 24800 | G11: =IF($AA$21<AJ$5,+'Ventas y Costes Variables (7)'!H28,0) -> 24000 | H11: =IF($AA$21<AK$5,+'Ventas y Costes Variables (7)'!I28,0) -> 24800 | I11: =IF($AA$21<AL$5,+'Ventas y Costes Variables (7)'!J28,0) -> 24800 | J11: =IF($AA$21<AM$5,+'Ventas y Costes Variables (7)'!K28,0) -> 24000 | K11: =IF($AA$21<AN$5,+'Ventas y Costes Variables (7)'!L28,0) -> 24800 | L11: =IF($AA$21<AO$5,+'Ventas y Costes Variables (7)'!M28,0) -> 24000 | M11: =IF($AA$21<AP$5,+'Ventas y Costes Variables (7)'!N28,0) -> 24800 | N11: 220000 | P11: =+'Ventas y Costes Variables (7)'!P25 -> 33153.12 | R11: =+'Ventas y Costes Variables (7)'!S25 -> 34280.32608 | Y11: 5 | Z11: Junio | AA11: 0 | AD11: 6 | AE11: ='Simulador préstamos (3) '!$E28+'Simulador préstamos (3) '!$O28 -> 7324.503339 | AF11: 7324.503339 | AG11: 7324.503339 | AH11: 7324.503339 | AI11: =AE7 -> 7324.503339 | AJ11: =AE6 -> 7324.503339 | AK11: 0 | AL11: 0 | AM11: 0 | AN11: 0 | AO11: 0 | AP11: 0 | AQ11: 0 | AR11: 0 | AS11: 0 | AT11: 0 | AU11: 0 | AV11: 0 | AW11: 0 | AX11: 0 | AY11: 0 | AZ11: 0 | BA11: 0 | BB11: 0 | BC11: 0 | BD11: 0 | BE11: 0 | BF11: 0 | BG11: 0 | BH11: 0 | BI11: 0 | BJ11: 0 | BK11: 0 | BL11: 0 | BM11: 0 | BN11: 0
A12: =+'Líneas de Negocio (6)'!A12 -> RUTA BODEGAS CON CATAS DE VINO | B12: 0 | C12: 0 | D12: 0 | E12: 0 | F12: 0 | G12: 0 | H12: =IF($AA$21<AK$5,+'Ventas y Costes Variables (7)'!I29,0) -> 2480 | I12: =IF($AA$21<AL$5,+'Ventas y Costes Variables (7)'!J29,0) -> 2480 | J12: =IF($AA$21<AM$5,+'Ventas y Costes Variables (7)'!K29,0) -> 2400 | K12: =IF($AA$21<AN$5,+'Ventas y Costes Variables (7)'!L29,0) -> 2480 | L12: =IF($AA$21<AO$5,+'Ventas y Costes Variables (7)'!M29,0) -> 2400 | M12: =IF($AA$21<AP$5,+'Ventas y Costes Variables (7)'!N29,0) -> 2480 | N12: 14720 | P12: =+'Ventas y Costes Variables (7)'!P26 -> 728 | R12: =+'Ventas y Costes Variables (7)'!S26 -> 728 | Y12: 6 | Z12: Julio | AA12: 0 | AD12: 7 | AE12: ='Simulador préstamos (3) '!$E29+'Simulador préstamos (3) '!$O29 -> 7324.503339 | AF12: 7324.503339 | AG12: 7324.503339 | AH12: 7324.503339 | AI12: 7324.503339 | AJ12: =AE7 -> 7324.503339 | AK12: =AE6 -> 7324.503339 | AL12: 0 | AM12: 0 | AN12: 0 | AO12: 0 | AP12: 0 | AQ12: 0 | AR12: 0 | AS12: 0 | AT12: 0 | AU12: 0 | AV12: 0 | AW12: 0 | AX12: 0 | AY12: 0 | AZ12: 0 | BA12: 0 | BB12: 0 | BC12: 0 | BD12: 0 | BE12: 0 | BF12: 0 | BG12: 0 | BH12: 0 | BI12: 0 | BJ12: 0 | BK12: 0 | BL12: 0 | BM12: 0 | BN12: 0
A13: =+'Líneas de Negocio (6)'!A13 -> RUTA ENOGASTRONOMICA EN TREN | B13: =IF($AA$21=AE$5-1,'Financiación (2)'!$B$8,0) -> 0 | C13: =IF($AA$21=AF$5-1,'Financiación (2)'!$B$8,0) -> 0 | D13: =IF($AA$21=AG$5-1,'Financiación (2)'!$B$8,0) -> 0 | E13: =IF($AA$21=AH$5-1,'Financiación (2)'!$B$8,0) -> 0 | F13: =IF($AA$21=AI$5-1,'Financiación (2)'!$B$8,0) -> 0 | G13: =IF($AA$21=AJ$5-1,'Financiación (2)'!$B$8,0) -> 0 | H13: =IF($AA$21<AK$5,+'Ventas y Costes Variables (7)'!I30,0) -> 300 | I13: =IF($AA$21<AL$5,+'Ventas y Costes Variables (7)'!J30,0) -> 200 | J13: =IF($AA$21<AM$5,+'Ventas y Costes Variables (7)'!K30,0) -> 200 | K13: =IF($AA$21<AN$5,+'Ventas y Costes Variables (7)'!L30,0) -> 300 | L13: =IF($AA$21<AO$5,+'Ventas y Costes Variables (7)'!M30,0) -> 300 | M13: =IF($AA$21<AP$5,+'Ventas y Costes Variables (7)'!N30,0) -> 300 | N13: 1600 | P13: =+'Ventas y Costes Variables (7)'!P27 -> 400 | R13: =+'Ventas y Costes Variables (7)'!S27 -> 400 | Y13: 7 | Z13: Agosto | AA13: 0 | AD13: 8 | AE13: ='Simulador préstamos (3) '!$E30+'Simulador préstamos (3) '!$O30 -> 7271.394647 | AF13: 7324.503339 | AG13: 7324.503339 | AH13: 7324.503339 | AI13: 7324.503339 | AJ13: 7324.503339 | AK13: =AE7 -> 7324.503339 | AL13: =AE6 -> 7324.503339 | AM13: 0 | AN13: 0 | AO13: 0 | AP13: 0 | AQ13: 0 | AR13: 0 | AS13: 0 | AT13: 0 | AU13: 0 | AV13: 0 | AW13: 0 | AX13: 0 | AY13: 0 | AZ13: 0 | BA13: 0 | BB13: 0 | BC13: 0 | BD13: 0 | BE13: 0 | BF13: 0 | BG13: 0 | BH13: 0 | BI13: 0 | BJ13: 0 | BK13: 0 | BL13: 0 | BM13: 0 | BN13: 0
A14: =+'Líneas de Negocio (6)'!A14 -> TALLERES MARIDAJE O COCINA TRADICIONAL | B14: 0 | C14: 0 | D14: 0 | E14: 0 | F14: 0 | G14: 0 | H14: =IF($AA$21<AK$5,+'Ventas y Costes Variables (7)'!I31,0) -> 50 | I14: =IF($AA$21<AL$5,+'Ventas y Costes Variables (7)'!J31,0) -> 50 | J14: =IF($AA$21<AM$5,+'Ventas y Costes Variables (7)'!K31,0) -> 50 | K14: =IF($AA$21<AN$5,+'Ventas y Costes Variables (7)'!L31,0) -> 50 | L14: =IF($AA$21<AO$5,+'Ventas y Costes Variables (7)'!M31,0) -> 50 | M14: =IF($AA$21<AP$5,+'Ventas y Costes Variables (7)'!N31,0) -> 50 | N14: 300 | P14: =+'Ventas y Costes Variables (7)'!P28 -> 291200 | R14: =+'Ventas y Costes Variables (7)'!S28 -> 291200 | Y14: 8 | Z14: Septiembre | AA14: 0 | AD14: 9 | AE14: ='Simulador préstamos (3) '!$E31+'Simulador préstamos (3) '!$O31 -> 7218.112092 | AF14: 7271.394647 | AG14: 7324.503339 | AH14: 7324.503339 | AI14: 7324.503339 | AJ14: 7324.503339 | AK14: 7324.503339 | AL14: =AE7 -> 7324.503339 | AM14: =AE6 -> 7324.503339 | AN14: 0 | AO14: 0 | AP14: 0 | AQ14: 0 | AR14: 0 | AS14: 0 | AT14: 0 | AU14: 0 | AV14: 0 | AW14: 0 | AX14: 0 | AY14: 0 | AZ14: 0 | BA14: 0 | BB14: 0 | BC14: 0 | BD14: 0 | BE14: 0 | BF14: 0 | BG14: 0 | BH14: 0 | BI14: 0 | BJ14: 0 | BK14: 0 | BL14: 0 | BM14: 0 | BN14: 0
A15: =+'Líneas de Negocio (6)'!A15 -> PAQUETES SPA RELAX / DETOX / SHINE | H15: =IF($AA$21<AK$5,+'Ventas y Costes Variables (7)'!I32,0) -> 15000 | I15: =IF($AA$21<AL$5,+'Ventas y Costes Variables (7)'!J32,0) -> 10000 | J15: =IF($AA$21<AM$5,+'Ventas y Costes Variables (7)'!K32,0) -> 10000 | K15: =IF($AA$21<AN$5,+'Ventas y Costes Variables (7)'!L32,0) -> 15000 | L15: =IF($AA$21<AO$5,+'Ventas y Costes Variables (7)'!M32,0) -> 15000 | M15: =IF($AA$21<AP$5,+'Ventas y Costes Variables (7)'!N32,0) -> 15000 | N15: 80000 | P15: =+'Ventas y Costes Variables (7)'!P29 -> 29120 | R15: =+'Ventas y Costes Variables (7)'!S29 -> 29120
A16: =+'Líneas de Negocio (6)'!A16 -> TALLER ELABORACIÓN DE VINOS | H16: =IF($AA$21<AK$5,+'Ventas y Costes Variables (7)'!I33,0) -> 1500 | I16: =IF($AA$21<AL$5,+'Ventas y Costes Variables (7)'!J33,0) -> 1000 | J16: =IF($AA$21<AM$5,+'Ventas y Costes Variables (7)'!K33,0) -> 1000 | K16: =IF($AA$21<AN$5,+'Ventas y Costes Variables (7)'!L33,0) -> 1500 | L16: =IF($AA$21<AO$5,+'Ventas y Costes Variables (7)'!M33,0) -> 1500 | M16: =IF($AA$21<AP$5,+'Ventas y Costes Variables (7)'!N33,0) -> 1500 | N16: 8000 | P16: =+'Ventas y Costes Variables (7)'!P30 -> 3600 | R16: =+'Ventas y Costes Variables (7)'!S30 -> 3600
A17: =+'Líneas de Negocio (6)'!A17 -> PAQUETE SAN VALENTIN | H17: =IF($AA$21<AK$5,+'Ventas y Costes Variables (7)'!I34,0) -> 150 | I17: =IF($AA$21<AL$5,+'Ventas y Costes Variables (7)'!J34,0) -> 100 | J17: =IF($AA$21<AM$5,+'Ventas y Costes Variables (7)'!K34,0) -> 100 | K17: =IF($AA$21<AN$5,+'Ventas y Costes Variables (7)'!L34,0) -> 150 | L17: =IF($AA$21<AO$5,+'Ventas y Costes Variables (7)'!M34,0) -> 100 | M17: =IF($AA$21<AP$5,+'Ventas y Costes Variables (7)'!N34,0) -> 100 | N17: 700 | P17: =+'Ventas y Costes Variables (7)'!P31 -> 50 | R17: =+'Ventas y Costes Variables (7)'!S31 -> 50
A18: Capital / Recursos propios | B18: =IF($AA$21=AE$5-1,'Financiación (2)'!$B$7,0) -> 0 | C18: =IF($AA$21=AF$5-1,'Financiación (2)'!$B$7,0) -> 0 | D18: =IF($AA$21=AG$5-1,'Financiación (2)'!$B$7,0) -> 0 | E18: =IF($AA$21=AH$5-1,'Financiación (2)'!$B$7,0) -> 4474701 | F18: =IF($AA$21=AI$5-1,'Financiación (2)'!$B$7,0) -> 0 | G18: =IF($AA$21=AJ$5-1,'Financiación (2)'!$B$7,0) -> 0 | H18: =IF($AA$21=AK$5-1,'Financiación (2)'!$B$7,0) -> 0 | I18: =IF($AA$21=AL$5-1,'Financiación (2)'!$B$7,0) -> 0 | J18: =IF($AA$21=AM$5-1,'Financiación (2)'!$B$7,0) -> 0 | K18: =IF($AA$21=AN$5-1,'Financiación (2)'!$B$7,0) -> 0 | L18: =IF($AA$21=AO$5-1,'Financiación (2)'!$B$7,0) -> 0 | M18: =IF($AA$21=AP$5-1,'Financiación (2)'!$B$7,0) -> 0 | N18: 4474701 | P18: =+'Financiación (2)'!E6 -> 0 | R18: =+'Financiación (2)'!H6 -> 0 | Y18: 9 | Z18: Octubre | AA18: 0 | AD18: 10 | AE18: ='Simulador préstamos (3) '!$E32+'Simulador préstamos (3) '!$O32 -> 7164.655103 | AF18: =AE14 -> 7218.112092 | AG18: =AE13 -> 7271.394647 | AH18: =AE12 -> 7324.503339 | AI18: =AE11 -> 7324.503339 | AJ18: =AE10 -> 7324.503339 | AK18: =AE9 -> 7324.503339 | AL18: =AE8 -> 7324.503339 | AM18: =AE7 -> 7324.503339 | AN18: =AE6 -> 7324.503339 | AO18: 0 | AP18: 0 | AQ18: 0 | AR18: 0 | AS18: 0 | AT18: 0 | AU18: 0 | AV18: 0 | AW18: 0 | AX18: 0 | AY18: 0 | AZ18: 0 | BA18: 0 | BB18: 0 | BC18: 0 | BD18: 0 | BE18: 0 | BF18: 0 | BG18: 0 | BH18: 0 | BI18: 0 | BJ18: 0 | BK18: 0 | BL18: 0 | BM18: 0 | BN18: 0
A19: Préstamo activo no corriente | B19: =IF($AA$21=AE$5-1,'Financiación (2)'!$B$10,0) -> 0 | C19: =IF($AA$21=AF$5-1,'Financiación (2)'!$B$10,0) -> 0 | D19: =IF($AA$21=AG$5-1,'Financiación (2)'!$B$10,0) -> 0 | E19: =IF($AA$21=AH$5-1,'Financiación (2)'!$B$10,0) -> 2237350.5 | F19: =IF($AA$21=AI$5-1,'Financiación (2)'!$B$10,0) -> 0 | G19: =IF($AA$21=AJ$5-1,'Financiación (2)'!$B$10,0) -> 0 | H19: =IF($AA$21=AK$5-1,'Financiación (2)'!$B$10,0) -> 0 | I19: =IF($AA$21=AL$5-1,'Financiación (2)'!$B$10,0) -> 0 | J19: =IF($AA$21=AM$5-1,'Financiación (2)'!$B$10,0) -> 0 | K19: =IF($AA$21=AN$5-1,'Financiación (2)'!$B$10,0) -> 0 | L19: =IF($AA$21=AO$5-1,'Financiación (2)'!$B$10,0) -> 0 | M19: =IF($AA$21=AP$5-1,'Financiación (2)'!$B$10,0) -> 0 | N19: 2237350.5 | P19: =+'Financiación (2)'!E9 -> 0 | R19: =+'Financiación (2)'!H9 -> 0 | Y19: 10 | Z19: Noviembre | AA19: 0 | AD19: 11 | AE19: ='Simulador préstamos (3) '!$E33+'Simulador préstamos (3) '!$O33 -> 7111.02311 | AF19: 7164.655103 | AG19: =AE14 -> 7218.112092 | AH19: =AE13 -> 7271.394647 | AI19: =AE12 -> 7324.503339 | AJ19: =AE11 -> 7324.503339 | AK19: 7324.503339 | AL19: 7324.503339 | AM19: 7324.503339 | AN19: 7324.503339 | AO19: =AE6 -> 7324.503339 | AP19: 0 | AQ19: 0 | AR19: 0 | AS19: 0 | AT19: 0 | AU19: 0 | AV19: 0 | AW19: 0 | AX19: 0 | AY19: 0 | AZ19: 0 | BA19: 0 | BB19: 0 | BC19: 0 | BD19: 0 | BE19: 0 | BF19: 0 | BG19: 0 | BH19: 0 | BI19: 0 | BJ19: 0 | BK19: 0 | BL19: 0 | BM19: 0 | BN19: 0
A20: Préstamo activo corriente | B20: =IF($AA$21=AE$5-1,'Financiación (2)'!$B$11,0) -> 0 | C20: =IF($AA$21=AF$5-1,'Financiación (2)'!$B$11,0) -> 0 | D20: =IF($AA$21=AG$5-1,'Financiación (2)'!$B$11,0) -> 0 | E20: =IF($AA$21=AH$5-1,'Financiación (2)'!$B$11,0) -> 0 | F20: =IF($AA$21=AI$5-1,'Financiación (2)'!$B$11,0) -> 0 | G20: =IF($AA$21=AJ$5-1,'Financiación (2)'!$B$11,0) -> 0 | H20: =IF($AA$21=AK$5-1,'Financiación (2)'!$B$11,0) -> 0 | I20: =IF($AA$21=AL$5-1,'Financiación (2)'!$B$11,0) -> 0 | J20: =IF($AA$21=AM$5-1,'Financiación (2)'!$B$11,0) -> 0 | K20: =IF($AA$21=AN$5-1,'Financiación (2)'!$B$11,0) -> 0 | L20: =IF($AA$21=AO$5-1,'Financiación (2)'!$B$11,0) -> 0 | M20: =IF($AA$21=AP$5-1,'Financiación (2)'!$B$11,0) -> 0 | N20: 0 | P20: =+'Financiación (2)'!E11 -> 0 | R20: =+'Financiación (2)'!H11 -> 0 | Y20: 11 | Z20: Diciembre | AA20: 0 | AD20: 12 | AE20: ='Simulador préstamos (3) '!$E34+'Simulador préstamos (3) '!$O34 -> 7057.21554 | AF20: 7111.02311 | AG20: 7164.655103 | AH20: =AE14 -> 7218.112092 | AI20: =AE13 -> 7271.394647 | AJ20: =AE12 -> 7324.503339 | AK20: 7324.503339 | AL20: 7324.503339 | AM20: 7324.503339 | AN20: 7324.503339 | AO20: 7324.503339 | AP20: =AE6 -> 7324.503339 | AQ20: 0 | AR20: 0 | AS20: 0 | AT20: 0 | AU20: 0 | AV20: 0 | AW20: 0 | AX20: 0 | AY20: 0 | AZ20: 0 | BA20: 0 | BB20: 0 | BC20: 0 | BD20: 0 | BE20: 0 | BF20: 0 | BG20: 0 | BH20: 0 | BI20: 0 | BJ20: 0 | BK20: 0 | BL20: 0 | BM20: 0 | BN20: 0
A21: Otra financiación | B21: =IF($AA$21=AE$5-1,'Financiación (2)'!$B$12,0) -> 0 | C21: =IF($AA$21=AF$5-1,'Financiación (2)'!$B$12,0) -> 0 | D21: =IF($AA$21=AG$5-1,'Financiación (2)'!$B$12,0) -> 0 | E21: =IF($AA$21=AH$5-1,'Financiación (2)'!$B$12,0) -> 0 | F21: =IF($AA$21=AI$5-1,'Financiación (2)'!$B$12,0) -> 0 | G21: =IF($AA$21=AJ$5-1,'Financiación (2)'!$B$12,0) -> 0 | H21: =IF($AA$21=AK$5-1,'Financiación (2)'!$B$12,0) -> 0 | I21: =IF($AA$21=AL$5-1,'Financiación (2)'!$B$12,0) -> 0 | J21: =IF($AA$21=AM$5-1,'Financiación (2)'!$B$12,0) -> 0 | K21: =IF($AA$21=AN$5-1,'Financiación (2)'!$B$12,0) -> 0 | L21: =IF($AA$21=AO$5-1,'Financiación (2)'!$B$12,0) -> 0 | M21: =IF($AA$21=AP$5-1,'Financiación (2)'!$B$12,0) -> 0 | N21: 0 | P21: =+'Financiación (2)'!E12 -> 0 | R21: =+'Financiación (2)'!H12 -> 0 | AA21: =SUM(AA6:AA20) -> 3 | AD21: 13 | AE21: ='Simulador préstamos (3) '!$E35+'Simulador préstamos (3) '!$O35 -> 7003.231817 | AF21: 7057.21554 | AG21: 7111.02311 | AH21: 7164.655103 | AI21: =AE14 -> 7218.112092 | AJ21: =AE13 -> 7271.394647 | AK21: 7324.503339 | AL21: 7324.503339 | AM21: 7324.503339 | AN21: 7324.503339 | AO21: 7324.503339 | AP21: 7324.503339 | AQ21: =AE6 -> 7324.503339 | AR21: 0 | AS21: 0 | AT21: 0 | AU21: 0 | AV21: 0 | AW21: 0 | AX21: 0 | AY21: 0 | AZ21: 0 | BA21: 0 | BB21: 0 | BC21: 0 | BD21: 0 | BE21: 0 | BF21: 0 | BG21: 0 | BH21: 0 | BI21: 0 | BJ21: 0 | BK21: 0 | BL21: 0 | BM21: 0 | BN21: 0
A22: IVA repercutido | B22: =IF($AA$21<AE$5,+'Ventas y Costes Variables (7)'!C57,0) -> 0 | C22: =IF($AA$21<AF$5,+'Ventas y Costes Variables (7)'!D57,0) -> 0 | D22: =IF($AA$21<AG$5,+'Ventas y Costes Variables (7)'!E57,0) -> 0 | E22: =IF($AA$21<AH$5,+'Ventas y Costes Variables (7)'!F57,0) -> 31650 | F22: =IF($AA$21<AI$5,+'Ventas y Costes Variables (7)'!G57,0) -> 32705 | G22: =IF($AA$21<AJ$5,+'Ventas y Costes Variables (7)'!H57,0) -> 31650 | H22: =IF($AA$21<AK$5,+'Ventas y Costes Variables (7)'!I57,0) -> 32705 | I22: =IF($AA$21<AL$5,+'Ventas y Costes Variables (7)'!J57,0) -> 32705 | J22: =IF($AA$21<AM$5,+'Ventas y Costes Variables (7)'!K57,0) -> 31650 | K22: =IF($AA$21<AN$5,+'Ventas y Costes Variables (7)'!L57,0) -> 32705 | L22: =IF($AA$21<AO$5,+'Ventas y Costes Variables (7)'!M57,0) -> 31650 | M22: =IF($AA$21<AP$5,+'Ventas y Costes Variables (7)'!N57,0) -> 32705 | N22: 290125 | P22: =+'Ventas y Costes Variables (7)'!P57 -> 388278.8 | R22: =+'Ventas y Costes Variables (7)'!S57 -> 400490.1992 | AA22: =AA21+1 -> 4 | AD22: 14 | AE22: ='Simulador préstamos (3) '!$E36+'Simulador préstamos (3) '!$O36 -> 6949.071367 | AF22: 7003.231817 | AG22: 7057.21554 | AH22: 7111.02311 | AI22: 7164.655103 | AJ22: =AE14 -> 7218.112092 | AK22: 7271.394647 | AL22: 7324.503339 | AM22: 7324.503339 | AN22: 7324.503339 | AO22: 7324.503339 | AP22: 7324.503339 | AQ22: 7324.503339 | AR22: =AE6 -> 7324.503339 | AS22: 0 | AT22: 0 | AU22: 0 | AV22: 0 | AW22: 0 | AX22: 0 | AY22: 0 | AZ22: 0 | BA22: 0 | BB22: 0 | BC22: 0 | BD22: 0 | BE22: 0 | BF22: 0 | BG22: 0 | BH22: 0 | BI22: 0 | BJ22: 0 | BK22: 0 | BL22: 0 | BM22: 0 | BN22: 0
A23: (1)Total COBROS | B23: =SUM(B6:B22) -> 0 | C23: =SUM(C6:C22) -> 0 | D23: =SUM(D6:D22) -> 0 | E23: 7060201.5 | F23: 359755 | G23: =SUM(G6:G22) -> 348150 | H23: 379235 | I23: 373585 | J23: 361900 | K23: 379235 | L23: 367500 | M23: =SUM(M6:M22) -> 379185 | N23: =SUM(B23:M23) -> 10008746.5 | P23: =SUM(P6:P22) -> 4338117.92 | R23: =SUM(R6:R22) -> 4473570.517 | AD23: 15 | AE23: ='Simulador préstamos (3) '!$E37+'Simulador préstamos (3) '!$O37 -> 6894.733609 | AF23: 6949.071367 | AG23: 7003.231817 | AH23: 7057.21554 | AI23: 7111.02311 | AJ23: 7164.655103 | AK23: 7218.112092 | AL23: 7271.394647 | AM23: 7324.503339 | AN23: 7324.503339 | AO23: 7324.503339 | AP23: 7324.503339 | AQ23: 7324.503339 | AR23: 7324.503339 | AS23: =AE6 -> 7324.503339 | AT23: 0 | AU23: 0 | AV23: 0 | AW23: 0 | AX23: 0 | AY23: 0 | AZ23: 0 | BA23: 0 | BB23: 0 | BC23: 0 | BD23: 0 | BE23: 0 | BF23: 0 | BG23: 0 | BH23: 0 | BI23: 0 | BJ23: 0 | BK23: 0 | BL23: 0 | BM23: 0 | BN23: 0
AD24: 16 | AE24: ='Simulador préstamos (3) '!$E38+'Simulador préstamos (3) '!$O38 -> 6840.217963 | AF24: 6894.733609 | AG24: 6949.071367 | AH24: 7003.231817 | AI24: 7057.21554 | AJ24: 7111.02311 | AK24: 7164.655103 | AL24: 7218.112092 | AM24: 7271.394647 | AN24: 7324.503339 | AO24: 7324.503339 | AP24: 7324.503339 | AQ24: 7324.503339 | AR24: 7324.503339 | AS24: 7324.503339 | AT24: =AE6 -> 7324.503339 | AU24: 0 | AV24: 0 | AW24: 0 | AX24: 0 | AY24: 0 | AZ24: 0 | BA24: 0 | BB24: 0 | BC24: 0 | BD24: 0 | BE24: 0 | BF24: 0 | BG24: 0 | BH24: 0 | BI24: 0 | BJ24: 0 | BK24: 0 | BL24: 0 | BM24: 0 | BN24: 0
A25: PAGOS | B25: Enero | C25: Febrero | D25: Marzo | E25: Abril | F25: Mayo | G25: Junio | H25: Julio | I25: Agosto | J25: Septiembre | K25: Octubre | L25: Noviembre | M25: Diciembre | N25: AÑO 1 | P25: AÑO 2 | R25: AÑO 3 | AD25: 17 | AE25: ='Simulador préstamos (3) '!$E39+'Simulador préstamos (3) '!$O39 -> 6785.523847 | AF25: 6840.217963 | AG25: 6894.733609 | AH25: 6949.071367 | AI25: 7003.231817 | AJ25: 7057.21554 | AK25: 7111.02311 | AL25: 7164.655103 | AM25: 7218.112092 | AN25: 7271.394647 | AO25: 7324.503339 | AP25: 7324.503339 | AQ25: 7324.503339 | AR25: 7324.503339 | AS25: 7324.503339 | AT25: 7324.503339 | AU25: =AE6 -> 7324.503339 | AV25: 0 | AW25: 0 | AX25: 0 | AY25: 0 | AZ25: 0 | BA25: 0 | BB25: 0 | BC25: 0 | BD25: 0 | BE25: 0 | BF25: 0 | BG25: 0 | BH25: 0 | BI25: 0 | BJ25: 0 | BK25: 0 | BL25: 0 | BM25: 0 | BN25: 0
A26: =+'Ventas y Costes Variables (7)'!B67 -> Importe del C. Variable (A) | B26: =IF($AA$21<AE$5,+'Ventas y Costes Variables (7)'!C67,0) -> 0 | C26: =IF($AA$21<AF$5,+'Ventas y Costes Variables (7)'!D67,0) -> 0 | D26: =IF($AA$21<AG$5,+'Ventas y Costes Variables (7)'!E67,0) -> 0 | E26: =IF($AA$21<AH$5,+'Ventas y Costes Variables (7)'!F67,0) -> 6000 | F26: =IF($AA$21<AI$5,+'Ventas y Costes Variables (7)'!G67,0) -> 6200 | G26: =IF($AA$21<AJ$5,+'Ventas y Costes Variables (7)'!H67,0) -> 6000 | H26: =IF($AA$21<AK$5,+'Ventas y Costes Variables (7)'!I67,0) -> 6200 | I26: =IF($AA$21<AL$5,+'Ventas y Costes Variables (7)'!J67,0) -> 6200 | J26: =IF($AA$21<AM$5,+'Ventas y Costes Variables (7)'!K67,0) -> 6000 | K26: =IF($AA$21<AN$5,+'Ventas y Costes Variables (7)'!L67,0) -> 6200 | L26: =IF($AA$21<AO$5,+'Ventas y Costes Variables (7)'!M67,0) -> 6000 | M26: =IF($AA$21<AP$5,+'Ventas y Costes Variables (7)'!N67,0) -> 6200 | N26: =SUM(B26:M26) -> 55000 | P26: =+'Ventas y Costes Variables (7)'!P67 -> 72800 | R26: =+'Ventas y Costes Variables (7)'!S67 -> 72800 | AD26: 18 | AE26: ='Simulador préstamos (3) '!$E40+'Simulador préstamos (3) '!$O40 -> 6730.650677 | AF26: 6785.523847 | AG26: 6840.217963 | AH26: 6894.733609 | AI26: 6949.071367 | AJ26: 7003.231817 | AK26: 7057.21554 | AL26: 7111.02311 | AM26: =AE18 -> 7164.655103 | AN26: 7218.112092 | AO26: 7271.394647 | AP26: 7324.503339 | AQ26: 7324.503339 | AR26: 7324.503339 | AS26: 7324.503339 | AT26: 7324.503339 | AU26: 7324.503339 | AV26: =AE6 -> 7324.503339 | AW26: 0 | AX26: 0 | AY26: 0 | AZ26: 0 | BA26: 0 | BB26: 0 | BC26: 0 | BD26: 0 | BE26: 0 | BF26: 0 | BG26: 0 | BH26: 0 | BI26: 0 | BJ26: 0 | BK26: 0 | BL26: 0 | BM26: 0 | BN26: 0
A27: =+'Ventas y Costes Variables (7)'!B70 -> Importe del C. Variable (B) | B27: =IF($AA$21<AE$5,+'Ventas y Costes Variables (7)'!C70,0) -> 0 | C27: =IF($AA$21<AF$5,+'Ventas y Costes Variables (7)'!D70,0) -> 0 | D27: =IF($AA$21<AG$5,+'Ventas y Costes Variables (7)'!E70,0) -> 0 | E27: =IF($AA$21<AH$5,+'Ventas y Costes Variables (7)'!F70,0) -> 1080 | F27: =IF($AA$21<AI$5,+'Ventas y Costes Variables (7)'!G70,0) -> 1116 | G27: =IF($AA$21<AJ$5,+'Ventas y Costes Variables (7)'!H70,0) -> 1080 | H27: =IF($AA$21<AK$5,+'Ventas y Costes Variables (7)'!I70,0) -> 1116 | I27: =IF($AA$21<AL$5,+'Ventas y Costes Variables (7)'!J70,0) -> 1116 | J27: =IF($AA$21<AM$5,+'Ventas y Costes Variables (7)'!K70,0) -> 1080 | K27: =IF($AA$21<AN$5,+'Ventas y Costes Variables (7)'!L70,0) -> 1116 | L27: =IF($AA$21<AO$5,+'Ventas y Costes Variables (7)'!M70,0) -> 1080 | M27: =IF($AA$21<AP$5,+'Ventas y Costes Variables (7)'!N70,0) -> 1116 | N27: 9900 | P27: =+'Ventas y Costes Variables (7)'!P70 -> 13104 | R27: =+'Ventas y Costes Variables (7)'!S70 -> 13104 | AD27: 19 | AE27: ='Simulador préstamos (3) '!$E41+'Simulador préstamos (3) '!$O41 -> 6675.597866 | AF27: 6730.650677 | AG27: 6785.523847 | AH27: 6840.217963 | AI27: 6894.733609 | AJ27: 6949.071367 | AK27: 7003.231817 | AL27: 7057.21554 | AM27: 7111.02311 | AN27: =AE18 -> 7164.655103 | AO27: 7218.112092 | AP27: 7271.394647 | AQ27: 7324.503339 | AR27: 7324.503339 | AS27: 7324.503339 | AT27: 7324.503339 | AU27: 7324.503339 | AV27: 7324.503339 | AW27: =AE6 -> 7324.503339 | AX27: 0 | AY27: 0 | AZ27: 0 | BA27: 0 | BB27: 0 | BC27: 0 | BD27: 0 | BE27: 0 | BF27: 0 | BG27: 0 | BH27: 0 | BI27: 0 | BJ27: 0 | BK27: 0 | BL27: 0 | BM27: 0 | BN27: 0
A28: =+'Ventas y Costes Variables (7)'!B73 -> Importe del C. Variable (C) | B28: =IF($AA$21<AE$5,+'Ventas y Costes Variables (7)'!C73,0) -> 0 | C28: =IF($AA$21<AF$5,+'Ventas y Costes Variables (7)'!D73,0) -> 0 | D28: =IF($AA$21<AG$5,+'Ventas y Costes Variables (7)'!E73,0) -> 0 | E28: =IF($AA$21<AH$5,+'Ventas y Costes Variables (7)'!F73,0) -> 900 | F28: =IF($AA$21<AI$5,+'Ventas y Costes Variables (7)'!G73,0) -> 930 | G28: =IF($AA$21<AJ$5,+'Ventas y Costes Variables (7)'!H73,0) -> 900 | H28: =IF($AA$21<AK$5,+'Ventas y Costes Variables (7)'!I73,0) -> 930 | I28: =IF($AA$21<AL$5,+'Ventas y Costes Variables (7)'!J73,0) -> 930 | J28: =IF($AA$21<AM$5,+'Ventas y Costes Variables (7)'!K73,0) -> 900 | K28: =IF($AA$21<AN$5,+'Ventas y Costes Variables (7)'!L73,0) -> 930 | L28: =IF($AA$21<AO$5,+'Ventas y Costes Variables (7)'!M73,0) -> 900 | M28: =IF($AA$21<AP$5,+'Ventas y Costes Variables (7)'!N73,0) -> 930 | N28: 8250 | P28: =+'Ventas y Costes Variables (7)'!P73 -> 10920 | R28: =+'Ventas y Costes Variables (7)'!S73 -> 10920 | AD28: 20 | AE28: ='Simulador préstamos (3) '!$E42+'Simulador préstamos (3) '!$O42 -> 6620.364827 | AF28: 6675.597866 | AG28: 6730.650677 | AH28: 6785.523847 | AI28: 6840.217963 | AJ28: 6894.733609 | AK28: 6949.071367 | AL28: 7003.231817 | AM28: 7057.21554 | AN28: 7111.02311 | AO28: =AE18 -> 7164.655103 | AP28: 7218.112092 | AQ28: 7271.394647 | AR28: 7324.503339 | AS28: 7324.503339 | AT28: 7324.503339 | AU28: 7324.503339 | AV28: 7324.503339 | AW28: 7324.503339 | AX28: =AE6 -> 7324.503339 | AY28: 0 | AZ28: 0 | BA28: 0 | BB28: 0 | BC28: 0 | BD28: 0 | BE28: 0 | BF28: 0 | BG28: 0 | BH28: 0 | BI28: 0 | BJ28: 0 | BK28: 0 | BL28: 0 | BM28: 0 | BN28: 0
A29: =+'Ventas y Costes Variables (7)'!B76 -> Importe del C. Variable (D) | B29: =IF($AA$21<AE$5,+'Ventas y Costes Variables (7)'!C76,0) -> 0 | C29: =IF($AA$21<AF$5,+'Ventas y Costes Variables (7)'!D76,0) -> 0 | D29: =IF($AA$21<AG$5,+'Ventas y Costes Variables (7)'!E76,0) -> 0 | E29: =IF($AA$21<AH$5,+'Ventas y Costes Variables (7)'!F76,0) -> 12000 | F29: =IF($AA$21<AI$5,+'Ventas y Costes Variables (7)'!G76,0) -> 12400 | G29: =IF($AA$21<AJ$5,+'Ventas y Costes Variables (7)'!H76,0) -> 12000 | H29: =IF($AA$21<AK$5,+'Ventas y Costes Variables (7)'!I76,0) -> 12400 | I29: =IF($AA$21<AL$5,+'Ventas y Costes Variables (7)'!J76,0) -> 12400 | J29: =IF($AA$21<AM$5,+'Ventas y Costes Variables (7)'!K76,0) -> 12000 | K29: =IF($AA$21<AN$5,+'Ventas y Costes Variables (7)'!L76,0) -> 12400 | L29: =IF($AA$21<AO$5,+'Ventas y Costes Variables (7)'!M76,0) -> 12000 | M29: =IF($AA$21<AP$5,+'Ventas y Costes Variables (7)'!N76,0) -> 12400 | N29: 110000 | P29: =+'Ventas y Costes Variables (7)'!P76 -> 145600 | R29: =+'Ventas y Costes Variables (7)'!S76 -> 145600 | AD29: 21 | AE29: ='Simulador préstamos (3) '!$E43+'Simulador préstamos (3) '!$O43 -> 6564.95097 | AF29: 6620.364827 | AG29: 6675.597866 | AH29: 6730.650677 | AI29: 6785.523847 | AJ29: 6840.217963 | AK29: 6894.733609 | AL29: 6949.071367 | AM29: 7003.231817 | AN29: 7057.21554 | AO29: 7111.02311 | AP29: =AE18 -> 7164.655103 | AQ29: 7218.112092 | AR29: 7271.394647 | AS29: 7324.503339 | AT29: 7324.503339 | AU29: 7324.503339 | AV29: 7324.503339 | AW29: 7324.503339 | AX29: 7324.503339 | AY29: =AE6 -> 7324.503339 | AZ29: 0 | BA29: 0 | BB29: 0 | BC29: 0 | BD29: 0 | BE29: 0 | BF29: 0 | BG29: 0 | BH29: 0 | BI29: 0 | BJ29: 0 | BK29: 0 | BL29: 0 | BM29: 0 | BN29: 0
A30: =+'Ventas y Costes Variables (7)'!B79 -> Importe del C. Variable (E) | B30: =IF($AA$21<AE$5,+'Ventas y Costes Variables (7)'!C79,0) -> 0 | C30: =IF($AA$21<AF$5,+'Ventas y Costes Variables (7)'!D79,0) -> 0 | D30: =IF($AA$21<AG$5,+'Ventas y Costes Variables (7)'!E79,0) -> 0 | E30: =IF($AA$21<AH$5,+'Ventas y Costes Variables (7)'!F79,0) -> 1980 | F30: =IF($AA$21<AI$5,+'Ventas y Costes Variables (7)'!G79,0) -> 2046 | G30: =IF($AA$21<AJ$5,+'Ventas y Costes Variables (7)'!H79,0) -> 1980 | H30: =IF($AA$21<AK$5,+'Ventas y Costes Variables (7)'!I79,0) -> 2046 | I30: =IF($AA$21<AL$5,+'Ventas y Costes Variables (7)'!J79,0) -> 2046 | J30: =IF($AA$21<AM$5,+'Ventas y Costes Variables (7)'!K79,0) -> 1980 | K30: =IF($AA$21<AN$5,+'Ventas y Costes Variables (7)'!L79,0) -> 2046 | L30: =IF($AA$21<AO$5,+'Ventas y Costes Variables (7)'!M79,0) -> 1980 | M30: =IF($AA$21<AP$5,+'Ventas y Costes Variables (7)'!N79,0) -> 2046 | N30: 18150 | P30: =+'Ventas y Costes Variables (7)'!P79 -> 24024 | R30: =+'Ventas y Costes Variables (7)'!S79 -> 24024 | AD30: 22 | AE30: ='Simulador préstamos (3) '!$E44+'Simulador préstamos (3) '!$O44 -> 6509.355701 | AF30: 6564.95097 | AG30: 6620.364827 | AH30: 6675.597866 | AI30: 6730.650677 | AJ30: 6785.523847 | AK30: 6840.217963 | AL30: 6894.733609 | AM30: 6949.071367 | AN30: 7003.231817 | AO30: 7057.21554 | AP30: 7111.02311 | AQ30: =AE18 -> 7164.655103 | AR30: 7218.112092 | AS30: 7271.394647 | AT30: 7324.503339 | AU30: 7324.503339 | AV30: 7324.503339 | AW30: 7324.503339 | AX30: 7324.503339 | AY30: 7324.503339 | AZ30: =AY29 -> 7324.503339 | BA30: 0 | BB30: 0 | BC30: 0 | BD30: 0 | BE30: 0 | BF30: 0 | BG30: 0 | BH30: 0 | BI30: 0 | BJ30: 0 | BK30: 0 | BL30: 0 | BM30: 0 | BN30: 0
A31: =+'Ventas y Costes Variables (7)'!B82 -> Importe del C. Variable (F) | B31: =IF($AA$21<AE$5,+'Ventas y Costes Variables (7)'!C82,0) -> 0 | C31: =IF($AA$21<AF$5,+'Ventas y Costes Variables (7)'!D82,0) -> 0 | D31: =IF($AA$21<AG$5,+'Ventas y Costes Variables (7)'!E82,0) -> 0 | E31: =IF($AA$21<AH$5,+'Ventas y Costes Variables (7)'!F82,0) -> 1500 | F31: =IF($AA$21<AI$5,+'Ventas y Costes Variables (7)'!G82,0) -> 1500 | G31: =IF($AA$21<AJ$5,+'Ventas y Costes Variables (7)'!H82,0) -> 1500 | H31: =IF($AA$21<AK$5,+'Ventas y Costes Variables (7)'!I82,0) -> 1500 | I31: =IF($AA$21<AL$5,+'Ventas y Costes Variables (7)'!J82,0) -> 1500 | J31: =IF($AA$21<AM$5,+'Ventas y Costes Variables (7)'!K82,0) -> 1500 | K31: =IF($AA$21<AN$5,+'Ventas y Costes Variables (7)'!L82,0) -> 1500 | L31: =IF($AA$21<AO$5,+'Ventas y Costes Variables (7)'!M82,0) -> 1500 | M31: =IF($AA$21<AP$5,+'Ventas y Costes Variables (7)'!N82,0) -> 1500 | N31: 13500 | P31: =+'Ventas y Costes Variables (7)'!P82 -> 18000 | R31: =+'Ventas y Costes Variables (7)'!S82 -> 18000 | AD31: 23 | AE31: ='Simulador préstamos (3) '!$E45+'Simulador préstamos (3) '!$O45 -> 6453.578429 | AF31: 6509.355701 | AG31: 6564.95097 | AH31: 6620.364827 | AI31: 6675.597866 | AJ31: 6730.650677 | AK31: 6785.523847 | AL31: 6840.217963 | AM31: 6894.733609 | AN31: 6949.071367 | AO31: 7003.231817 | AP31: 7057.21554 | AQ31: 7111.02311 | AR31: =AE18 -> 7164.655103 | AS31: 7218.112092 | AT31: 7271.394647 | AU31: 7324.503339 | AV31: 7324.503339 | AW31: 7324.503339 | AX31: 7324.503339 | AY31: 7324.503339 | AZ31: =AY30 -> 7324.503339 | BA31: =AZ30 -> 7324.503339 | BB31: 0 | BC31: 0 | BD31: 0 | BE31: 0 | BF31: 0 | BG31: 0 | BH31: 0 | BI31: 0 | BJ31: 0 | BK31: 0 | BL31: 0 | BM31: 0 | BN31: 0
A32: Otros Costes Variables | B32: =IF($AA$21<AE$5,+'Ventas y Costes Variables (7)'!C117,0) -> 0 | C32: =IF($AA$21<AF$5,+'Ventas y Costes Variables (7)'!D117,0) -> 0 | D32: =IF($AA$21<AG$5,+'Ventas y Costes Variables (7)'!E117,0) -> 0 | E32: =IF($AA$21<AH$5,+'Ventas y Costes Variables (7)'!F117,0) -> 0 | F32: =IF($AA$21<AI$5,+'Ventas y Costes Variables (7)'!G117,0) -> 0 | G32: =IF($AA$21<AJ$5,+'Ventas y Costes Variables (7)'!H117,0) -> 0 | H32: =IF($AA$21<AK$5,+'Ventas y Costes Variables (7)'!I117,0) -> 0 | I32: =IF($AA$21<AL$5,+'Ventas y Costes Variables (7)'!J117,0) -> 0 | J32: =IF($AA$21<AM$5,+'Ventas y Costes Variables (7)'!K117,0) -> 0 | K32: =IF($AA$21<AN$5,+'Ventas y Costes Variables (7)'!L117,0) -> 0 | L32: =IF($AA$21<AO$5,+'Ventas y Costes Variables (7)'!M117,0) -> 0 | M32: =IF($AA$21<AP$5,+'Ventas y Costes Variables (7)'!N117,0) -> 0 | N32: 0 | P32: =+'Ventas y Costes Variables (7)'!P117 -> 0 | R32: =+'Ventas y Costes Variables (7)'!S117 -> 0 | AD32: 24 | AE32: ='Simulador préstamos (3) '!$E46+'Simulador préstamos (3) '!$O46 -> 6397.618556 | AF32: 6453.578429 | AG32: 6509.355701 | AH32: 6564.95097 | AI32: 6620.364827 | AJ32: 6675.597866 | AK32: 6730.650677 | AL32: 6785.523847 | AM32: 6840.217963 | AN32: 6894.733609 | AO32: 6949.071367 | AP32: 7003.231817 | AQ32: 7057.21554 | AR32: 7111.02311 | AS32: =AE18 -> 7164.655103 | AT32: 7218.112092 | AU32: 7271.394647 | AV32: 7324.503339 | AW32: 7324.503339 | AX32: 7324.503339 | AY32: 7324.503339 | AZ32: 7324.503339 | BA32: 7324.503339 | BB32: =BA31 -> 7324.503339 | BC32: 0 | BD32: 0 | BE32: 0 | BF32: 0 | BG32: 0 | BH32: 0 | BI32: 0 | BJ32: 0 | BK32: 0 | BL32: 0 | BM32: 0 | BN32: 0
A33: Inversión | B33: =IF($AA$21=AE$5-1,+'Plan de Inversión (1)'!$B$31,0) -> 0 | C33: =IF($AA$21=AF$5-1,+'Plan de Inversión (1)'!$B$31,0) -> 0 | D33: =IF($AA$21=AG$5-1,+'Plan de Inversión (1)'!$B$31,0) -> 0 | E33: =IF($AA$21=AH$5-1,+'Plan de Inversión (1)'!$B$31,0) -> 5547150 | F33: =IF($AA$21=AI$5-1,+'Plan de Inversión (1)'!$B$31,0) -> 0 | G33: =IF($AA$21=AJ$5-1,+'Plan de Inversión (1)'!$B$31,0) -> 0 | H33: =IF($AA$21=AK$5-1,+'Plan de Inversión (1)'!$B$31,0) -> 0 | I33: =IF($AA$21=AL$5-1,+'Plan de Inversión (1)'!$B$31,0) -> 0 | J33: =IF($AA$21=AM$5-1,+'Plan de Inversión (1)'!$B$31,0) -> 0 | K33: =IF($AA$21=AN$5-1,+'Plan de Inversión (1)'!$B$31,0) -> 0 | L33: =IF($AA$21=AO$5-1,+'Plan de Inversión (1)'!$B$31,0) -> 0 | M33: =IF($AA$21=AP$5-1,+'Plan de Inversión (1)'!$B$31,0) -> 0 | N33: 5547150 | P33: =+'Plan de Inversión (1)'!F31 -> 0 | R33: =+'Plan de Inversión (1)'!J31 -> 0 | AD33: 25 | AE33: ='Simulador préstamos (3) '!$E47+'Simulador préstamos (3) '!$O47 -> 6341.475484 | AF33: 6397.618556 | AG33: 6453.578429 | AH33: 6509.355701 | AI33: 6564.95097 | AJ33: 6620.364827 | AK33: 6675.597866 | AL33: 6730.650677 | AM33: 6785.523847 | AN33: 6840.217963 | AO33: 6894.733609 | AP33: 6949.071367 | AQ33: 7003.231817 | AR33: 7057.21554 | AS33: 7111.02311 | AT33: =AE18 -> 7164.655103 | AU33: 7218.112092 | AV33: 7271.394647 | AW33: 7324.503339 | AX33: 7324.503339 | AY33: 7324.503339 | AZ33: 7324.503339 | BA33: 7324.503339 | BB33: 7324.503339 | BC33: =BB32 -> 7324.503339 | BD33: 0 | BE33: 0 | BF33: 0 | BG33: 0 | BH33: 0 | BI33: 0 | BJ33: 0 | BK33: 0 | BL33: 0 | BM33: 0 | BN33: 0
A34: Periodificación pago a proveed./acreed. | B34: 0 | C34: 0 | D34: 0 | E34: 0 | F34: 0 | G34: 0 | H34: 0 | I34: 0 | J34: 0 | K34: 0 | L34: 0 | M34: 0 | N34: =SUM(B34:M34) -> 0 | P34: =+N34/$AA$22*12+(N34*$D$63) -> 0 | R34: =P34 -> 0 | AD34: 26 | AE34: ='Simulador préstamos (3) '!$E48+'Simulador préstamos (3) '!$O48 -> 6285.148616 | AF34: 6341.475484 | AG34: 6397.618556 | AH34: 6453.578429 | AI34: 6509.355701 | AJ34: 6564.95097 | AK34: 6620.364827 | AL34: 6675.597866 | AM34: 6730.650677 | AN34: 6785.523847 | AO34: 6840.217963 | AP34: 6894.733609 | AQ34: 6949.071367 | AR34: 7003.231817 | AS34: 7057.21554 | AT34: 7111.02311 | AU34: =AE18 -> 7164.655103 | AV34: 7218.112092 | AW34: 7271.394647 | AX34: 7324.503339 | AY34: 7324.503339 | AZ34: 7324.503339 | BA34: 7324.503339 | BB34: 7324.503339 | BC34: 7324.503339 | BD34: =AE6 -> 7324.503339 | BE34: 0 | BF34: 0 | BG34: 0 | BH34: 0 | BI34: 0 | BJ34: 0 | BK34: 0 | BL34: 0 | BM34: 0 | BN34: 0
A35: Retribución propia/s (en caso de autónomos) | B35: =IF($AA$21<AE$5,+'Plan de RRHH (4)'!$B$32,0) -> 0 | C35: =IF($AA$21<AF$5,+'Plan de RRHH (4)'!$B$32,0) -> 0 | D35: =IF($AA$21<AG$5,+'Plan de RRHH (4)'!$B$32,0) -> 0 | E35: =IF($AA$21<AH$5,+'Plan de RRHH (4)'!$B$32,0) -> 4200 | F35: =IF($AA$21<AI$5,+'Plan de RRHH (4)'!$B$32,0) -> 4200 | G35: =IF($AA$21<AJ$5,+'Plan de RRHH (4)'!$B$32,0) -> 4200 | H35: =IF($AA$21<AK$5,+'Plan de RRHH (4)'!$B$32,0) -> 4200 | I35: =IF($AA$21<AL$5,+'Plan de RRHH (4)'!$B$32,0) -> 4200 | J35: =IF($AA$21<AM$5,+'Plan de RRHH (4)'!$B$32,0) -> 4200 | K35: =IF($AA$21<AN$5,+'Plan de RRHH (4)'!$B$32,0) -> 4200 | L35: =IF($AA$21<AO$5,+'Plan de RRHH (4)'!$B$32,0) -> 4200 | M35: =IF($AA$21<AP$5,+'Plan de RRHH (4)'!$B$32,0) -> 4200 | N35: =SUM(B35:M35) -> 37800 | P35: =+N35+(N35*$D$63) -> 38253.6 | R35: =+P35+(P35*$D$63) -> 38712.6432 | AD35: 27 | AE35: ='Simulador préstamos (3) '!$E49+'Simulador préstamos (3) '!$O49 -> 6228.637347 | AF35: 6285.148616 | AG35: 6341.475484 | AH35: 6397.618556 | AI35: 6453.578429 | AJ35: 6509.355701 | AK35: 6564.95097 | AL35: 6620.364827 | AM35: 6675.597866 | AN35: 6730.650677 | AO35: 6785.523847 | AP35: 6840.217963 | AQ35: 6894.733609 | AR35: 6949.071367 | AS35: 7003.231817 | AT35: 7057.21554 | AU35: 7111.02311 | AV35: =AE18 -> 7164.655103 | AW35: 7218.112092 | AX35: 7271.394647 | AY35: 7324.503339 | AZ35: 7324.503339 | BA35: 7324.503339 | BB35: 7324.503339 | BC35: 7324.503339 | BD35: 7324.503339 | BE35: =AE6 -> 7324.503339 | BF35: 0 | BG35: 0 | BH35: 0 | BI35: 0 | BJ35: 0 | BK35: 0 | BL35: 0 | BM35: 0 | BN35: 0
A36: Retribución a trabajadores | B36: =IF($AA$21<AE$5,+'Plan de RRHH (4)'!$E$6+'Plan de RRHH (4)'!$E$7+'Plan de RRHH (4)'!$E$8+'Plan de RRHH (4)'!$E$15+'Plan de RRHH (4)'!#REF!,0) -> 0 | C36: =IF($AA$21<AF$5,+'Plan de RRHH (4)'!$E$6+'Plan de RRHH (4)'!$E$7+'Plan de RRHH (4)'!$E$8+'Plan de RRHH (4)'!$E$15+'Plan de RRHH (4)'!#REF!,0) -> 0 | D36: =IF($AA$21<AG$5,+'Plan de RRHH (4)'!$E$6+'Plan de RRHH (4)'!$E$7+'Plan de RRHH (4)'!$E$8+'Plan de RRHH (4)'!$E$15+'Plan de RRHH (4)'!#REF!,0) -> 0 | E36: =IF($AA$21<AH$5,+'Plan de RRHH (4)'!$E6+'Plan de RRHH (4)'!$E7+'Plan de RRHH (4)'!$E8+'Plan de RRHH (4)'!$E9+'Plan de RRHH (4)'!$E10+'Plan de RRHH (4)'!$E11+'Plan de RRHH (4)'!$E12+'Plan de RRHH (4)'!$E13+'Plan de RRHH (4)'!$E14+'Plan de RRHH (4)'!$E15+'Plan de RRHH (4)'!$E16+'Plan de RRHH (4)'!$E17+'Plan de RRHH (4)'!$E18+'Plan de RRHH (4)'!$E19+'Plan de RRHH (4)'!E$20+'Plan de RRHH (4)'!$E21+'Plan de RRHH (4)'!$E22) -> 75300 | F36: =IF($AA$21<AI$5,+'Plan de RRHH (4)'!$E6+'Plan de RRHH (4)'!$E7+'Plan de RRHH (4)'!$E8+'Plan de RRHH (4)'!$E9+'Plan de RRHH (4)'!$E10+'Plan de RRHH (4)'!$E11+'Plan de RRHH (4)'!$E12+'Plan de RRHH (4)'!$E13+'Plan de RRHH (4)'!$E14+'Plan de RRHH (4)'!$E15+'Plan de RRHH (4)'!$E16+'Plan de RRHH (4)'!$E17+'Plan de RRHH (4)'!$E18+'Plan de RRHH (4)'!$E19+'Plan de RRHH (4)'!F$20+'Plan de RRHH (4)'!$E21+'Plan de RRHH (4)'!$E22) -> 73700.3164 | G36: =IF($AA$21<AJ$5,+'Plan de RRHH (4)'!$E6+'Plan de RRHH (4)'!$E7+'Plan de RRHH (4)'!$E8+'Plan de RRHH (4)'!$E9+'Plan de RRHH (4)'!$E10+'Plan de RRHH (4)'!$E11+'Plan de RRHH (4)'!$E12+'Plan de RRHH (4)'!$E13+'Plan de RRHH (4)'!$E14+'Plan de RRHH (4)'!$E15+'Plan de RRHH (4)'!$E16+'Plan de RRHH (4)'!$E17+'Plan de RRHH (4)'!$E18+'Plan de RRHH (4)'!$E19+'Plan de RRHH (4)'!G$20+'Plan de RRHH (4)'!$E21+'Plan de RRHH (4)'!$E22) -> 79774.88 | H36: =IF($AA$21<AK$5,+'Plan de RRHH (4)'!$E6+'Plan de RRHH (4)'!$E7+'Plan de RRHH (4)'!$E8+'Plan de RRHH (4)'!$E9+'Plan de RRHH (4)'!$E10+'Plan de RRHH (4)'!$E11+'Plan de RRHH (4)'!$E12+'Plan de RRHH (4)'!$E13+'Plan de RRHH (4)'!$E14+'Plan de RRHH (4)'!$E15+'Plan de RRHH (4)'!$E16+'Plan de RRHH (4)'!$E17+'Plan de RRHH (4)'!$E18+'Plan de RRHH (4)'!$E19+'Plan de RRHH (4)'!H$20+'Plan de RRHH (4)'!$E21+'Plan de RRHH (4)'!$E22) -> 98974.88 | I36: =IF($AA$21<AL$5,+'Plan de RRHH (4)'!$E6+'Plan de RRHH (4)'!$E7+'Plan de RRHH (4)'!$E8+'Plan de RRHH (4)'!$E9+'Plan de RRHH (4)'!$E10+'Plan de RRHH (4)'!$E11+'Plan de RRHH (4)'!$E12+'Plan de RRHH (4)'!$E13+'Plan de RRHH (4)'!$E14+'Plan de RRHH (4)'!$E15+'Plan de RRHH (4)'!$E16+'Plan de RRHH (4)'!$E17+'Plan de RRHH (4)'!$E18+'Plan de RRHH (4)'!$E19+'Plan de RRHH (4)'!I$20+'Plan de RRHH (4)'!$E21+'Plan de RRHH (4)'!$E22) -> 73700 | J36: =IF($AA$21<AM$5,+'Plan de RRHH (4)'!$E6+'Plan de RRHH (4)'!$E7+'Plan de RRHH (4)'!$E8+'Plan de RRHH (4)'!$E9+'Plan de RRHH (4)'!$E10+'Plan de RRHH (4)'!$E11+'Plan de RRHH (4)'!$E12+'Plan de RRHH (4)'!$E13+'Plan de RRHH (4)'!$E14+'Plan de RRHH (4)'!$E15+'Plan de RRHH (4)'!$E16+'Plan de RRHH (4)'!$E17+'Plan de RRHH (4)'!$E18+'Plan de RRHH (4)'!$E19+'Plan de RRHH (4)'!J$20+'Plan de RRHH (4)'!$E21+'Plan de RRHH (4)'!$E22) -> 73700 | K36: =IF($AA$21<AN$5,+'Plan de RRHH (4)'!$E6+'Plan de RRHH (4)'!$E7+'Plan de RRHH (4)'!$E8+'Plan de RRHH (4)'!$E9+'Plan de RRHH (4)'!$E10+'Plan de RRHH (4)'!$E11+'Plan de RRHH (4)'!$E12+'Plan de RRHH (4)'!$E13+'Plan de RRHH (4)'!$E14+'Plan de RRHH (4)'!$E15+'Plan de RRHH (4)'!$E16+'Plan de RRHH (4)'!$E17+'Plan de RRHH (4)'!$E18+'Plan de RRHH (4)'!$E19+'Plan de RRHH (4)'!K$20+'Plan de RRHH (4)'!$E21+'Plan de RRHH (4)'!$E22) -> 73700 | L36: =IF($AA$21<AO$5,+'Plan de RRHH (4)'!$E6+'Plan de RRHH (4)'!$E7+'Plan de RRHH (4)'!$E8+'Plan de RRHH (4)'!$E9+'Plan de RRHH (4)'!$E10+'Plan de RRHH (4)'!$E11+'Plan de RRHH (4)'!$E12+'Plan de RRHH (4)'!$E13+'Plan de RRHH (4)'!$E14+'Plan de RRHH (4)'!$E15+'Plan de RRHH (4)'!$E16+'Plan de RRHH (4)'!$E17+'Plan de RRHH (4)'!$E18+'Plan de RRHH (4)'!$E19+'Plan de RRHH (4)'!L$20+'Plan de RRHH (4)'!$E21+'Plan de RRHH (4)'!$E22) -> 73700 | M36: =IF($AA$21<AP$5,+'Plan de RRHH (4)'!$E6+'Plan de RRHH (4)'!$E7+'Plan de RRHH (4)'!$E8+'Plan de RRHH (4)'!$E9+'Plan de RRHH (4)'!$E10+'Plan de RRHH (4)'!$E11+'Plan de RRHH (4)'!$E12+'Plan de RRHH (4)'!$E13+'Plan de RRHH (4)'!$E14+'Plan de RRHH (4)'!$E15+'Plan de RRHH (4)'!$E16+'Plan de RRHH (4)'!$E17+'Plan de RRHH (4)'!$E18+'Plan de RRHH (4)'!$E19+'Plan de RRHH (4)'!M$20+'Plan de RRHH (4)'!$E21+'Plan de RRHH (4)'!$E22) -> 73700 | N36: 696250.0764 | P36: 704605.0773 | R36: =+P36+(P36*$D$63) -> 713060.3382 | AD36: 28 | AE36: ='Simulador préstamos (3) '!$E50+'Simulador préstamos (3) '!$O50 -> 6171.941076 | AF36: 6228.637347 | AG36: 6285.148616 | AH36: 6341.475484 | AI36: 6397.618556 | AJ36: 6453.578429 | AK36: 6509.355701 | AL36: 6564.95097 | AM36: 6620.364827 | AN36: 6675.597866 | AO36: 6730.650677 | AP36: 6785.523847 | AQ36: 6840.217963 | AR36: 6894.733609 | AS36: 6949.071367 | AT36: 7003.231817 | AU36: 7057.21554 | AV36: 7111.02311 | AW36: =AE18 -> 7164.655103 | AX36: 7218.112092 | AY36: 7271.394647 | AZ36: 7324.503339 | BA36: 7324.503339 | BB36: 7324.503339 | BC36: 7324.503339 | BD36: 7324.503339 | BE36: 7324.503339 | BF36: =AE6 -> 7324.503339 | BG36: 0 | BH36: 0 | BI36: 0 | BJ36: 0 | BK36: 0 | BL36: 0 | BM36: 0 | BN36: 0
A37: Seguridad social a cargo empresa (trabajadores) | B37: =IF($AA$21<AE$5,'Plan de RRHH (4)'!$G$23/12,0) -> 0 | C37: =IF($AA$21<AF$5,'Plan de RRHH (4)'!$G$23/12,0) -> 0 | D37: =IF($AA$21<AG$5,'Plan de RRHH (4)'!$G$23/12,0) -> 0 | E37: =IF($AA$21<AH$5,'Plan de RRHH (4)'!$G$23/12,0) -> 23824.92 | F37: =IF($AA$21<AI$5,'Plan de RRHH (4)'!$G$23/12,0) -> 23824.92 | G37: =IF($AA$21<AJ$5,'Plan de RRHH (4)'!$G$23/12,0) -> 23824.92 | H37: =IF($AA$21<AK$5,'Plan de RRHH (4)'!$G$23/12,0) -> 23824.92 | I37: =IF($AA$21<AL$5,'Plan de RRHH (4)'!$G$23/12,0) -> 23824.92 | J37: =IF($AA$21<AM$5,'Plan de RRHH (4)'!$G$23/12,0) -> 23824.92 | K37: =IF($AA$21<AN$5,'Plan de RRHH (4)'!$G$23/12,0) -> 23824.92 | L37: =IF($AA$21<AO$5,'Plan de RRHH (4)'!$G$23/12,0) -> 23824.92 | M37: =IF($AA$21<AP$5,'Plan de RRHH (4)'!$G$23/12,0) -> 23824.92 | N37: 214424.28 | P37: =+N37+(N37*$D$63) -> 216997.3714 | R37: =+P37+(P37*$D$63) -> 219601.3398 | AD37: 29 | AE37: ='Simulador préstamos (3) '!$E51+'Simulador préstamos (3) '!$O51 -> 6115.059195 | AF37: 6171.941076 | AG37: 6228.637347 | AH37: 6285.148616 | AI37: 6341.475484 | AJ37: 6397.618556 | AK37: 6453.578429 | AL37: 6509.355701 | AM37: 6564.95097 | AN37: 6620.364827 | AO37: 6675.597866 | AP37: 6730.650677 | AQ37: 6785.523847 | AR37: 6840.217963 | AS37: 6894.733609 | AT37: 6949.071367 | AU37: 7003.231817 | AV37: 7057.21554 | AW37: 7111.02311 | AX37: =AE18 -> 7164.655103 | AY37: 7218.112092 | AZ37: 7271.394647 | BA37: 7324.503339 | BB37: 7324.503339 | BC37: 7324.503339 | BD37: 7324.503339 | BE37: 7324.503339 | BF37: 7324.503339 | BG37: =AE6 -> 7324.503339 | BH37: 0 | BI37: 0 | BJ37: 0 | BK37: 0 | BL37: 0 | BM37: 0 | BN37: 0
A38: Cuotas de Autónomos | B38: =INDEX($AE$86:$AP$97,AE85,$AA$22) -> 0 | C38: =INDEX($AE$86:$AP$97,AF85,$AA$22) -> 0 | D38: 0 | E38: 53.07 | F38: 53.07 | G38: 53.07 | H38: 53.07 | I38: 53.07 | J38: 53.07 | K38: 131.36 | L38: 131.36 | M38: 131.36 | N38: =SUM(B38:M38) -> 712.5 | P38: =+'Plan de RRHH (4)'!R32 -> 6598.08 | R38: =+'Plan de RRHH (4)'!S32 -> 6598.08 | AD38: 30 | AE38: ='Simulador préstamos (3) '!$E52+'Simulador préstamos (3) '!$O52 -> 6057.991098 | AF38: =AE37 -> 6115.059195 | AG38: =AE36 -> 6171.941076 | AH38: =AE35 -> 6228.637347 | AI38: =AE34 -> 6285.148616 | AJ38: =AE33 -> 6341.475484 | AK38: =AE32 -> 6397.618556 | AL38: =AE31 -> 6453.578429 | AM38: =AE30 -> 6509.355701 | AN38: =AE29 -> 6564.95097 | AO38: =AE28 -> 6620.364827 | AP38: =AE27 -> 6675.597866 | AQ38: =AE26 -> 6730.650677 | AR38: =AE25 -> 6785.523847 | AS38: =AE24 -> 6840.217963 | AT38: =AE23 -> 6894.733609 | AU38: =AE22 -> 6949.071367 | AV38: =AE21 -> 7003.231817 | AW38: =AE20 -> 7057.21554 | AX38: =AE19 -> 7111.02311 | AY38: =AE18 -> 7164.655103 | AZ38: =AY37 -> 7218.112092 | BA38: 7271.394647 | BB38: 7324.503339 | BC38: 7324.503339 | BD38: =AE10 -> 7324.503339 | BE38: =AE9 -> 7324.503339 | BF38: =AE8 -> 7324.503339 | BG38: =AE7 -> 7324.503339 | BH38: =AE6 -> 7324.503339 | BI38: 0 | BJ38: 0 | BK38: 0 | BL38: 0 | BM38: 0 | BN38: 0
A39: Gastos de investigación y desarrollo | N39: =SUM(B39:M39) -> 0 | P39: =+N39/(13-$AA$22)*12*(1+$D$63) -> 0 | R39: =+P39+(P39*$D$63) -> 0 | AD39: 31 | AE39: ='Simulador préstamos (3) '!$E53+'Simulador préstamos (3) '!$O53 -> 6000.736175 | AF39: 6057.991098 | AG39: 6115.059195 | AH39: 6171.941076 | AI39: 6228.637347 | AJ39: 6285.148616 | AK39: 6341.475484 | AL39: 6397.618556 | AM39: 6453.578429 | AN39: 6509.355701 | AO39: 6564.95097 | AP39: 6620.364827 | AQ39: 6675.597866 | AR39: 6730.650677 | AS39: 6785.523847 | AT39: 6840.217963 | AU39: 6894.733609 | AV39: 6949.071367 | AW39: 7003.231817 | AX39: 7057.21554 | AY39: 7111.02311 | AZ39: 7164.655103 | BA39: 7218.112092 | BB39: 7271.394647 | BC39: 7324.503339 | BD39: =AE11 -> 7324.503339 | BE39: 7324.503339 | BF39: 7324.503339 | BG39: 7324.503339 | BH39: 7324.503339 | BI39: =AE6 -> 7324.503339 | BJ39: 0 | BK39: 0 | BL39: 0 | BM39: 0 | BN39: 0
A40: Alquileres y cánones | N40: =SUM(B40:M40) -> 0 | P40: =+N40/(13-$AA$22)*12*(1+$D$63) -> 0 | R40: =+P40+(P40*$D$63) -> 0 | AD40: 32 | AE40: ='Simulador préstamos (3) '!$E54+'Simulador préstamos (3) '!$O54 -> 5943.293815 | AF40: 6000.736175 | AG40: 6057.991098 | AH40: 6115.059195 | AI40: 6171.941076 | AJ40: 6228.637347 | AK40: 6285.148616 | AL40: 6341.475484 | AM40: 6397.618556 | AN40: 6453.578429 | AO40: 6509.355701 | AP40: 6564.95097 | AQ40: 6620.364827 | AR40: 6675.597866 | AS40: 6730.650677 | AT40: 6785.523847 | AU40: 6840.217963 | AV40: 6894.733609 | AW40: 6949.071367 | AX40: 7003.231817 | AY40: 7057.21554 | AZ40: 7111.02311 | BA40: 7164.655103 | BB40: 7218.112092 | BC40: 7271.394647 | BD40: =AE12 -> 7324.503339 | BE40: 7324.503339 | BF40: 7324.503339 | BG40: 7324.503339 | BH40: 7324.503339 | BI40: 7324.503339 | BJ40: =AE6 -> 7324.503339 | BK40: 0 | BL40: 0 | BM40: 0 | BN40: 0
A41: Reparación y conservación | N41: 0 | P41: 0 | R41: 0 | AD41: 33 | AE41: ='Simulador préstamos (3) '!$E55+'Simulador préstamos (3) '!$O55 -> 5885.663403 | AF41: 5943.293815 | AG41: 6000.736175 | AH41: 6057.991098 | AI41: 6115.059195 | AJ41: 6171.941076 | AK41: 6228.637347 | AL41: 6285.148616 | AM41: 6341.475484 | AN41: 6397.618556 | AO41: 6453.578429 | AP41: 6509.355701 | AQ41: 6564.95097 | AR41: 6620.364827 | AS41: 6675.597866 | AT41: 6730.650677 | AU41: 6785.523847 | AV41: 6840.217963 | AW41: 6894.733609 | AX41: 6949.071367 | AY41: 7003.231817 | AZ41: 7057.21554 | BA41: 7111.02311 | BB41: 7164.655103 | BC41: 7218.112092 | BD41: =AE13 -> 7271.394647 | BE41: 7324.503339 | BF41: 7324.503339 | BG41: 7324.503339 | BH41: 7324.503339 | BI41: 7324.503339 | BJ41: =AE7 -> 7324.503339 | BK41: =AE6 -> 7324.503339 | BL41: 0 | BM41: 0 | BN41: 0
A42: Servicios de profesionales independientes | N42: 0 | P42: 0 | R42: 0 | AD42: 34 | AE42: ='Simulador préstamos (3) '!$E56+'Simulador préstamos (3) '!$O56 -> 5827.844324 | AF42: 5885.663403 | AG42: 5943.293815 | AH42: 6000.736175 | AI42: 6057.991098 | AJ42: 6115.059195 | AK42: 6171.941076 | AL42: 6228.637347 | AM42: 6285.148616 | AN42: 6341.475484 | AO42: 6397.618556 | AP42: 6453.578429 | AQ42: 6509.355701 | AR42: 6564.95097 | AS42: 6620.364827 | AT42: 6675.597866 | AU42: 6730.650677 | AV42: 6785.523847 | AW42: 6840.217963 | AX42: 6894.733609 | AY42: 6949.071367 | AZ42: 7003.231817 | BA42: 7057.21554 | BB42: 7111.02311 | BC42: 7164.655103 | BD42: =AE14 -> 7218.112092 | BE42: 7271.394647 | BF42: 7324.503339 | BG42: 7324.503339 | BH42: 7324.503339 | BI42: 7324.503339 | BJ42: =AE8 -> 7324.503339 | BK42: =AE7 -> 7324.503339 | BL42: =AE6 -> 7324.503339 | BM42: 0 | BN42: 0
A43: Transportes | N43: 0 | P43: 0 | R43: 0 | AD43: 35 | AE43: ='Simulador préstamos (3) '!$E57+'Simulador préstamos (3) '!$O57 -> 5769.83596 | AF43: 5827.844324 | AG43: 5885.663403 | AH43: 5943.293815 | AI43: 6000.736175 | AJ43: 6057.991098 | AK43: 6115.059195 | AL43: 6171.941076 | AM43: 6228.637347 | AN43: 6285.148616 | AO43: 6341.475484 | AP43: 6397.618556 | AQ43: 6453.578429 | AR43: 6509.355701 | AS43: 6564.95097 | AT43: 6620.364827 | AU43: 6675.597866 | AV43: 6730.650677 | AW43: 6785.523847 | AX43: 6840.217963 | AY43: 6894.733609 | AZ43: 6949.071367 | BA43: 7003.231817 | BB43: 7057.21554 | BC43: 7111.02311 | BD43: =AE18 -> 7164.655103 | BE43: 7218.112092 | BF43: 7271.394647 | BG43: 7324.503339 | BH43: 7324.503339 | BI43: 7324.503339 | BJ43: =AE9 -> 7324.503339 | BK43: =AE8 -> 7324.503339 | BL43: =AE7 -> 7324.503339 | BM43: =AE6 -> 7324.503339 | BN43: 0
A44: Primas de seguro | N44: 0 | P44: 0 | R44: 0 | AD44: 36 | AE44: ='Simulador préstamos (3) '!$E58+'Simulador préstamos (3) '!$O58 -> 5711.637692 | AF44: 5769.83596 | AG44: 5827.844324 | AH44: 5885.663403 | AI44: 5943.293815 | AJ44: 6000.736175 | AK44: 6057.991098 | AL44: 6115.059195 | AM44: 6171.941076 | AN44: 6228.637347 | AO44: 6285.148616 | AP44: 6341.475484 | AQ44: 6397.618556 | AR44: 6453.578429 | AS44: 6509.355701 | AT44: 6564.95097 | AU44: 6620.364827 | AV44: 6675.597866 | AW44: 6730.650677 | AX44: 6785.523847 | AY44: 6840.217963 | AZ44: 6894.733609 | BA44: 6949.071367 | BB44: 7003.231817 | BC44: 7057.21554 | BD44: 7111.02311 | BE44: =AE18 -> 7164.655103 | BF44: 7218.112092 | BG44: 7271.394647 | BH44: 7324.503339 | BI44: 7324.503339 | BJ44: =AE10 -> 7324.503339 | BK44: =AE9 -> 7324.503339 | BL44: =AE8 -> 7324.503339 | BM44: =AE7 -> 7324.503339 | BN44: =AE6 -> 7324.503339
A45: Servicios bancarios y similares | N45: 0 | P45: 0 | R45: 0
A46: Publi. prop. y relac. públicas | N46: 0 | P46: 0 | R46: 0
A47: Suministros | N47: 0 | P47: 0 | R47: 0 | AE47: 1 | AF47: 2 | AG47: 3 | AH47: 4 | AI47: 5 | AJ47: 6 | AK47: 7 | AL47: 8 | AM47: 9 | AN47: 10 | AO47: 11 | AP47: 12 | AQ47: 13 | AR47: 14 | AS47: 15 | AT47: 16 | AU47: 17 | AV47: 18 | AW47: 19 | AX47: 20 | AY47: 21 | AZ47: 22 | BA47: 23 | BB47: 24 | BC47: 25 | BD47: 26 | BE47: 27 | BF47: 28 | BG47: 29 | BH47: 30 | BI47: 31 | BJ47: 32 | BK47: 33 | BL47: 34 | BM47: 35 | BN47: 36
A48: Teléfono / Internet | N48: 0 | P48: 0 | R48: 0 | AD48: 1 | AE48: ='Simulador préstamos (3) '!$F23+'Simulador préstamos (3) '!$P23 -> 0 | AF48: 0 | AG48: 0 | AH48: 0 | AI48: 0 | AJ48: 0 | AK48: 0 | AL48: 0 | AM48: 0 | AN48: 0 | AO48: 0 | AP48: 0 | AQ48: 0 | AR48: 0 | AS48: 0 | AT48: 0 | AU48: 0 | AV48: 0 | AW48: 0 | AX48: 0 | AY48: 0 | AZ48: 0 | BA48: 0 | BB48: 0 | BC48: 0 | BD48: 0 | BE48: 0 | BF48: 0 | BG48: 0 | BH48: 0 | BI48: 0 | BJ48: 0 | BK48: 0 | BL48: 0 | BM48: 0 | BN48: 0
A49: Otros servicios (papelería, limpieza, suscripciones,...) | N49: 0 | P49: 0 | R49: 0 | AD49: 2 | AE49: ='Simulador préstamos (3) '!$F24+'Simulador préstamos (3) '!$P24 -> 0 | AF49: =AE48 -> 0 | AG49: 0 | AH49: 0 | AI49: 0 | AJ49: 0 | AK49: 0 | AL49: 0 | AM49: 0 | AN49: 0 | AO49: 0 | AP49: 0 | AQ49: 0 | AR49: 0 | AS49: 0 | AT49: 0 | AU49: 0 | AV49: 0 | AW49: 0 | AX49: 0 | AY49: 0 | AZ49: 0 | BA49: 0 | BB49: 0 | BC49: 0 | BD49: 0 | BE49: 0 | BF49: 0 | BG49: 0 | BH49: 0 | BI49: 0 | BJ49: 0 | BK49: 0 | BL49: 0 | BM49: 0 | BN49: 0
A50: Otros tributos (IBI, Incineradora, IAE...) | N50: =SUM(B50:M50) -> 0 | P50: 0 | R50: 0 | AD50: 3 | AE50: ='Simulador préstamos (3) '!$F25+'Simulador préstamos (3) '!$P25 -> 0 | AF50: =AE49 -> 0 | AG50: =AE48 -> 0 | AH50: 0 | AI50: 0 | AJ50: 0 | AK50: 0 | AL50: 0 | AM50: 0 | AN50: 0 | AO50: 0 | AP50: 0 | AQ50: 0 | AR50: 0 | AS50: 0 | AT50: 0 | AU50: 0 | AV50: 0 | AW50: 0 | AX50: 0 | AY50: 0 | AZ50: 0 | BA50: 0 | BB50: 0 | BC50: 0 | BD50: 0 | BE50: 0 | BF50: 0 | BG50: 0 | BH50: 0 | BI50: 0 | BJ50: 0 | BK50: 0 | BL50: 0 | BM50: 0 | BN50: 0
A51: Gastos financieros (intereses préstamos, créditos, ...) | B51: =INDEX($AE$6:$BN$44,AE5,$AA$22) -> 0 | C51: 0 | D51: 0 | E51: 7324.503339 | F51: 7324.503339 | G51: 7324.503339 | H51: 7324.503339 | I51: 7324.503339 | J51: 7324.503339 | K51: 0 | L51: 0 | M51: 0 | N51: 43947.02003 | P51: =SUM(B78:M78) -> 84350.33311 | R51: =SUM(B79:M79) -> 76421.71917 | AD51: 4 | AE51: ='Simulador préstamos (3) '!$F26+'Simulador préstamos (3) '!$P26 -> 0 | AF51: 0 | AG51: =AE49 -> 0 | AH51: =AE48 -> 0 | AI51: 0 | AJ51: 0 | AK51: 0 | AL51: 0 | AM51: 0 | AN51: 0 | AO51: 0 | AP51: 0 | AQ51: 0 | AR51: 0 | AS51: 0 | AT51: 0 | AU51: 0 | AV51: 0 | AW51: 0 | AX51: 0 | AY51: 0 | AZ51: 0 | BA51: 0 | BB51: 0 | BC51: 0 | BD51: 0 | BE51: 0 | BF51: 0 | BG51: 0 | BH51: 0 | BI51: 0 | BJ51: 0 | BK51: 0 | BL51: 0 | BM51: 0 | BN51: 0
A52: Devolución capital préstamos | B52: =INDEX($AE$48:$BN$83,AE5,$AA$22) -> 0 | C52: =INDEX($AE$48:$BN$83,AF5,$AA$22) -> 0 | D52: 0 | E52: 0 | F52: 0 | G52: 0 | H52: 0 | I52: 0 | J52: =INDEX($AE$48:$BN$83,AM5,$AA$22) -> 0 | K52: =INDEX($AE$48:$BN$83,AN5,$AA$22) -> 16222.6368 | L52: 16275.7455 | M52: 16329.02805 | N52: 48827.41035 | P52: =SUM(B82:M82) -> 200168.445 | R52: =SUM(B83:M83) -> 208175.1828 | AD52: 5 | AE52: ='Simulador préstamos (3) '!$F27+'Simulador préstamos (3) '!$P27 -> 0 | AF52: 0 | AG52: 0 | AH52: =AE49 -> 0 | AI52: =AE48 -> 0 | AJ52: 0 | AK52: 0 | AL52: 0 | AM52: 0 | AN52: 0 | AO52: 0 | AP52: 0 | AQ52: 0 | AR52: 0 | AS52: 0 | AT52: 0 | AU52: 0 | AV52: 0 | AW52: 0 | AX52: 0 | AY52: 0 | AZ52: 0 | BA52: 0 | BB52: 0 | BC52: 0 | BD52: 0 | BE52: 0 | BF52: 0 | BG52: 0 | BH52: 0 | BI52: 0 | BJ52: 0 | BK52: 0 | BL52: 0 | BM52: 0 | BN52: 0
A53: IVA soportado costes variables | B53: =IF($AA$21<AE$5,+'Ventas y Costes Variables (7)'!C105+'Ventas y Costes Variables (7)'!C118,0) -> 0 | C53: =IF($AA$21<AF$5,+'Ventas y Costes Variables (7)'!D105+'Ventas y Costes Variables (7)'!D118,0) -> 0 | D53: =IF($AA$21<AG$5,+'Ventas y Costes Variables (7)'!E105+'Ventas y Costes Variables (7)'!E118,0) -> 0 | E53: =IF($AA$21<AH$5,+'Ventas y Costes Variables (7)'!F105+'Ventas y Costes Variables (7)'!F118,0) -> 2346 | F53: =IF($AA$21<AI$5,+'Ventas y Costes Variables (7)'!G105+'Ventas y Costes Variables (7)'!G118,0) -> 2419.2 | G53: =IF($AA$21<AJ$5,+'Ventas y Costes Variables (7)'!H105+'Ventas y Costes Variables (7)'!H118,0) -> 2346 | H53: =IF($AA$21<AK$5,+'Ventas y Costes Variables (7)'!I105+'Ventas y Costes Variables (7)'!I118,0) -> 2419.2 | I53: =IF($AA$21<AL$5,+'Ventas y Costes Variables (7)'!J105+'Ventas y Costes Variables (7)'!J118,0) -> 2419.2 | J53: =IF($AA$21<AM$5,+'Ventas y Costes Variables (7)'!K105+'Ventas y Costes Variables (7)'!K118,0) -> 2346 | K53: =IF($AA$21<AN$5,+'Ventas y Costes Variables (7)'!L105+'Ventas y Costes Variables (7)'!L118,0) -> 2419.2 | L53: =IF($AA$21<AO$5,+'Ventas y Costes Variables (7)'!M105+'Ventas y Costes Variables (7)'!M118,0) -> 2346 | M53: =IF($AA$21<AP$5,+'Ventas y Costes Variables (7)'!N105+'Ventas y Costes Variables (7)'!N118,0) -> 2419.2 | N53: 21480 | P53: =(P26+P27+P28+P32+P46+P42+P40+P39+P47+P48+P41+P43+P49+P29+P33)*$D$62 -> 50909.04 | R53: =(R26+R27+R28+R32+R46+R42+R40+R39+R47+R48+R41+R43+R49+R29+R33)*$D$62 -> 50909.04 | AD53: 6 | AE53: ='Simulador préstamos (3) '!$F28+'Simulador préstamos (3) '!$P28 -> 0 | AF53: 0 | AG53: 0 | AH53: 0 | AI53: =AE49 -> 0 | AJ53: =AE48 -> 0 | AK53: 0 | AL53: 0 | AM53: 0 | AN53: 0 | AO53: 0 | AP53: 0 | AQ53: 0 | AR53: 0 | AS53: 0 | AT53: 0 | AU53: 0 | AV53: 0 | AW53: 0 | AX53: 0 | AY53: 0 | AZ53: 0 | BA53: 0 | BB53: 0 | BC53: 0 | BD53: 0 | BE53: 0 | BF53: 0 | BG53: 0 | BH53: 0 | BI53: 0 | BJ53: 0 | BK53: 0 | BL53: 0 | BM53: 0 | BN53: 0
A54: IVA soportado del resto de los costes | B54: =IF($AA$21<AE$5,(B39+B40+B41+B42+B43+B46+B47+B48+B49+B33)*$D$62,0) -> 0 | C54: =IF($AA$21<AF$5,(C39+C40+C41+C42+C43+C46+C47+C48+C49+C33)*$D$62,0) -> 0 | D54: 0 | E54: 1164901.5 | F54: 0 | G54: 0 | H54: 0 | I54: 0 | J54: 0 | K54: 0 | L54: 0 | M54: 0 | N54: 1164901.5 | P54: =(P39+P40+P41+P42+P43+P46+P47+P48+P49)*D62 -> 0 | R54: =(R39+R40+R41+R42+R43+R46+R47+R48+R49)*D62 -> 0 | AD54: 7 | AE54: ='Simulador préstamos (3) '!$F29+'Simulador préstamos (3) '!$P29 -> 16222.6368 | AF54: 0 | AG54: 0 | AH54: 0 | AI54: 0 | AJ54: =AE49 -> 0 | AK54: =AE48 -> 0 | AL54: 0 | AM54: 0 | AN54: 0 | AO54: 0 | AP54: 0 | AQ54: 0 | AR54: 0 | AS54: 0 | AT54: 0 | AU54: 0 | AV54: 0 | AW54: 0 | AX54: 0 | AY54: 0 | AZ54: 0 | BA54: 0 | BB54: 0 | BC54: 0 | BD54: 0 | BE54: 0 | BF54: 0 | BG54: 0 | BH54: 0 | BI54: 0 | BJ54: 0 | BK54: 0 | BL54: 0 | BM54: 0 | BN54: 0
A55: Liquidación IVA | E55: =((B22+C22+D22)-(B53+C53+D53+B54+C54+D54))*$AA$5 -> 0 | H55: =((E22+F22+G22)-(E53+F53+G53+E54+F54+G54))*$AA$5 -> -1076007.7 | K55: =((H22+I22+J22)-(H53+I53+J53+H54+I54+J54))*$AA$5 -> 89875.6 | N55: -986132.1 | P55: =(P22-P53-P54)*$AA$5 -> 337369.76 | R55: =(R22-R53-R54)*$AA$5 -> 349581.1592 | AD55: 8 | AE55: ='Simulador préstamos (3) '!$F30+'Simulador préstamos (3) '!$P30 -> 16275.7455 | AF55: 16222.6368 | AG55: 0 | AH55: 0 | AI55: 0 | AJ55: 0 | AK55: =AE49 -> 0 | AL55: =AE48 -> 0 | AM55: 0 | AN55: 0 | AO55: 0 | AP55: 0 | AQ55: 0 | AR55: 0 | AS55: 0 | AT55: 0 | AU55: 0 | AV55: 0 | AW55: 0 | AX55: 0 | AY55: 0 | AZ55: 0 | BA55: 0 | BB55: 0 | BC55: 0 | BD55: 0 | BE55: 0 | BF55: 0 | BG55: 0 | BH55: 0 | BI55: 0 | BJ55: 0 | BK55: 0 | BL55: 0 | BM55: 0 | BN55: 0
A56: (2) Total PAGOS | B56: =SUM(B26:B53) -> 0 | C56: =SUM(C26:C53) -> 0 | D56: 0 | E56: 5683658.493 | F56: 135714.0097 | G56: 140983.3733 | H56: 160988.5733 | I56: 135713.6933 | J56: 134908.4933 | K56: 144690.1168 | L56: 143938.0255 | M56: 144796.5081 | N56: =SUM(N26:N54) -> 7990292.787 | P56: =SUM(P26:P54) -> 1586329.947 | R56: =SUM(R26:R54) -> 1597926.343 | AD56: 9 | AE56: ='Simulador préstamos (3) '!$F31+'Simulador préstamos (3) '!$P31 -> 16329.02805 | AF56: 16275.7455 | AG56: 16222.6368 | AH56: 0 | AI56: 0 | AJ56: 0 | AK56: 0 | AL56: =AE49 -> 0 | AM56: =AE48 -> 0 | AN56: 0 | AO56: 0 | AP56: 0 | AQ56: 0 | AR56: 0 | AS56: 0 | AT56: 0 | AU56: 0 | AV56: 0 | AW56: 0 | AX56: 0 | AY56: 0 | AZ56: 0 | BA56: 0 | BB56: 0 | BC56: 0 | BD56: 0 | BE56: 0 | BF56: 0 | BG56: 0 | BH56: 0 | BI56: 0 | BJ56: 0 | BK56: 0 | BL56: 0 | BM56: 0 | BN56: 0
AD57: 10 | AE57: ='Simulador préstamos (3) '!$F32+'Simulador préstamos (3) '!$P32 -> 16382.48504 | AF57: 16329.02805 | AG57: 16275.7455 | AH57: 16222.6368 | AI57: 0 | AJ57: 0 | AK57: 0 | AL57: 0 | AM57: =AE49 -> 0 | AN57: =AE48 -> 0 | AO57: 0 | AP57: 0 | AQ57: 0 | AR57: 0 | AS57: 0 | AT57: 0 | AU57: 0 | AV57: 0 | AW57: 0 | AX57: 0 | AY57: 0 | AZ57: 0 | BA57: 0 | BB57: 0 | BC57: 0 | BD57: 0 | BE57: 0 | BF57: 0 | BG57: 0 | BH57: 0 | BI57: 0 | BJ57: 0 | BK57: 0 | BL57: 0 | BM57: 0 | BN57: 0
A58: (1-2) DIFERENCIA | B58: =SUM(B23-B56) -> 0 | C58: 0 | D58: 0 | E58: 1376543.007 | F58: 224040.9903 | G58: 207166.6267 | H58: 218246.4267 | I58: =SUM(I23-I56) -> 237871.3067 | J58: 226991.5067 | K58: 234544.8832 | L58: 223561.9745 | M58: 234388.4919 | N58: 2018453.713 | P58: =SUM(P23-P56) -> 2751787.973 | R58: =SUM(R23-R56) -> 2875644.174 | AD58: 11 | AE58: ='Simulador préstamos (3) '!$F33+'Simulador préstamos (3) '!$P33 -> 16436.11703 | AF58: 16382.48504 | AG58: 16329.02805 | AH58: 16275.7455 | AI58: 16222.6368 | AJ58: 0 | AK58: 0 | AL58: 0 | AM58: 0 | AN58: =AE49 -> 0 | AO58: =AE48 -> 0 | AP58: 0 | AQ58: 0 | AR58: 0 | AS58: 0 | AT58: 0 | AU58: 0 | AV58: 0 | AW58: 0 | AX58: 0 | AY58: 0 | AZ58: 0 | BA58: 0 | BB58: 0 | BC58: 0 | BD58: 0 | BE58: 0 | BF58: 0 | BG58: 0 | BH58: 0 | BI58: 0 | BJ58: 0 | BK58: 0 | BL58: 0 | BM58: 0 | BN58: 0
AD59: 12 | AE59: ='Simulador préstamos (3) '!$F34+'Simulador préstamos (3) '!$P34 -> 16489.9246 | AF59: 16436.11703 | AG59: 16382.48504 | AH59: 16329.02805 | AI59: 16275.7455 | AJ59: 16222.6368 | AK59: 0 | AL59: 0 | AM59: 0 | AN59: 0 | AO59: =AE49 -> 0 | AP59: =AE48 -> 0 | AQ59: 0 | AR59: 0 | AS59: 0 | AT59: 0 | AU59: 0 | AV59: 0 | AW59: 0 | AX59: 0 | AY59: 0 | AZ59: 0 | BA59: 0 | BB59: 0 | BC59: 0 | BD59: 0 | BE59: 0 | BF59: 0 | BG59: 0 | BH59: 0 | BI59: 0 | BJ59: 0 | BK59: 0 | BL59: 0 | BM59: 0 | BN59: 0
A60: SALDO ACUMULADO | B60: =B58 -> 0 | C60: =B60+C58 -> 0 | D60: =C60+D58 -> 0 | E60: 1376543.007 | F60: =E60+F58 -> 1600583.997 | G60: =F60+G58 -> 1807750.624 | H60: 2025997.05 | I60: 2263868.357 | J60: 2490859.864 | K60: =J60+K58 -> 2725404.747 | L60: =K60+L58 -> 2948966.721 | M60: =L60+M58 -> 3183355.213 | N60: =N58 -> 2018453.713 | P60: =N60+P58 -> 4770241.686 | R60: =P60+R58 -> 7645885.86 | AD60: 13 | AE60: ='Simulador préstamos (3) '!$F35+'Simulador préstamos (3) '!$P35 -> 16543.90832 | AF60: 16489.9246 | AG60: 16436.11703 | AH60: 16382.48504 | AI60: 16329.02805 | AJ60: 16275.7455 | AK60: 16222.6368 | AL60: 0 | AM60: 0 | AN60: 0 | AO60: 0 | AP60: =AE49 -> 0 | AQ60: =AE48 -> 0 | AR60: 0 | AS60: 0 | AT60: 0 | AU60: 0 | AV60: 0 | AW60: 0 | AX60: 0 | AY60: 0 | AZ60: 0 | BA60: 0 | BB60: 0 | BC60: 0 | BD60: 0 | BE60: 0 | BF60: 0 | BG60: 0 | BH60: 0 | BI60: 0 | BJ60: 0 | BK60: 0 | BL60: 0 | BM60: 0 | BN60: 0
AD61: 14 | AE61: ='Simulador préstamos (3) '!$F36+'Simulador préstamos (3) '!$P36 -> 16598.06878 | AF61: 16543.90832 | AG61: 16489.9246 | AH61: 16436.11703 | AI61: 16382.48504 | AJ61: 16329.02805 | AK61: 16275.7455 | AL61: 16222.6368 | AM61: 0 | AN61: 0 | AO61: 0 | AP61: 0 | AQ61: =AE49 -> 0 | AR61: =AE48 -> 0 | AS61: 0 | AT61: 0 | AU61: 0 | AV61: 0 | AW61: 0 | AX61: 0 | AY61: 0 | AZ61: 0 | BA61: 0 | BB61: 0 | BC61: 0 | BD61: 0 | BE61: 0 | BF61: 0 | BG61: 0 | BH61: 0 | BI61: 0 | BJ61: 0 | BK61: 0 | BL61: 0 | BM61: 0 | BN61: 0
B62: Tipo de IVA: | D62: 0.21 | AD62: 15 | AE62: ='Simulador préstamos (3) '!$F37+'Simulador préstamos (3) '!$P37 -> 16652.40653 | AF62: 16598.06878 | AG62: 16543.90832 | AH62: 16489.9246 | AI62: 16436.11703 | AJ62: 16382.48504 | AK62: 16329.02805 | AL62: 16275.7455 | AM62: 16222.6368 | AN62: 0 | AO62: 0 | AP62: 0 | AQ62: 0 | AR62: =AE49 -> 0 | AS62: =AE48 -> 0 | AT62: 0 | AU62: 0 | AV62: 0 | AW62: 0 | AX62: 0 | AY62: 0 | AZ62: 0 | BA62: 0 | BB62: 0 | BC62: 0 | BD62: 0 | BE62: 0 | BF62: 0 | BG62: 0 | BH62: 0 | BI62: 0 | BJ62: 0 | BK62: 0 | BL62: 0 | BM62: 0 | BN62: 0
B63: Inflación precios prevista: | D63: =+'Ventas y Costes Variables (7)'!H60 -> 0.012 | AD63: 16 | AE63: ='Simulador préstamos (3) '!$F38+'Simulador préstamos (3) '!$P38 -> 16706.92218 | AF63: 16652.40653 | AG63: 16598.06878 | AH63: 16543.90832 | AI63: 16489.9246 | AJ63: 16436.11703 | AK63: 16382.48504 | AL63: 16329.02805 | AM63: 16275.7455 | AN63: 16222.6368 | AO63: 0 | AP63: 0 | AQ63: 0 | AR63: 0 | AS63: =AE49 -> 0 | AT63: =AE48 -> 0 | AU63: 0 | AV63: 0 | AW63: 0 | AX63: 0 | AY63: 0 | AZ63: 0 | BA63: 0 | BB63: 0 | BC63: 0 | BD63: 0 | BE63: 0 | BF63: 0 | BG63: 0 | BH63: 0 | BI63: 0 | BJ63: 0 | BK63: 0 | BL63: 0 | BM63: 0 | BN63: 0
AD64: 17 | AE64: ='Simulador préstamos (3) '!$F39+'Simulador préstamos (3) '!$P39 -> 16761.6163 | AF64: 16706.92218 | AG64: 16652.40653 | AH64: 16598.06878 | AI64: 16543.90832 | AJ64: 16489.9246 | AK64: 16436.11703 | AL64: 16382.48504 | AM64: 16329.02805 | AN64: 16275.7455 | AO64: 16222.6368 | AP64: 0 | AQ64: 0 | AR64: 0 | AS64: 0 | AT64: =AE49 -> 0 | AU64: =AE48 -> 0 | AV64: 0 | AW64: 0 | AX64: 0 | AY64: 0 | AZ64: 0 | BA64: 0 | BB64: 0 | BC64: 0 | BD64: 0 | BE64: 0 | BF64: 0 | BG64: 0 | BH64: 0 | BI64: 0 | BJ64: 0 | BK64: 0 | BL64: 0 | BM64: 0 | BN64: 0
B65: Observaciones | AD65: 18 | AE65: ='Simulador préstamos (3) '!$F40+'Simulador préstamos (3) '!$P40 -> 16816.48947 | AF65: 16761.6163 | AG65: 16706.92218 | AH65: 16652.40653 | AI65: 16598.06878 | AJ65: 16543.90832 | AK65: 16489.9246 | AL65: 16436.11703 | AM65: 16382.48504 | AN65: 16329.02805 | AO65: 16275.7455 | AP65: 16222.6368 | AQ65: 0 | AR65: 0 | AS65: 0 | AT65: 0 | AU65: 0 | AV65: =AE48 -> 0 | AW65: 0 | AX65: 0 | AY65: 0 | AZ65: 0 | BA65: 0 | BB65: 0 | BC65: 0 | BD65: 0 | BE65: 0 | BF65: 0 | BG65: 0 | BH65: 0 | BI65: 0 | BJ65: 0 | BK65: 0 | BL65: 0 | BM65: 0 | BN65: 0
B66: 1) Hay casillas que se han rellenado automáticamente mediante fórmulas que han recogido las cifras introducidas en las hojas anteriores. No obstante, se deben revisar para verificar que están correctamente periodificadas en los meses correspondientes y realizar las modificaciones que sean procedentes. | AD66: 19 | AE66: ='Simulador préstamos (3) '!$F41+'Simulador préstamos (3) '!$P41 -> 16871.54228 | AF66: 16816.48947 | AG66: 16761.6163 | AH66: 16706.92218 | AI66: 16652.40653 | AJ66: 16598.06878 | AK66: 16543.90832 | AL66: 16489.9246 | AM66: 16436.11703 | AN66: 16382.48504 | AO66: 16329.02805 | AP66: 16275.7455 | AQ66: 16222.6368 | AR66: 0 | AS66: 0 | AT66: 0 | AU66: 0 | AV66: 0 | AW66: =AE48 -> 0 | AX66: 0 | AY66: 0 | AZ66: 0 | BA66: 0 | BB66: 0 | BC66: 0 | BD66: 0 | BE66: 0 | BF66: 0 | BG66: 0 | BH66: 0 | BI66: 0 | BJ66: 0 | BK66: 0 | BL66: 0 | BM66: 0 | BN66: 0
B67: 2) Si coexisten más préstamos, se deberán añadir filas e introducir los datos. Se deben comprobar las fórmulas. | AD67: 20 | AE67: ='Simulador préstamos (3) '!$F42+'Simulador préstamos (3) '!$P42 -> 16926.77531 | AF67: 16871.54228 | AG67: 16816.48947 | AH67: 16761.6163 | AI67: 16706.92218 | AJ67: 16652.40653 | AK67: 16598.06878 | AL67: 16543.90832 | AM67: 16489.9246 | AN67: 16436.11703 | AO67: 16382.48504 | AP67: 16329.02805 | AQ67: 16275.7455 | AR67: 16222.6368 | AS67: 0 | AT67: 0 | AU67: 0 | AV67: 0 | AW67: 0 | AX67: =AE48 -> 0 | AY67: 0 | AZ67: 0 | BA67: 0 | BB67: 0 | BC67: 0 | BD67: 0 | BE67: 0 | BF67: 0 | BG67: 0 | BH67: 0 | BI67: 0 | BJ67: 0 | BK67: 0 | BL67: 0 | BM67: 0 | BN67: 0
B68: 3) Si el préstamo tiene diferimiento, se deberán rehacer manualmente las filas del préstamo y adaptarlo a la realidad. | AD68: 21 | AE68: ='Simulador préstamos (3) '!$F43+'Simulador préstamos (3) '!$P43 -> 16982.18917 | AF68: 16926.77531 | AG68: 16871.54228 | AH68: 16816.48947 | AI68: 16761.6163 | AJ68: 16706.92218 | AK68: 16652.40653 | AL68: 16598.06878 | AM68: 16543.90832 | AN68: 16489.9246 | AO68: 16436.11703 | AP68: 16382.48504 | AQ68: 16329.02805 | AR68: 16275.7455 | AS68: 16222.6368 | AT68: 0 | AU68: 0 | AV68: 0 | AW68: 0 | AX68: 0 | AY68: =AE48 -> 0 | AZ68: 0 | BA68: 0 | BB68: 0 | BC68: 0 | BD68: 0 | BE68: 0 | BF68: 0 | BG68: 0 | BH68: 0 | BI68: 0 | BJ68: 0 | BK68: 0 | BL68: 0 | BM68: 0 | BN68: 0
AD69: 22 | AE69: ='Simulador préstamos (3) '!$F44+'Simulador préstamos (3) '!$P44 -> 17037.78444 | AF69: 16982.18917 | AG69: 16926.77531 | AH69: 16871.54228 | AI69: 16816.48947 | AJ69: 16761.6163 | AK69: 16706.92218 | AL69: 16652.40653 | AM69: 16598.06878 | AN69: 16543.90832 | AO69: 16489.9246 | AP69: 16436.11703 | AQ69: 16382.48504 | AR69: 16329.02805 | AS69: 16275.7455 | AT69: 16222.6368 | AU69: 0 | AV69: 0 | AW69: 0 | AX69: 0 | AY69: 0 | AZ69: =AY68 -> 0 | BA69: 0 | BB69: 0 | BC69: 0 | BD69: 0 | BE69: 0 | BF69: 0 | BG69: 0 | BH69: 0 | BI69: 0 | BJ69: 0 | BK69: 0 | BL69: 0 | BM69: 0 | BN69: 0
AD70: 23 | AE70: ='Simulador préstamos (3) '!$F45+'Simulador préstamos (3) '!$P45 -> 17093.56171 | AF70: 17037.78444 | AG70: 16982.18917 | AH70: 16926.77531 | AI70: 16871.54228 | AJ70: 16816.48947 | AK70: 16761.6163 | AL70: 16706.92218 | AM70: 16652.40653 | AN70: 16598.06878 | AO70: 16543.90832 | AP70: 16489.9246 | AQ70: 16436.11703 | AR70: 16382.48504 | AS70: 16329.02805 | AT70: 16275.7455 | AU70: 16222.6368 | AV70: 0 | AW70: 0 | AX70: 0 | AY70: 0 | AZ70: 0 | BA70: =AZ69 -> 0 | BB70: 0 | BC70: 0 | BD70: 0 | BE70: 0 | BF70: 0 | BG70: 0 | BH70: 0 | BI70: 0 | BJ70: 0 | BK70: 0 | BL70: 0 | BM70: 0 | BN70: 0
AD71: 24 | AE71: ='Simulador préstamos (3) '!$F46+'Simulador préstamos (3) '!$P46 -> 17149.52159 | AF71: 17093.56171 | AG71: 17037.78444 | AH71: 16982.18917 | AI71: 16926.77531 | AJ71: 16871.54228 | AK71: 16816.48947 | AL71: 16761.6163 | AM71: 16706.92218 | AN71: 16652.40653 | AO71: 16598.06878 | AP71: 16543.90832 | AQ71: 16489.9246 | AR71: 16436.11703 | AS71: 16382.48504 | AT71: 16329.02805 | AU71: 16275.7455 | AV71: 16222.6368 | AW71: 0 | AX71: 0 | AY71: 0 | AZ71: 0 | BA71: 0 | BB71: =BA70 -> 0 | BC71: 0 | BD71: 0 | BE71: 0 | BF71: 0 | BG71: 0 | BH71: 0 | BI71: 0 | BJ71: 0 | BK71: 0 | BL71: 0 | BM71: 0 | BN71: 0
AD72: 25 | AE72: ='Simulador préstamos (3) '!$F47+'Simulador préstamos (3) '!$P47 -> 17205.66466 | AF72: 17149.52159 | AG72: 17093.56171 | AH72: 17037.78444 | AI72: 16982.18917 | AJ72: 16926.77531 | AK72: 16871.54228 | AL72: 16816.48947 | AM72: 16761.6163 | AN72: 16706.92218 | AO72: 16652.40653 | AP72: 16598.06878 | AQ72: 16543.90832 | AR72: 16489.9246 | AS72: 16436.11703 | AT72: 16382.48504 | AU72: 16329.02805 | AV72: 16275.7455 | AW72: 16222.6368 | AX72: 0 | AY72: 0 | AZ72: 0 | BA72: 0 | BB72: =BA71 -> 0 | BC72: =BB71 -> 0 | BD72: 0 | BE72: 0 | BF72: 0 | BG72: 0 | BH72: 0 | BI72: 0 | BJ72: 0 | BK72: 0 | BL72: 0 | BM72: 0 | BN72: 0
AD73: 26 | AE73: ='Simulador préstamos (3) '!$F48+'Simulador préstamos (3) '!$P48 -> 17261.99153 | AF73: 17205.66466 | AG73: 17149.52159 | AH73: 17093.56171 | AI73: 17037.78444 | AJ73: 16982.18917 | AK73: 16926.77531 | AL73: 16871.54228 | AM73: 16816.48947 | AN73: 16761.6163 | AO73: 16706.92218 | AP73: 16652.40653 | AQ73: 16598.06878 | AR73: 16543.90832 | AS73: 16489.9246 | AT73: 16436.11703 | AU73: 16382.48504 | AV73: 16329.02805 | AW73: 16275.7455 | AX73: 16222.6368 | AY73: 0 | AZ73: 0 | BA73: 0 | BB73: 0 | BC73: 0 | BD73: =AE48 -> 0 | BE73: 0 | BF73: 0 | BG73: 0 | BH73: 0 | BI73: 0 | BJ73: 0 | BK73: 0 | BL73: 0 | BM73: 0 | BN73: 0
AD74: 27 | AE74: ='Simulador préstamos (3) '!$F49+'Simulador préstamos (3) '!$P49 -> 17318.50279 | AF74: 17261.99153 | AG74: 17205.66466 | AH74: 17149.52159 | AI74: 17093.56171 | AJ74: 17037.78444 | AK74: 16982.18917 | AL74: 16926.77531 | AM74: 16871.54228 | AN74: 16816.48947 | AO74: 16761.6163 | AP74: 16706.92218 | AQ74: 16652.40653 | AR74: 16598.06878 | AS74: 16543.90832 | AT74: 16489.9246 | AU74: 16436.11703 | AV74: 16382.48504 | AW74: 16329.02805 | AX74: 16275.7455 | AY74: 16222.6368 | AZ74: 0 | BA74: 0 | BB74: 0 | BC74: 0 | BD74: 0 | BE74: =AE48 -> 0 | BF74: 0 | BG74: 0 | BH74: 0 | BI74: 0 | BJ74: 0 | BK74: 0 | BL74: 0 | BM74: 0 | BN74: 0
AD75: 28 | AE75: ='Simulador préstamos (3) '!$F50+'Simulador préstamos (3) '!$P50 -> 17375.19907 | AF75: 17318.50279 | AG75: 17261.99153 | AH75: 17205.66466 | AI75: 17149.52159 | AJ75: 17093.56171 | AK75: 17037.78444 | AL75: 16982.18917 | AM75: 16926.77531 | AN75: 16871.54228 | AO75: 16816.48947 | AP75: 16761.6163 | AQ75: 16706.92218 | AR75: 16652.40653 | AS75: 16598.06878 | AT75: 16543.90832 | AU75: 16489.9246 | AV75: 16436.11703 | AW75: 16382.48504 | AX75: 16329.02805 | AY75: 16275.7455 | AZ75: 16222.6368 | BA75: 0 | BB75: 0 | BC75: 0 | BD75: 0 | BE75: 0 | BF75: =AE48 -> 0 | BG75: 0 | BH75: 0 | BI75: 0 | BJ75: 0 | BK75: 0 | BL75: 0 | BM75: 0 | BN75: 0
AD76: 29 | AE76: ='Simulador préstamos (3) '!$F51+'Simulador préstamos (3) '!$P51 -> 17432.08095 | AF76: 17375.19907 | AG76: 17318.50279 | AH76: 17261.99153 | AI76: 17205.66466 | AJ76: 17149.52159 | AK76: 17093.56171 | AL76: 17037.78444 | AM76: 16982.18917 | AN76: 16926.77531 | AO76: 16871.54228 | AP76: 16816.48947 | AQ76: 16761.6163 | AR76: 16706.92218 | AS76: 16652.40653 | AT76: 16598.06878 | AU76: 16543.90832 | AV76: 16489.9246 | AW76: 16436.11703 | AX76: 16382.48504 | AY76: 16329.02805 | AZ76: 16275.7455 | BA76: 16222.6368 | BB76: 0 | BC76: 0 | BD76: 0 | BE76: 0 | BF76: 0 | BG76: =AE48 -> 0 | BH76: 0 | BI76: 0 | BJ76: 0 | BK76: 0 | BL76: 0 | BM76: 0 | BN76: 0
AD77: 30 | AE77: ='Simulador préstamos (3) '!$F52+'Simulador préstamos (3) '!$P52 -> 17489.14904 | AF77: 17432.08095 | AG77: 17375.19907 | AH77: 17318.50279 | AI77: 17261.99153 | AJ77: 17205.66466 | AK77: 17149.52159 | AL77: 17093.56171 | AM77: 17037.78444 | AN77: 16982.18917 | AO77: 16926.77531 | AP77: 16871.54228 | AQ77: 16816.48947 | AR77: 16761.6163 | AS77: 16706.92218 | AT77: 16652.40653 | AU77: 16598.06878 | AV77: 16543.90832 | AW77: 16489.9246 | AX77: 16436.11703 | AY77: 16382.48504 | AZ77: 16329.02805 | BA77: 16275.7455 | BB77: 16222.6368 | BC77: 0 | BD77: 0 | BE77: 0 | BF77: 0 | BG77: 0 | BH77: =AE48 -> 0 | BI77: 0 | BJ77: 0 | BK77: 0 | BL77: 0 | BM77: 0 | BN77: 0
B78: =INDEX($AE$6:$BN$44,AQ5,$AA$22) -> 7324.503339 | C78: 7271.394647 | D78: 7218.112092 | E78: 7164.655103 | F78: 7111.02311 | G78: 7057.21554 | H78: 7003.231817 | I78: 6949.071367 | J78: 6894.733609 | K78: 6840.217963 | L78: 6785.523847 | M78: 6730.650677 | AD78: 31 | AE78: ='Simulador préstamos (3) '!$F53+'Simulador préstamos (3) '!$P53 -> 17546.40397 | AF78: 17489.14904 | AG78: 17432.08095 | AH78: 17375.19907 | AI78: 17318.50279 | AJ78: 17261.99153 | AK78: 17205.66466 | AL78: 17149.52159 | AM78: 17093.56171 | AN78: 17037.78444 | AO78: 16982.18917 | AP78: 16926.77531 | AQ78: 16871.54228 | AR78: 16816.48947 | AS78: 16761.6163 | AT78: 16706.92218 | AU78: 16652.40653 | AV78: 16598.06878 | AW78: 16543.90832 | AX78: 16489.9246 | AY78: 16436.11703 | AZ78: 16382.48504 | BA78: 16329.02805 | BB78: 16275.7455 | BC78: 16222.6368 | BD78: 0 | BE78: 0 | BF78: 0 | BG78: 0 | BH78: 0 | BI78: =AE48 -> 0 | BJ78: 0 | BK78: 0 | BL78: 0 | BM78: 0 | BN78: 0
B79: =INDEX($AE$6:$BN$44,BC5,$AA$22) -> 6675.597866 | C79: 6620.364827 | D79: 6564.95097 | E79: 6509.355701 | F79: 6453.578429 | G79: 6397.618556 | H79: 6341.475484 | I79: 6285.148616 | J79: 6228.637347 | K79: 6171.941076 | L79: 6115.059195 | M79: 6057.991098 | AD79: 32 | AE79: ='Simulador préstamos (3) '!$F54+'Simulador préstamos (3) '!$P54 -> 17603.84633 | AF79: 17546.40397 | AG79: 17489.14904 | AH79: 17432.08095 | AI79: 17375.19907 | AJ79: 17318.50279 | AK79: 17261.99153 | AL79: 17205.66466 | AM79: 17149.52159 | AN79: 17093.56171 | AO79: 17037.78444 | AP79: 16982.18917 | AQ79: 16926.77531 | AR79: 16871.54228 | AS79: 16816.48947 | AT79: 16761.6163 | AU79: 16706.92218 | AV79: 16652.40653 | AW79: 16598.06878 | AX79: 16543.90832 | AY79: 16489.9246 | AZ79: 16436.11703 | BA79: 16382.48504 | BB79: 16329.02805 | BC79: 16275.7455 | BD79: 16222.6368 | BE79: 0 | BF79: 0 | BG79: 0 | BH79: 0 | BI79: 0 | BJ79: =AE48 -> 0 | BK79: 0 | BL79: 0 | BM79: 0 | BN79: 0
AD80: 33 | AE80: ='Simulador préstamos (3) '!$F55+'Simulador préstamos (3) '!$P55 -> 17661.47674 | AF80: 17603.84633 | AG80: 17546.40397 | AH80: 17489.14904 | AI80: 17432.08095 | AJ80: 17375.19907 | AK80: 17318.50279 | AL80: 17261.99153 | AM80: 17205.66466 | AN80: 17149.52159 | AO80: 17093.56171 | AP80: 17037.78444 | AQ80: 16982.18917 | AR80: 16926.77531 | AS80: 16871.54228 | AT80: 16816.48947 | AU80: 16761.6163 | AV80: 16706.92218 | AW80: 16652.40653 | AX80: 16598.06878 | AY80: 16543.90832 | AZ80: 16489.9246 | BA80: 16436.11703 | BB80: 16382.48504 | BC80: 16329.02805 | BD80: 16275.7455 | BE80: 16222.6368 | BF80: 0 | BG80: 0 | BH80: 0 | BI80: 0 | BJ80: =AE49 -> 0 | BK80: =AE48 -> 0 | BL80: 0 | BM80: 0 | BN80: 0
AD81: 34 | AE81: ='Simulador préstamos (3) '!$F56+'Simulador préstamos (3) '!$P56 -> 17719.29582 | AF81: 17661.47674 | AG81: 17603.84633 | AH81: 17546.40397 | AI81: 17489.14904 | AJ81: 17432.08095 | AK81: 17375.19907 | AL81: 17318.50279 | AM81: 17261.99153 | AN81: 17205.66466 | AO81: 17149.52159 | AP81: 17093.56171 | AQ81: 17037.78444 | AR81: 16982.18917 | AS81: 16926.77531 | AT81: 16871.54228 | AU81: 16816.48947 | AV81: 16761.6163 | AW81: 16706.92218 | AX81: 16652.40653 | AY81: 16598.06878 | AZ81: 16543.90832 | BA81: 16489.9246 | BB81: 16436.11703 | BC81: 16382.48504 | BD81: 16329.02805 | BE81: 16275.7455 | BF81: 16222.6368 | BG81: 0 | BH81: 0 | BI81: 0 | BJ81: =AE50 -> 0 | BK81: =AE49 -> 0 | BL81: =AE48 -> 0 | BM81: 0 | BN81: 0
B82: =INDEX($AE$48:$BN$83,AQ5,$AA$22) -> 16382.48504 | C82: =INDEX($AE$48:$BN$83,AR5,$AA$22) -> 16436.11703 | D82: 16489.9246 | E82: 16543.90832 | F82: 16598.06878 | G82: 16652.40653 | H82: 16706.92218 | I82: 16761.6163 | J82: 16816.48947 | K82: 16871.54228 | L82: 16926.77531 | M82: 16982.18917 | AD82: 35 | AE82: ='Simulador préstamos (3) '!$F57+'Simulador préstamos (3) '!$P57 -> 17777.30418 | AF82: 17719.29582 | AG82: 17661.47674 | AH82: 17603.84633 | AI82: 17546.40397 | AJ82: 17489.14904 | AK82: 17432.08095 | AL82: 17375.19907 | AM82: 17318.50279 | AN82: 17261.99153 | AO82: 17205.66466 | AP82: 17149.52159 | AQ82: 17093.56171 | AR82: 17037.78444 | AS82: 16982.18917 | AT82: 16926.77531 | AU82: 16871.54228 | AV82: 16816.48947 | AW82: 16761.6163 | AX82: 16706.92218 | AY82: 16652.40653 | AZ82: 16598.06878 | BA82: 16543.90832 | BB82: 16489.9246 | BC82: 16436.11703 | BD82: 16382.48504 | BE82: 16329.02805 | BF82: 16275.7455 | BG82: 16222.6368 | BH82: 0 | BI82: 0 | BJ82: =AE51 -> 0 | BK82: =AE50 -> 0 | BL82: =AE49 -> 0 | BM82: =AE48 -> 0 | BN82: 0
B83: =INDEX($AE$48:$BN$83,BC5,$AA$22) -> 17037.78444 | C83: =INDEX($AE$48:$BN$83,BD5,$AA$22) -> 17093.56171 | D83: 17149.52159 | E83: 17205.66466 | F83: 17261.99153 | G83: 17318.50279 | H83: 17375.19907 | I83: 17432.08095 | J83: 17489.14904 | K83: 17546.40397 | L83: 17603.84633 | M83: 17661.47674 | AD83: 36 | AE83: ='Simulador préstamos (3) '!$F58+'Simulador préstamos (3) '!$P58 -> 17835.50245 | AF83: 17777.30418 | AG83: 17719.29582 | AH83: 17661.47674 | AI83: 17603.84633 | AJ83: 17546.40397 | AK83: 17489.14904 | AL83: 17432.08095 | AM83: 17375.19907 | AN83: 17318.50279 | AO83: 17261.99153 | AP83: 17205.66466 | AQ83: 17149.52159 | AR83: 17093.56171 | AS83: 17037.78444 | AT83: 16982.18917 | AU83: 16926.77531 | AV83: 16871.54228 | AW83: 16816.48947 | AX83: 16761.6163 | AY83: 16706.92218 | AZ83: 16652.40653 | BA83: 16598.06878 | BB83: 16543.90832 | BC83: 16489.9246 | BD83: 16436.11703 | BE83: 16382.48504 | BF83: 16329.02805 | BG83: 16275.7455 | BH83: 16222.6368 | BI83: 0 | BJ83: =AE52 -> 0 | BK83: =AE51 -> 0 | BL83: =AE50 -> 0 | BM83: =AE49 -> 0 | BN83: =AE48 -> 0
AE85: 1 | AF85: 2 | AG85: 3 | AH85: 4 | AI85: 5 | AJ85: 6 | AK85: 7 | AL85: 8 | AM85: 9 | AN85: 10 | AO85: 11 | AP85: 12
AD86: 1 | AE86: ='Plan de RRHH (4)'!E27 -> 53.07 | AF86: 0 | AG86: 0 | AH86: 0 | AI86: 0 | AJ86: 0 | AK86: 0 | AL86: 0 | AM86: 0 | AN86: 0 | AO86: 0 | AP86: 0
AD87: 2 | AE87: ='Plan de RRHH (4)'!F27 -> 53.07 | AF87: =AE86 -> 53.07 | AG87: 0 | AH87: 0 | AI87: 0 | AJ87: 0 | AK87: 0 | AL87: 0 | AM87: 0 | AN87: 0 | AO87: 0 | AP87: 0
AD88: 3 | AE88: ='Plan de RRHH (4)'!G27 -> 53.07 | AF88: 53.07 | AG88: =AE86 -> 53.07 | AH88: 0 | AI88: 0 | AJ88: 0 | AK88: 0 | AL88: 0 | AM88: 0 | AN88: 0 | AO88: 0 | AP88: 0
AD89: 4 | AE89: ='Plan de RRHH (4)'!H27 -> 53.07 | AF89: 53.07 | AG89: 53.07 | AH89: =AE86 -> 53.07 | AI89: 0 | AJ89: 0 | AK89: 0 | AL89: 0 | AM89: 0 | AN89: 0 | AO89: 0 | AP89: 0
AD90: 5 | AE90: ='Plan de RRHH (4)'!I27 -> 53.07 | AF90: 53.07 | AG90: 53.07 | AH90: 53.07 | AI90: =AE86 -> 53.07 | AJ90: 0 | AK90: 0 | AL90: 0 | AM90: 0 | AN90: 0 | AO90: 0 | AP90: 0
AD91: 6 | AE91: ='Plan de RRHH (4)'!J27 -> 53.07 | AF91: 53.07 | AG91: 53.07 | AH91: 53.07 | AI91: 53.07 | AJ91: =AE86 -> 53.07 | AK91: 0 | AL91: 0 | AM91: 0 | AN91: 0 | AO91: 0 | AP91: 0
AD92: 7 | AE92: ='Plan de RRHH (4)'!K27 -> 131.36 | AF92: 53.07 | AG92: 53.07 | AH92: 53.07 | AI92: 53.07 | AJ92: 53.07 | AK92: =AE86 -> 53.07 | AL92: 0 | AM92: 0 | AN92: 0 | AO92: 0 | AP92: 0
AD93: 8 | AE93: ='Plan de RRHH (4)'!L27 -> 131.36 | AF93: 131.36 | AG93: 53.07 | AH93: 53.07 | AI93: 53.07 | AJ93: 53.07 | AK93: 53.07 | AL93: =AE86 -> 53.07 | AM93: 0 | AN93: 0 | AO93: 0 | AP93: 0
AD94: 9 | AE94: ='Plan de RRHH (4)'!M27 -> 131.36 | AF94: 131.36 | AG94: 131.36 | AH94: 53.07 | AI94: 53.07 | AJ94: 53.07 | AK94: 53.07 | AL94: =AE87 -> 53.07 | AM94: =AE86 -> 53.07 | AN94: 0 | AO94: 0 | AP94: 0
AD95: 10 | AE95: ='Plan de RRHH (4)'!N27 -> 131.36 | AF95: 131.36 | AG95: 131.36 | AH95: 131.36 | AI95: 53.07 | AJ95: 53.07 | AK95: 53.07 | AL95: =AE88 -> 53.07 | AM95: =AE87 -> 53.07 | AN95: =AE86 -> 53.07 | AO95: 0 | AP95: 0
AD96: 11 | AE96: ='Plan de RRHH (4)'!O27 -> 131.36 | AF96: 131.36 | AG96: 131.36 | AH96: 131.36 | AI96: 131.36 | AJ96: 53.07 | AK96: 53.07 | AL96: =AE89 -> 53.07 | AM96: =AE88 -> 53.07 | AN96: =AE87 -> 53.07 | AO96: =AE86 -> 53.07 | AP96: 0
AD97: 12 | AE97: ='Plan de RRHH (4)'!P27 -> 131.36 | AF97: 131.36 | AG97: 131.36 | AH97: 131.36 | AI97: 131.36 | AJ97: 131.36 | AK97: 53.07 | AL97: =AE90 -> 53.07 | AM97: =AE89 -> 53.07 | AN97: =AE88 -> 53.07 | AO97: =AE87 -> 53.07 | AP97: =AE86 -> 53.07

Sheet P y G Previsional (9)
A2: =+'INFO INICIAL'!C2 -> Macia Batle Winery | B2: CUENTA DE RESULTADOS PREVISIONAL
B4: ='Cuadro de Amortización (5)'!B5 -> AÑO 1 | C4: % | D4: ='Cuadro de Amortización (5)'!D5 -> AÑO 2 | E4: % | F4: ='Cuadro de Amortización (5)'!L5 -> AÑO 3 | G4: %
A5: INGRESOS | B5: =SUM(B6:B14) -> 2903150 | D5: =SUM(D6:D14) -> 3916341.12 | F5: =SUM(F6:F14) -> 4039582.318
A6: =+'Plan de Tesorería (8)'!A6 -> HABITACIÓN DBL AD | B6: =+'Plan de Tesorería (8)'!N6 -> 880000 | D6: =+'Plan de Tesorería (8)'!P6 -> 1178777.6 | F6: =+'Plan de Tesorería (8)'!R6 -> 1218856.038
A7: =+'Plan de Tesorería (8)'!A7 -> JUNIOR SUITE AD | B7: =+'Plan de Tesorería (8)'!N7 -> 206250 | D7: =+'Plan de Tesorería (8)'!P7 -> 276276 | F7: =+'Plan de Tesorería (8)'!R7 -> 285669.384
A8: =+'Plan de Tesorería (8)'!A8 -> SUITE AD | B8: =+'Plan de Tesorería (8)'!N8 -> 192500 | D8: =+'Plan de Tesorería (8)'!P8 -> 257857.6 | F8: =+'Plan de Tesorería (8)'!R8 -> 266624.7584
A9: =+'Plan de Tesorería (8)'!A9 -> HABITACIÓN DBL MP | B9: =+'Plan de Tesorería (8)'!N9 -> 1155000 | D9: =+'Plan de Tesorería (8)'!P9 -> 1547145.6 | F9: =+'Plan de Tesorería (8)'!R9 -> 1599748.55
A10: =+'Plan de Tesorería (8)'!A10 -> JUNIOR SUITE MP | B10: =+'Plan de Tesorería (8)'!N10 -> 247500 | D10: =+'Plan de Tesorería (8)'!P10 -> 331531.2 | F10: =+'Plan de Tesorería (8)'!R10 -> 342803.2608
A11: =+'Plan de Tesorería (8)'!A11 -> SUITE MP | B11: =+'Plan de Tesorería (8)'!N11 -> 220000 | D11: =+'Plan de Tesorería (8)'!P11 -> 33153.12 | F11: =+'Plan de Tesorería (8)'!R11 -> 34280.32608
A12: =+'Plan de Tesorería (8)'!A13 -> RUTA ENOGASTRONOMICA EN TREN | B12: =+'Plan de Tesorería (8)'!N13 -> 1600 | D12: =+'Plan de Tesorería (8)'!P13 -> 400 | F12: =+'Plan de Tesorería (8)'!R13 -> 400
A13: =+'Plan de Tesorería (8)'!A14 -> TALLERES MARIDAJE O COCINA TRADICIONAL | B13: =+'Plan de Tesorería (8)'!N14 -> 300 | D13: =+'Plan de Tesorería (8)'!P14 -> 291200 | F13: =+'Plan de Tesorería (8)'!R14 -> 291200
A14: Ingresos por IVA (Recargo de Equivalencia) | B14: =+'Plan de Tesorería (8)'!N22*'Plan de Tesorería (8)'!$AB$5 -> 0 | D14: =+'Plan de Tesorería (8)'!P22*'Plan de Tesorería (8)'!$AB$5 -> 0 | F14: =+'Plan de Tesorería (8)'!R22*'Plan de Tesorería (8)'!$AB$5 -> 0
A16: COSTES VARIABLES | B16: =SUM(B17:B24) -> 214800 | C16: =+B16/B5 -> 0.07398859859 | D16: =SUM(D17:D24) -> 284448 | E16: =+D16/D5 -> 0.07263105825 | F16: =SUM(F17:F24) -> 284448 | G16: =+F16/F5 -> 0.07041520078
A17: =+'Plan de Tesorería (8)'!A26 -> Importe del C. Variable (A) | B17: =+'Plan de Tesorería (8)'!N26 -> 55000 | D17: =+'Plan de Tesorería (8)'!P26 -> 72800 | F17: =+'Plan de Tesorería (8)'!R26 -> 72800
A18: =+'Plan de Tesorería (8)'!A27 -> Importe del C. Variable (B) | B18: =+'Plan de Tesorería (8)'!N27 -> 9900 | D18: =+'Plan de Tesorería (8)'!P27 -> 13104 | F18: =+'Plan de Tesorería (8)'!R27 -> 13104
A19: =+'Plan de Tesorería (8)'!A28 -> Importe del C. Variable (C) | B19: =+'Plan de Tesorería (8)'!N28 -> 8250 | D19: =+'Plan de Tesorería (8)'!P28 -> 10920 | F19: =+'Plan de Tesorería (8)'!R28 -> 10920
A20: =+'Plan de Tesorería (8)'!A29 -> Importe del C. Variable (D) | B20: =+'Plan de Tesorería (8)'!N29 -> 110000 | D20: =+'Plan de Tesorería (8)'!P29 -> 145600 | F20: =+'Plan de Tesorería (8)'!R29 -> 145600
A21: =+'Plan de Tesorería (8)'!A30 -> Importe del C. Variable (E) | B21: =+'Plan de Tesorería (8)'!N30 -> 18150 | D21: =+'Plan de Tesorería (8)'!P30 -> 24024 | F21: =+'Plan de Tesorería (8)'!R30 -> 24024
A22: =+'Plan de Tesorería (8)'!A31 -> Importe del C. Variable (F) | B22: =+'Plan de Tesorería (8)'!N31 -> 13500 | D22: =+'Plan de Tesorería (8)'!P31 -> 18000 | F22: =+'Plan de Tesorería (8)'!R31 -> 18000
A23: =+'Plan de Tesorería (8)'!A32 -> Otros Costes Variables | B23: =+'Plan de Tesorería (8)'!N32 -> 0 | D23: =+'Plan de Tesorería (8)'!P32 -> 0 | F23: =+'Plan de Tesorería (8)'!R32 -> 0
A24: Costes IVA (Recargo de Equivalencia) | B24: =+('Plan de Tesorería (8)'!N53+'Plan de Tesorería (8)'!N54)*'Plan de Tesorería (8)'!$AB$5 -> 0 | D24: =+('Plan de Tesorería (8)'!P53+'Plan de Tesorería (8)'!P54)*'Plan de Tesorería (8)'!$AB$5 -> 0 | F24: =+('Plan de Tesorería (8)'!R53+'Plan de Tesorería (8)'!R54)*'Plan de Tesorería (8)'!$AB$5 -> 0
A26: Margen de contribución o margen bruto | B26: =+B5-B16 -> 2688350 | C26: =+B26/B5 -> 0.9260114014 | D26: =+D5-D16 -> 3631893.12 | E26: =+D26/D5 -> 0.9273689418 | F26: =+F5-F16 -> 3755134.318 | G26: =+F26/F5 -> 0.9295847992
A28: COSTES FIJOS | B28: =SUM(B29:B43) -> 1230976.876 | D28: =SUM(D29:D43) -> 1288647.462 | F28: =SUM(F29:F43) -> 1292237.12
A29: Sueldos y Seguridad Social | B29: ='Plan de Tesorería (8)'!N36+'Plan de Tesorería (8)'!N37+'Plan de Tesorería (8)'!N35+'Plan de Tesorería (8)'!N38 -> 949186.8564 | D29: ='Plan de Tesorería (8)'!P36+'Plan de Tesorería (8)'!P37+'Plan de Tesorería (8)'!P35+'Plan de Tesorería (8)'!P38 -> 966454.1287 | F29: ='Plan de Tesorería (8)'!R36+'Plan de Tesorería (8)'!R37+'Plan de Tesorería (8)'!R35+'Plan de Tesorería (8)'!R38 -> 977972.4013
A30: Gastos de investigación y desarrollo | B30: =+'Plan de Tesorería (8)'!N39 -> 0 | D30: =+'Plan de Tesorería (8)'!P39 -> 0 | F30: =+'Plan de Tesorería (8)'!R39 -> 0
A31: Alquileres y cánones | B31: ='Plan de Tesorería (8)'!N40 -> 0 | D31: ='Plan de Tesorería (8)'!P40 -> 0 | F31: ='Plan de Tesorería (8)'!R40 -> 0
A32: Reparación y conservación | B32: ='Plan de Tesorería (8)'!N41 -> 0 | D32: ='Plan de Tesorería (8)'!P41 -> 0 | F32: ='Plan de Tesorería (8)'!R41 -> 0
A33: Servicios de profesionales independientes | B33: ='Plan de Tesorería (8)'!N42 -> 0 | D33: ='Plan de Tesorería (8)'!P42 -> 0 | F33: ='Plan de Tesorería (8)'!R42 -> 0
A34: Transportes | B34: ='Plan de Tesorería (8)'!N43 -> 0 | D34: ='Plan de Tesorería (8)'!P43 -> 0 | F34: ='Plan de Tesorería (8)'!R43 -> 0
A35: Primas de seguro | B35: ='Plan de Tesorería (8)'!N44 -> 0 | D35: ='Plan de Tesorería (8)'!P44 -> 0 | F35: ='Plan de Tesorería (8)'!R44 -> 0
A36: Servicios bancarios y similares | B36: ='Plan de Tesorería (8)'!N45 -> 0 | D36: ='Plan de Tesorería (8)'!P45 -> 0 | F36: ='Plan de Tesorería (8)'!R45 -> 0
A37: Publi. prop. y relac. públicas | B37: ='Plan de Tesorería (8)'!N46 -> 0 | D37: ='Plan de Tesorería (8)'!P46 -> 0 | F37: ='Plan de Tesorería (8)'!R46 -> 0
A38: Suministros | B38: ='Plan de Tesorería (8)'!N47 -> 0 | D38: ='Plan de Tesorería (8)'!P47 -> 0 | F38: ='Plan de Tesorería (8)'!R47 -> 0
A39: Teléfono / Internet | B39: ='Plan de Tesorería (8)'!N48 -> 0 | D39: ='Plan de Tesorería (8)'!P48 -> 0 | F39: ='Plan de Tesorería (8)'!R48 -> 0
A40: Otros servicios (papelería, limpieza, suscripciones,...) | B40: ='Plan de Tesorería (8)'!N49 -> 0 | D40: ='Plan de Tesorería (8)'!P49 -> 0 | F40: ='Plan de Tesorería (8)'!R49 -> 0
A41: Otros tributos (IBI, Incineradora, IAE...) | B41: =+'Plan de Tesorería (8)'!N50 -> 0 | D41: ='Plan de Tesorería (8)'!P50 -> 0 | F41: ='Plan de Tesorería (8)'!R50 -> 0
A42: Gastos financieros (intereses préstamos, créditos, ...) | B42: ='Plan de Tesorería (8)'!N51 -> 43947.02003 | D42: ='Plan de Tesorería (8)'!P51 -> 84350.33311 | F42: ='Plan de Tesorería (8)'!R51 -> 76421.71917
A43: Amortizaciones | B43: ='Cuadro de Amortización (5)'!H28 -> 237843 | D43: ='Cuadro de Amortización (5)'!J28 -> 237843 | F43: ='Cuadro de Amortización (5)'!L28 -> 237843
A45: TOTAL COSTES | B45: =SUM(B16+B28) -> 1445776.876 | D45: =SUM(D16+D28) -> 1573095.462 | F45: =SUM(F16+F28) -> 1576685.12
A47: EBIT o Resultado operativo | B47: =+B5-B45 -> 1457373.124 | D47: =+D5-D45 -> 2343245.658 | F47: =+F5-F45 -> 2462897.198
A49: EBITDA (Beneficio antes de amortiz., interes. e imptos.) | B49: =+B47+B42+B43 -> 1739163.144 | D49: =+D47+D42+D43 -> 2665438.991 | F49: =+F47+F42+F43 -> 2777161.917
A51: BAIT (Beneficio antes de intereses e impuestos) | B51: =B49-B43 -> 1501320.144 | D51: =D49-D43 -> 2427595.991 | F51: =F49-F43 -> 2539318.917
A52: Resultado financiero (+/-) = Ingresos - Gastos Financieros | B52: =B13-(B42) -> -43647.02003 | D52: =D13-(D42) -> 206849.6669 | F52: =F13-(F42) -> 214778.2808
A53: BAT (Beneficio antes de impuestos) | B53: =B51-B42 -> 1457373.124 | D53: =D51-D42 -> 2343245.658 | F53: =F51-F42 -> 2462897.198
A54: =+'CUADRO RESUMEN (0)'!J42 -> Impuesto de Sociedades de Nueva Creación | B54: =CHOOSE('CUADRO RESUMEN (0)'!K42,'INFO INICIAL'!J14,'INFO INICIAL'!J15,'INFO INICIAL'!J16,'INFO INICIAL'!J17,'INFO INICIAL'!J18) -> 0.15 | D54: =B54 -> 0.15 | F54: =B54 -> 0.15
A55: Impuestos a pagar: | B55: =IF(B53<0,0,B53*B54) -> 218605.9685 | D55: =IF(D53<0,0,D53*D54) -> 351486.8487 | F55: =IF(F53<0,0,F53*F54) -> 369434.5796
A56: BDIT (Beneficio después de Impuestos) | B56: =+B53-B55 -> 1238767.155 | D56: =+D53-D55 -> 1991758.809 | F56: =+F53-F55 -> 2093462.618
A58: Tipo de Impuesto de Sociedades: GENERAL | B58: 0.28
A59: Tipo de Impuesto de Sociedades: MICROEMPRESAS | B59: 0.25
A60: Tipo de Impuesto de Sociedades: ENTIDADES DE NUEVA CREACIÓN | B60: 0.15
A61: Tipo de Impuesto de Sociedades: COOPERATIVAS FISCALMENTE PROTEGIDAS | B61: 0.2
A62: Pago a Cuenta del IRPF: AUTÓNOMOS y C.B. | B62: 0.2

Sheet Punto de equilibrio (10)
A2: =+'INFO INICIAL'!C2 -> Macia Batle Winery | B2: PUNTO DE EQUILIBRIO
B5: Año 1 | D5: Año 2 | F5: Año 3
A6: Ingresos de explotación | B6: =' P y G Previsional (9)'!B6+' P y G Previsional (9)'!B7+' P y G Previsional (9)'!B8+' P y G Previsional (9)'!B9+' P y G Previsional (9)'!B10+' P y G Previsional (9)'!B11 -> 2901250 | D6: =' P y G Previsional (9)'!D6+' P y G Previsional (9)'!D7+' P y G Previsional (9)'!D8+' P y G Previsional (9)'!D9+' P y G Previsional (9)'!D10+' P y G Previsional (9)'!D11 -> 3624741.12 | F6: =' P y G Previsional (9)'!F6+' P y G Previsional (9)'!F7+' P y G Previsional (9)'!F8+' P y G Previsional (9)'!F9+' P y G Previsional (9)'!F10+' P y G Previsional (9)'!F11 -> 3747982.318
A7: Costes Variables | B7: =' P y G Previsional (9)'!B16 -> 214800 | D7: =' P y G Previsional (9)'!D16 -> 284448 | F7: =' P y G Previsional (9)'!F16 -> 284448
A8: Costes Fijos - Gastos amortización | B8: =+' P y G Previsional (9)'!B28-' P y G Previsional (9)'!B43-$B$9 -> 955333.8764 | D8: =+' P y G Previsional (9)'!D28-' P y G Previsional (9)'!D43-$B$9 -> 1013004.462 | F8: =+' P y G Previsional (9)'!F28-' P y G Previsional (9)'!F43-$B$9 -> 1016594.12
A9: Retribución asignada al promotor | B9: =+'Plan de Tesorería (8)'!N35 -> 37800 | D9: =+'Plan de Tesorería (8)'!P35 -> 38253.6 | F9: =+'Plan de Tesorería (8)'!R35 -> 38712.6432
A10: Pagos del principal del préstamo | B10: =+'Plan de Tesorería (8)'!N52 -> 48827.41035 | D10: =+'Plan de Tesorería (8)'!P52 -> 200168.445 | F10: =+'Plan de Tesorería (8)'!R52 -> 208175.1828
A11: Costes Totales | B11: =+B7+B8+B9+B10 -> 1256761.287 | D11: =D10+D7 -> 484616.445 | F11: =F10+F7 -> 492623.1828
A12: Punto de Equilibrio en € | B12: =(B8+B9+B10)/((B6-B7)/B6) -> 1125273.198 | D12: =(D8+D9+D10)/((D6-D7)/D6) -> 1357993.731 | F12: =(F8+F9+F10)/((F6-F7)/F6) -> 1367247.314
A14: Observaciones
A15: * El punto de equilibrio se puede calcular en función del ingreso total (como en este caso), o en función del precio mínimo al cuál necesitas vender o de la cantidad mínima que necesitas vender.
A17: * Si se desea cumplimentar con otras fórmulas, se puede adaptar a cada caso.

Sheet Hoja1
